Ref No,Fund Type,Dept,Cost Centre Description    ,Description    ,Creditor Name    ,GL Code Net Amount,Payment date        
2,Revenue,CCHD,Supporting People Programme,Grants to Voluntary Bodies,1625 Independent People,17380, 05-Apr-2013
3,Revenue,CCHD,Community Support ACM - North,Preventative Assistance,1st Choice Flooring,1000, 10-Apr-2013
4,Revenue,CCHD,Home Care - Elderly - South,Other Small Contracts,3 Trees Community Support Ltd,94.56, 05-Apr-2013
5,Revenue,CCHD,Home Care - Elderly - North,Other Small Contracts,3 Trees Community Support Ltd,1631.16, 05-Apr-2013
6,Revenue,CCHD,Day Care - North,Private & Voluntary Day Care,3 Trees Community Support Ltd,94.56, 05-Apr-2013
7,Revenue,CCHD,Home Care - Elderly - South,Other Small Contracts,3 Trees Community Support Ltd,94.56, 05-Apr-2013
8,Revenue,CCHD,Home Care - Elderly - North,Other Small Contracts,3 Trees Community Support Ltd,1615.4, 05-Apr-2013
9,Revenue,CCHD,Day Care - North,Private & Voluntary Day Care,3 Trees Community Support Ltd,82.74, 05-Apr-2013
10,Revenue,CCHD,Home Care - Elderly - North,Other Small Contracts,3 Trees Community Support Ltd,1339.6, 17-Apr-2013
11,Revenue,CCHD,Day Care - North,Private & Voluntary Day Care,3 Trees Community Support Ltd,47.28, 17-Apr-2013
12,Revenue,CCHD,Home Care - Elderly - South,Other Small Contracts,3 Trees Community Support Ltd,94.56, 17-Apr-2013
13,Revenue,CCHD,Home Care - Elderly - North,Other Small Contracts,3 Trees Community Support Ltd,1339.6, 17-Apr-2013
14,Revenue,CCHD,Day Care - North,Private & Voluntary Day Care,3 Trees Community Support Ltd,78.8, 17-Apr-2013
15,Revenue,CCHD,Home Care - Elderly - South,Other Small Contracts,3 Trees Community Support Ltd,95.52, 30-Apr-2013
16,Revenue,CCHD,Home Care - Elderly - North,Other Small Contracts,3 Trees Community Support Ltd,1400.96, 30-Apr-2013
17,Revenue,CCHD,Day Care - North,Private & Voluntary Day Care,3 Trees Community Support Ltd,95.52, 30-Apr-2013
18,Revenue,CCHD,Supported Living - PS,Private & Voluntary Home Care,3 Trees Community Support Ltd,702.94, 15-Apr-2013
19,Revenue,CCHD,Supported Living - KD,Private & Voluntary Home Care,3 Trees Community Support Ltd,1317.96, 30-Apr-2013
20,Revenue,CCHD,Purchase of Non-Res Care - KD,Private & Voluntary Day Care,3 Trees Community Support Ltd,2020.27, 24-Apr-2013
21,Revenue,CCHD,Purchase of Non-Res Care - KD,Private & Voluntary Day Care,3 Trees Community Support Ltd,1977.46, 30-Apr-2013
22,Revenue,CCHD,Supported Living - KD,Private & Voluntary Home Care,3 Trees Community Support Ltd,9450.3, 24-Apr-2013
23,Revenue,CCHD,Purchase of Non-Res Care - KD,Private & Voluntary Day Care,3 Trees Community Support Ltd,1633.18, 30-Apr-2013
24,Revenue,CCHD,Purchase of Non-Res Care - KD,Private & Voluntary Day Care,3 Trees Community Support Ltd,7366.97, 29-Apr-2013
25,Revenue,CCHD,Supported Living - KD,Private & Voluntary Home Care,3 Trees Community Support Ltd,10192.1, 29-Apr-2013
26,Revenue,CCHD,Purchase of Non-Res Care - KD,Private & Voluntary Day Care,3 Trees Community Support Ltd,5475.83, 30-Apr-2013
27,Revenue,CCHD,Bed Purchasing - Under 65s PWLD - South,Residential Homes,5Th Floor Harlech Court,11873.22, 16-Apr-2013
28,Revenue,CCHD,Bed Purchasing - Under 65s PWLD - South,Residential Homes,5Th Floor Harlech Court,3919.93, 16-Apr-2013
29,Revenue,CCHD,Bed purchasing - Under 65s PWLD - North,Residential Homes,5Th Floor Harlech Court,35325.64, 16-Apr-2013
30,Revenue,CCHD,Bed purchasing - Under 65s PWLD - North,Residential Homes,5Th Floor Harlech Court,10318.86, 16-Apr-2013
31,Revenue,CCHD,Bed purchasing - Under 65s PWLD - North,Residential Homes,5Th Floor Harlech Court,12264.51, 16-Apr-2013
32,Revenue,CCHD,Bed purchasing - Under 65s PWLD - North,Residential Homes,5Th Floor Harlech Court,4049.26, 16-Apr-2013
33,Revenue,CCHD,Woodleaze,Premises Maintenance by Contractor,A E Horder (Contracting) Limited,701.09, 08-Apr-2013
34,Revenue,CCHD,Woodleaze,Premises Maintenance by Contractor,A E Horder (Contracting) Limited,785.85, 09-Apr-2013
35,Revenue,CCHD,Direct Payments - Phys Dis - North,Grants to Voluntary Bodies,A4E Management Limited,22857.93, 26-Apr-2013
36,Revenue,CCHD,Frenchay Hospital Purchasing,Nursing Homes,Aabletone Nursing Home,827.03, 16-Apr-2013
37,Revenue,CCHD,Home Care - Elderly - South,Other Small Contracts,Abacus Care (Western) Ltd,1063.4, 09-Apr-2013
38,Revenue,CCHD,Home Care - Elderly - North,Other Small Contracts,Abacus Care (Western) Ltd,981.8, 09-Apr-2013
39,Revenue,CCHD,Home Care - Elderly - South,Other Small Contracts,Abacus Care (Western) Ltd,1092.03, 16-Apr-2013
40,Revenue,CCHD,Home Care - Elderly - North,Other Small Contracts,Abacus Care (Western) Ltd,981.8, 16-Apr-2013
41,Revenue,CCHD,Home Care - Elderly - South,Other Small Contracts,Abacus Care (Western) Ltd,1051.13, 25-Apr-2013
42,Revenue,CCHD,Home Care - Elderly - North,Other Small Contracts,Abacus Care (Western) Ltd,981.8, 25-Apr-2013
43,Revenue,CCHD,Home Care - Elderly - South,Other Small Contracts,Abacus Care (Western) Ltd,940.7, 04-Apr-2013
44,Revenue,CCHD,Home Care - Elderly - North,Other Small Contracts,Abacus Care (Western) Ltd,981.8, 04-Apr-2013
45,Revenue,CCHD,Frenchay Hospital Purchasing,Residential Homes,Abbey Grange,1289.53, 16-Apr-2013
46,Revenue,CCHD,Bed and Breakfast,Storage & Removal,Ablemove-Wottons,660, 17-Apr-2013
47,Revenue,CCHD,Day Care - North,Private & Voluntary Day Care,About Me Care and Support Limited,1282.68, 15-Apr-2013
48,Revenue,CCHD,Day Care - South,Private & Voluntary Day Care,About Me Care and Support Limited,1211.91, 15-Apr-2013
49,Revenue,CCHD,Day Care - South,Private & Voluntary Day Care,About Me Care and Support Limited,864.46, 15-Apr-2013
50,Revenue,CCHD,Older People's Commissioned Se,Grants to Voluntary Bodies,Action for Blind People,24242.25, 03-Apr-2013
51,Revenue,CCHD,Day Care - North,Private & Voluntary Day Care,Action on Hearing Loss,601.2, 05-Apr-2013
52,Revenue,CCHD,Day Care - North,Private & Voluntary Day Care,Action on Hearing Loss,538.4, 05-Apr-2013
53,Revenue,CCHD,Tenancy Start Up Scheme,Other Supplies & Services,ADA Glossop Ltd,500, 30-Apr-2013
54,Revenue,CCHD,SLA Grants - Support Serv,Grants to Voluntary Bodies,Age UK South Gloucestershire,5437.75, 03-Apr-2013
55,Revenue,CCHD,Day Care - North,Private & Voluntary Day Care,Age UK South Gloucestershire,681.44, 16-Apr-2013
56,Revenue,CCHD,Day Care - North,Private & Voluntary Day Care,Age UK South Gloucestershire,1022.16, 16-Apr-2013
57,Revenue,CCHD,Day Care - North,Private & Voluntary Day Care,Age UK South Gloucestershire,1022.16, 16-Apr-2013
58,Revenue,CCHD,Day Care - South,Private & Voluntary Day Care,Age UK South Gloucestershire,658.18, 16-Apr-2013
59,Revenue,CCHD,Day Care - South,Private & Voluntary Day Care,Age UK South Gloucestershire,553.67, 16-Apr-2013
60,Revenue,CCHD,Day Care - South,Private & Voluntary Day Care,Age UK South Gloucestershire,724.03, 16-Apr-2013
61,Revenue,CCHD,Day Care - South,Private & Voluntary Day Care,Age UK South Gloucestershire,1087.16, 16-Apr-2013
62,Revenue,CCHD,Day Care - South,Private & Voluntary Day Care,Age UK South Gloucestershire,851.8, 16-Apr-2013
63,Revenue,CCHD,Day Care - South,Private & Voluntary Day Care,Age UK South Gloucestershire,681.44, 16-Apr-2013
64,Revenue,CCHD,Day Care - South,Private & Voluntary Day Care,Age UK South Gloucestershire,1087.16, 16-Apr-2013
65,Revenue,CCHD,Day Care - South,Private & Voluntary Day Care,Age UK South Gloucestershire,851.8, 16-Apr-2013
66,Revenue,CCHD,Day Care - South,Private & Voluntary Day Care,Age UK South Gloucestershire,681.44, 16-Apr-2013
67,Revenue,CCHD,Home Care - Elderly - South,Other Small Contracts,Agincare Chippenham,1393.2, 19-Apr-2013
68,Revenue,CCHD,Home Care - Elderly - South,Other Small Contracts,Agincare Chippenham,1358.37, 19-Apr-2013
69,Revenue,CCHD,Home Care - Elderly - South,Other Small Contracts,Agincare Chippenham,1478.34, 19-Apr-2013
70,Revenue,CCHD,Home Care - Elderly - South,Other Small Contracts,Agincare Chippenham,1424.16, 19-Apr-2013
71,Revenue,CCHD,Home Care - Elderly - South,Other Small Contracts,Agincare UK Limited,708.21, 19-Apr-2013
72,Revenue,CCHD,Home Care - Elderly - North,Other Small Contracts,Agincare UK Limited,81.27, 19-Apr-2013
73,Revenue,CCHD,Day Care - South,Private & Voluntary Day Care,Agincare UK Limited,131.58, 19-Apr-2013
74,Revenue,CCHD,Elderly MH Day Care North,Private & Voluntary Day Care,Agincare UK Limited,112.23, 19-Apr-2013
75,Revenue,CCHD,Home Care - Elderly - South,Other Small Contracts,Agincare UK Limited,801.09, 19-Apr-2013
76,Revenue,CCHD,Home Care - Elderly - North,Other Small Contracts,Agincare UK Limited,69.66, 19-Apr-2013
77,Revenue,CCHD,Day Care - South,Private & Voluntary Day Care,Agincare UK Limited,131.58, 19-Apr-2013
78,Revenue,CCHD,Elderly MH Day Care North,Private & Voluntary Day Care,Agincare UK Limited,116.1, 19-Apr-2013
79,Revenue,CCHD,Home Care - Elderly - South,Other Small Contracts,Agincare UK Limited,832.05, 19-Apr-2013
80,Revenue,CCHD,Home Care - Elderly - North,Other Small Contracts,Agincare UK Limited,77.4, 19-Apr-2013
81,Revenue,CCHD,Day Care - South,Private & Voluntary Day Care,Agincare UK Limited,96.75, 19-Apr-2013
82,Revenue,CCHD,Elderly MH Day Care North,Private & Voluntary Day Care,Agincare UK Limited,116.1, 19-Apr-2013
83,Revenue,CCHD,Home Care - Elderly - South,Other Small Contracts,Agincare UK Limited,820.44, 30-Apr-2013
84,Revenue,CCHD,Home Care - Elderly - North,Other Small Contracts,Agincare UK Limited,81.27, 30-Apr-2013
85,Revenue,CCHD,Day Care - South,Private & Voluntary Day Care,Agincare UK Limited,127.71, 30-Apr-2013
86,Revenue,CCHD,Elderly MH Day Care North,Private & Voluntary Day Care,Agincare UK Limited,112.23, 30-Apr-2013
87,Revenue,CCHD,Home Care - Elderly - South,Other Small Contracts,Agincare UK Limited,917.19, 19-Apr-2013
88,Revenue,CCHD,Home Care - Elderly - North,Other Small Contracts,Agincare UK Limited,65.79, 19-Apr-2013
89,Revenue,CCHD,Day Care - South,Private & Voluntary Day Care,Agincare UK Limited,123.84, 19-Apr-2013
90,Revenue,CCHD,Elderly MH Day Care North,Private & Voluntary Day Care,Agincare UK Limited,116.1, 19-Apr-2013
91,Revenue,CCHD,S117 Placements PCT,Residential Homes,Alexandra House,5156.73, 16-Apr-2013
92,Revenue,CCHD,S117 Placements PCT,Residential Homes,Alexandra House,1702.57, 16-Apr-2013
93,Revenue,CCHD,Section 117 Placements MH Younger,Residential Homes,Alexandra House,4800.66, 16-Apr-2013
94,Revenue,CCHD,Section 117 Placements MH Younger,Residential Homes,Alexandra House,1585, 16-Apr-2013
95,Revenue,CCHD,SLA Grants - Support Serv,Grants to Voluntary Bodies,Alive Activities Limited,5000, 10-Apr-2013
96,Revenue,CCHD,Elderly MH Day Care North,Private & Voluntary Day Care,Alzheimer`s Society Bristol,572.16, 30-Apr-2013
97,Revenue,CCHD,Elderly MH Day Care South,Private & Voluntary Day Care,Alzheimer`s Society Bristol,572.16, 30-Apr-2013
98,Revenue,CCHD,Elderly MH Day Care North,Private & Voluntary Day Care,Alzheimer`s Society Bristol,858.24, 30-Apr-2013
99,Revenue,CCHD,Day Care - South,Private & Voluntary Day Care,Alzheimer`s Society Bristol,572.16, 30-Apr-2013
100,Revenue,CCHD,Bed Purchasing - Elderly S117- North,Private & Voluntary Day Care,Alzheimer`s Society Bristol,572.16, 30-Apr-2013
101,Revenue,CCHD,Elderly MH Day Care South,Private & Voluntary Day Care,Alzheimer`s Society Bristol,572.16, 30-Apr-2013
102,Revenue,CCHD,Frenchay Hospital Purchasing,Residential Homes,Amber Care Ltd,1302.02, 16-Apr-2013
103,Revenue,CCHD,Southmead Hospital Purchasing,Nursing Homes,Ambleside Nusing Ho!,1423.12, 16-Apr-2013
104,Revenue,CCHD,Frenchay Hospital Purchasing,Residential Homes,Anbridge Care Home,827.14, 16-Apr-2013
105,Revenue,CCHD,Bed Purchasing - Elderly - North,Nursing Homes,Annabel House,1399.02, 16-Apr-2013
106,Revenue,CCHD,Bed purchasing - Under 65s PWLD - North,Residential Homes,Ark Care Homes Ltd,10232.8, 16-Apr-2013
107,Revenue,CCHD,Bed Purchasing - Elderly - South,Residential Homes,Ashbourne House Care Home Limited,2209.67, 16-Apr-2013
108,Revenue,CCHD,Bed and Breakfast,Bed & Breakfast,Ashley Guest Houses Limited,840, 03-Apr-2013
109,Revenue,CCHD,Bed and Breakfast,Bed & Breakfast,Ashley Guest Houses Limited,936, 10-Apr-2013
110,Revenue,CCHD,Bed and Breakfast,Bed & Breakfast,Ashley Guest Houses Limited,1008, 17-Apr-2013
111,Revenue,CCHD,Bed purchasing - Under 65s PWLD - North,Residential Homes,Aspects 2 Limited,6266.19, 16-Apr-2013
112,Revenue,CCHD,Supporting People Programme,Grants to Voluntary Bodies,Aspects and Milestones Trust,3172.58, 09-Apr-2013
113,Revenue,CCHD,Supporting People Programme,Grants to Voluntary Bodies,Aspects and Milestones Trust,1590.58, 09-Apr-2013
114,Revenue,CCHD,Supporting People Programme,Grants to Voluntary Bodies,Aspects and Milestones Trust,1937.33, 09-Apr-2013
115,Revenue,CCHD,Supporting People Programme,Grants to Voluntary Bodies,Aspects and Milestones Trust,2414.33, 09-Apr-2013
116,Revenue,CCHD,Supported Living - KD,Private & Voluntary Home Care,Aspirations Support Bristol Limited,5666.48, 30-Apr-2013
117,Revenue,CCHD,Supported Living - PS,Private & Voluntary Home Care,Aspirations Support Bristol Limited,3862.47, 15-Apr-2013
118,Revenue,CCHD,Supported Living - KD,Private & Voluntary Home Care,Aspirations Support Bristol Limited,2520, 18-Apr-2013
119,Revenue,CCHD,Supported Living - KD,Private & Voluntary Home Care,Aspirations Support Bristol Limited,5911.06, 30-Apr-2013
120,Revenue,CCHD,Supported Living - PS,Private & Voluntary Home Care,Aspirations Support Bristol Limited,4846, 12-Apr-2013
121,Revenue,CCHD,Supported Living - PS,Private & Voluntary Home Care,Aspirations Support Bristol Limited,5921.62, 12-Apr-2013
122,Revenue,CCHD,Purchase of Non-Res Care - PS,Private & Voluntary Day Care,Aspirations Support Bristol Limited,2475.72, 26-Apr-2013
123,Revenue,CCHD,Supported Living - KD,Private & Voluntary Home Care,Aspirations Support Bristol Limited,8213.14, 29-Apr-2013
124,Revenue,CCHD,Supported Living - PS,Private & Voluntary Home Care,Aspirations Support Bristol Limited,534.66, 15-Apr-2013
125,Revenue,CCHD,Bed Purchasing - Under 65s PWLD - South,Residential Homes,Autism Specialised Care Homes,5554.85, 16-Apr-2013
126,Revenue,CCHD,Purchase of Non-Res Care - KD,Private & Voluntary Day Care,Avon Autistic Foundation Limited,3847.82, 17-Apr-2013
127,Revenue,CCHD,Purchase of Non-Res Care - KD,Private & Voluntary Day Care,Avon Autistic Foundation Limited,3345.92, 30-Apr-2013
128,Revenue,CCHD,Purchase of Non-Res Care - KD,Private & Voluntary Day Care,Avon Autistic Foundation Limited,2278.56, 04-Apr-2013
129,Revenue,CCHD,Purchase of Non-Res Care - KD,Private & Voluntary Day Care,Avon Autistic Foundation Limited,3345.92, 30-Apr-2013
130,Revenue,CCHD,Purchase of Non-Res Care - KD,Private & Voluntary Day Care,Avon Autistic Foundation Limited,2278.56, 30-Apr-2013
131,Revenue,CCHD,Purchase of RAC places,Other L.A.'s - General,Bath & North East Somerset Dist Council,20683.27, 12-Apr-2013
132,Revenue,CCHD,Purchase of RAC places,Other L.A.'s - General,Bath & North East Somerset Dist Council,9057, 12-Apr-2013
133,Revenue,CCHD,Purchase of RAC places,Other L.A.'s - General,Bath & North East Somerset Dist Council,1902.4, 12-Apr-2013
134,Revenue,CCHD,User Involvement,Other Supplies & Services,Bawa Healthcare & Leisure,1039.59, 05-Apr-2013
135,Revenue,CCHD,Bed Purchasing - Elderly - South,Residential Homes,Beaufort House,991.84, 16-Apr-2013
136,Revenue,CCHD,Bed Purchasing - Elderly - South,Residential Homes,Beaufort House,924.18, 16-Apr-2013
137,Revenue,CCHD,Bed Purchasing - Elderly - South,Residential Homes,Beaufort House,752.15, 16-Apr-2013
138,Revenue,CCHD,Bed purchasing - Elderly MH - North,Residential Homes,Beaufort House,1070.58, 16-Apr-2013
139,Revenue,CCHD,Bed Purchasing - Elderly S117- North,Residential Homes,Beaufort House,1741.56, 16-Apr-2013
140,Revenue,CCHD,Bed Purchasing - Elderly S117- North,Residential Homes,Beaufort House,985.71, 16-Apr-2013
141,Revenue,CCHD,Bed Purchasing - Elderly S117- North,Residential Homes,Beaufort House,575, 16-Apr-2013
142,Revenue,CCHD,Bed purchasing - Elderly MH - North,Residential Homes,Beaufort House,1301.34, 16-Apr-2013
143,Revenue,CCHD,Bed Purchasing - Elderly - North,Residential Homes,Beaufort House,1758.09, 16-Apr-2013
144,Revenue,CCHD,Bed Purchasing - Elderly - North,Residential Homes,Beaufort House,1377.06, 16-Apr-2013
145,Revenue,CCHD,Frenchay Hospital Purchasing,Residential Homes,Beaufort House,963.99, 16-Apr-2013
146,Revenue,CCHD,Bed Purchasing - Elderly - North,Residential Homes,Beaufort House,1283.58, 16-Apr-2013
147,Revenue,CCHD,Bed purchasing - Elderly MH - North,Residential Homes,Beaufort House,659.07, 16-Apr-2013
148,Revenue,CCHD,Bed purchasing - Elderly MH - North,Residential Homes,Beaufort House,753.78, 16-Apr-2013
149,Revenue,CCHD,Bed purchasing - Elderly MH - North,Residential Homes,Beaufort House,1263.09, 16-Apr-2013
150,Revenue,CCHD,Bed Purchasing - Elderly - North,Residential Homes,Beaufort House,1138.65, 16-Apr-2013
151,Revenue,CCHD,Bed purchasing - Elderly PWLD - South,Residential Homes,Bedrock Lodge,2875.7, 16-Apr-2013
152,Revenue,CCHD,Section 117 Placements MH Younger,Residential Homes,Bedrock Lodge,1833.31, 16-Apr-2013
153,Revenue,CCHD,Frenchay Hospital Purchasing,Nursing Homes,Beech House,523.62, 16-Apr-2013
154,Revenue,CCHD,Bed Purchasing - Elderly - North,Nursing Homes,Beech House,520.17, 16-Apr-2013
155,Revenue,CCHD,Bed Purchasing - Elderly - North,Nursing Homes,Beech House,1571.76, 16-Apr-2013
156,Revenue,CCHD,Bed Purchasing - Elderly - North,Nursing Homes,Beech House,520.05, 16-Apr-2013
157,Revenue,CCHD,Southmead Hospital Purchasing,Nursing Homes,Beech House,7632.87, 16-Apr-2013
158,Revenue,CCHD,Southmead Hospital Purchasing,Nursing Homes,Beech House,572.1, 16-Apr-2013
159,Revenue,CCHD,Bed Purchasing - Elderly - North,Nursing Homes,Beech House,1665.39, 16-Apr-2013
160,Revenue,CCHD,Bed Purchasing - Elderly - North,Nursing Homes,Beech House,550.73, 16-Apr-2013
161,Revenue,CCHD,South Glos Users in South Glos Homes,Nursing Homes,Blossom Field,745.37, 16-Apr-2013
162,Revenue,CCHD,South Glos Users in South Glos Homes,Nursing Homes,Blossom Field,590.09, 16-Apr-2013
163,Revenue,CCHD,South Glos Users in South Glos Homes,Nursing Homes,Blossom Field,1708.14, 16-Apr-2013
164,Revenue,CCHD,Bed Purchasing - Elderly - North,Nursing Homes,Blossom Field,771.45, 16-Apr-2013
165,Revenue,CCHD,Bed purchasing - Elderly MH - North,Nursing Homes,Blossom Field,1050.03, 16-Apr-2013
166,Revenue,CCHD,Bed Purchasing - Elderly - South,Nursing Homes,Blossom Field,1413.42, 16-Apr-2013
167,Revenue,CCHD,Bed Purchasing - Elderly - South,Nursing Homes,Blossom Fields,2961.76, 10-Apr-2013
168,Revenue,CCHD,Bed Purchasing - Elderly - North,Nursing Homes,Blossom Fields,6276.26, 10-Apr-2013
169,Revenue,CCHD,South Glos Users in South Glos Homes,Nursing Homes,Blossom Fields,1537.33, 10-Apr-2013
170,Revenue,CCHD,Bed purchasing - Elderly MH - North,Nursing Homes,Blossom Fields,71.84, 10-Apr-2013
171,Revenue,CCHD,Training - Adult Services,Training Expenses,Bob Dawson,750, 17-Apr-2013
172,Revenue,CCHD,Frenchay Hospital Purchasing,Nursing Homes,Bradbury House,1373.33, 16-Apr-2013
173,Revenue,CCHD,Bed purchasing - Under 65s PWLD - North,Residential Homes,Bradbury House,8618.7, 16-Apr-2013
174,Revenue,CCHD,Home Care - Elderly - North,Other Small Contracts,Bradley House Home Care Services,1119.86, 30-Apr-2013
175,Revenue,CCHD,Day Care - North,Private & Voluntary Day Care,Bradley House Home Care Services,101.04, 30-Apr-2013
176,Revenue,CCHD,Home Care - Elderly - North,Other Small Contracts,Bradley House Home Care Services,1060.92, 30-Apr-2013
177,Revenue,CCHD,Day Care - North,Private & Voluntary Day Care,Bradley House Home Care Services,101.04, 30-Apr-2013
178,Revenue,CCHD,Home Care - Elderly - North,Other Small Contracts,Bradley House Home Care Services,1055.01, 10-Apr-2013
179,Revenue,CCHD,Day Care - North,Private & Voluntary Day Care,Bradley House Home Care Services,95.91, 10-Apr-2013
180,Revenue,CCHD,Home Care - Elderly - North,Other Small Contracts,Bradley House Home Care Services,1138.41, 15-Apr-2013
181,Revenue,CCHD,Day Care - North,Private & Voluntary Day Care,Bradley House Home Care Services,95.91, 15-Apr-2013
182,Revenue,CCHD,Home Care - Elderly - South,Other Small Contracts,Bradley House Home Care Services,58.38, 04-Apr-2013
183,Revenue,CCHD,Home Care - Elderly - North,Other Small Contracts,Bradley House Home Care Services,1088.37, 04-Apr-2013
184,Revenue,CCHD,Day Care - North,Private & Voluntary Day Care,Bradley House Home Care Services,100.08, 04-Apr-2013
185,Revenue,CCHD,Woodleaze,"Provisions (Food, etc)",Brake Bros,827.23, 02-Apr-2013
186,Revenue,CCHD,Alexandra Way,"Provisions (Food, etc)",Brake Bros,545.57, 12-Apr-2013
187,Revenue,CCHD,Woodleaze,"Provisions (Food, etc)",Brake Bros,1114.29, 18-Apr-2013
188,Revenue,CCHD,Alexandra Way,"Provisions (Food, etc)",Brake Bros,751.49, 12-Apr-2013
189,Revenue,CCHD,Bed Purchasing - Elderly - North,Residential Homes,Bridge House Care Home,934.5, 16-Apr-2013
190,Revenue,CCHD,Bed Purchasing - Elderly - North,Residential Homes,Bridge House Care Home,1139.94, 16-Apr-2013
191,Revenue,CCHD,Bed Purchasing - Elderly - North,Residential Homes,Bridge House Care Home,809.46, 16-Apr-2013
192,Revenue,CCHD,Bed Purchasing - Elderly - North,Residential Homes,Bridge House Care Home,993.99, 16-Apr-2013
193,Revenue,CCHD,Bed Purchasing - Elderly MH - South,Residential Homes,Brightbow,1550.46, 16-Apr-2013
194,Revenue,CCHD,Bed Purchasing - Elderly MH - South,Residential Homes,Brightbow,632.25, 16-Apr-2013
195,Revenue,CCHD,MH Purchasing - Younger,Residential Homes,Brightbow,690.6, 16-Apr-2013
196,Revenue,CCHD,Older People's Commissioned Se,Grants to Voluntary Bodies,Bristol Area Stroke Foundation,4618.25, 03-Apr-2013
197,Revenue,CCHD,SLA Grants - Support Serv,Grants to Voluntary Bodies,Bristol Area Stroke Foundation,2430, 10-Apr-2013
198,Revenue,CCHD,Enabling Activities,Fees & Charges Income - General,Bristol City Council,5135.38, 04-Apr-2013
199,Revenue,CCHD,Purchase of Day Centre places,Other L.A.'s - General,Bristol City Council,887.17, 02-Apr-2013
200,Revenue,CCHD,Purchase of RAC places,Other L.A.'s - General,Bristol City Council,3978.31, 02-Apr-2013
201,Revenue,CCHD,Purchase of RAC places,Other L.A.'s - General,Bristol City Council,27723.48, 02-Apr-2013
202,Revenue,CCHD,Supported Living - KD,Private & Voluntary Home Care,Bristol Houses UK Limited,1290.56, 24-Apr-2013
203,Revenue,CCHD,Supported Living - KD,Private & Voluntary Home Care,Bristol Houses UK Limited,1046.4, 24-Apr-2013
204,Revenue,CCHD,Day Care - North,Private & Voluntary Day Care,Bristol Houses UK Limited,1517.28, 24-Apr-2013
205,Revenue,CCHD,Supported Living - KD,Private & Voluntary Home Care,Bristol Houses UK Limited,1011.52, 24-Apr-2013
206,Revenue,CCHD,Supported Living - KD,Private & Voluntary Home Care,Bristol Houses UK Limited,2371.84, 24-Apr-2013
207,Revenue,CCHD,Supported Living - KD,Private & Voluntary Home Care,Bristol Houses UK Limited,599.98, 24-Apr-2013
208,Revenue,CCHD,Supported Living - KD,Private & Voluntary Home Care,Bristol Houses UK Limited,960, 24-Apr-2013
209,Revenue,CCHD,Younger MH non-res purchasing,Private & Voluntary Day Care,Bristol Houses UK Limited,720, 24-Apr-2013
210,Revenue,CCHD,Supported Living - KD,Private & Voluntary Home Care,Bristol Houses UK Limited,600, 24-Apr-2013
211,Revenue,CCHD,Bed and Breakfast,Bed & Breakfast,Bristol Housing & Support Limited,2126, 02-Apr-2013
212,Revenue,CCHD,Bed and Breakfast,Bed & Breakfast,Bristol Housing & Support Limited,2228, 02-Apr-2013
213,Revenue,CCHD,General EPH budgets,Other Supplies & Services,Bristol Wessex Billing Services Limited,7051.45, 03-Apr-2013
214,Revenue,CCHD,Supporting People Programme,Grants to Voluntary Bodies,Bromford Housing Group,14050.25, 05-Apr-2013
215,Revenue,CCHD,Bed Purchasing - Elderly - North,Residential Homes,Brook Lane Residential Home,901.9, 16-Apr-2013
216,Revenue,CCHD,Home Care - Elderly - North,Private & Voluntary Home Care,Brunel Care Community Services,9353.81, 15-Apr-2013
217,Revenue,CCHD,Home Care - Elderly - North,Private & Voluntary Home Care,Brunelcare,15809.01, 08-Apr-2013
218,Revenue,CCHD,Home Care - Elderly - North,Private & Voluntary Home Care,Brunelcare,15809.01, 15-Apr-2013
219,Revenue,CCHD,Home Care - Elderly - North,Private & Voluntary Home Care,Brunelcare,15809.01, 22-Apr-2013
220,Revenue,CCHD,Home Care - Elderly - North,Private & Voluntary Home Care,Brunelcare,15809.01, 29-Apr-2013
221,Revenue,CCHD,Home Care - Elderly - South,Other Small Contracts,Brunelcare,2900.72, 10-Apr-2013
222,Revenue,CCHD,Home Care - Elderly - North,Other Small Contracts,Brunelcare,4225.84, 10-Apr-2013
223,Revenue,CCHD,Day Care - South,Private & Voluntary Day Care,Brunelcare,149.48, 10-Apr-2013
224,Revenue,CCHD,Day Care - North,Private & Voluntary Day Care,Brunelcare,80.8, 10-Apr-2013
225,Revenue,CCHD,Home care - Elderly MH - North,Other Small Contracts,Brunelcare,153.52, 10-Apr-2013
226,Revenue,CCHD,Home Care - Elderly - South,Other Small Contracts,Brunelcare,2626, 09-Apr-2013
227,Revenue,CCHD,Home Care - Elderly - North,Other Small Contracts,Brunelcare,4100.6, 09-Apr-2013
228,Revenue,CCHD,Day Care - South,Private & Voluntary Day Care,Brunelcare,137.36, 09-Apr-2013
229,Revenue,CCHD,Day Care - North,Private & Voluntary Day Care,Brunelcare,80.8, 09-Apr-2013
230,Revenue,CCHD,Home care - Elderly MH - North,Other Small Contracts,Brunelcare,149.48, 09-Apr-2013
231,Revenue,CCHD,Home Care - Elderly - South,Other Small Contracts,Brunelcare,3054.24, 12-Apr-2013
232,Revenue,CCHD,Home Care - Elderly - North,Other Small Contracts,Brunelcare,4310.85, 12-Apr-2013
233,Revenue,CCHD,Day Care - South,Private & Voluntary Day Care,Brunelcare,145.44, 12-Apr-2013
234,Revenue,CCHD,Day Care - North,Private & Voluntary Day Care,Brunelcare,72.72, 12-Apr-2013
235,Revenue,CCHD,Home care - Elderly MH - North,Other Small Contracts,Brunelcare,149.48, 12-Apr-2013
236,Revenue,CCHD,Home Care - Elderly - South,Other Small Contracts,Brunelcare,2815.88, 10-Apr-2013
237,Revenue,CCHD,Home Care - Elderly - North,Other Small Contracts,Brunelcare,4177.36, 10-Apr-2013
238,Revenue,CCHD,Day Care - South,Private & Voluntary Day Care,Brunelcare,133.32, 10-Apr-2013
239,Revenue,CCHD,Day Care - North,Private & Voluntary Day Care,Brunelcare,48.48, 10-Apr-2013
240,Revenue,CCHD,Home care - Elderly MH - North,Other Small Contracts,Brunelcare,145.44, 10-Apr-2013
241,Revenue,CCHD,Home Care - Elderly - South,Other Small Contracts,Brunelcare,3038.08, 10-Apr-2013
242,Revenue,CCHD,Home Care - Elderly - North,Other Small Contracts,Brunelcare,4116.76, 10-Apr-2013
243,Revenue,CCHD,Day Care - South,Private & Voluntary Day Care,Brunelcare,141.4, 10-Apr-2013
244,Revenue,CCHD,Day Care - North,Private & Voluntary Day Care,Brunelcare,80.8, 10-Apr-2013
245,Revenue,CCHD,Home care - Elderly MH - North,Other Small Contracts,Brunelcare,149.48, 10-Apr-2013
246,Revenue,CCHD,Home Care - Elderly - South,Other Small Contracts,Brunelcare,2973.44, 12-Apr-2013
247,Revenue,CCHD,Home Care - Elderly - North,Other Small Contracts,Brunelcare,4185.44, 12-Apr-2013
248,Revenue,CCHD,Day Care - South,Private & Voluntary Day Care,Brunelcare,141.4, 12-Apr-2013
249,Revenue,CCHD,Day Care - North,Private & Voluntary Day Care,Brunelcare,52.52, 12-Apr-2013
250,Revenue,CCHD,Home care - Elderly MH - North,Other Small Contracts,Brunelcare,149.48, 12-Apr-2013
251,Revenue,CCHD,Home Care - Elderly - South,Other Small Contracts,Brunelcare,2884.56, 12-Apr-2013
252,Revenue,CCHD,Home Care - Elderly - North,Other Small Contracts,Brunelcare,4088.48, 12-Apr-2013
253,Revenue,CCHD,Day Care - South,Private & Voluntary Day Care,Brunelcare,137.36, 12-Apr-2013
254,Revenue,CCHD,Day Care - North,Private & Voluntary Day Care,Brunelcare,76.76, 12-Apr-2013
255,Revenue,CCHD,Home care - Elderly MH - North,Other Small Contracts,Brunelcare,157.56, 12-Apr-2013
256,Revenue,CCHD,Woodleaze,Agency Staff (Admin/Support Staff) Pay,BS Project Services Limited,417.62, 11-Apr-2013
257,Revenue,CCHD,Information Systems - Software,Computer Equipment - Purchase,BT Global Services Solutions,978.04, 25-Apr-2013
258,Revenue,CCHD,Woodleaze,Cleaning & Domestic Services,Bunzl Cleaning & Hygiene Supplies,741.63, 12-Apr-2013
259,Revenue,CCHD,Frenchay Hospital Purchasing,Nursing Homes,BUPA Care Service,1300.3, 12-Apr-2013
260,Revenue,CCHD,Bed purchasing - Phys Dis - North,Nursing Homes,Bupa Care Services  Bridge House,5837.74, 16-Apr-2013
261,Revenue,CCHD,South Glos Users in all other LA Homes,Nursing Homes,Bupa Care Services  Bridge House,604.4, 16-Apr-2013
262,Revenue,CCHD,Bed purchasing - Elderly MH - North,Residential Homes,Bupa Care Services  Bridge House,1895, 16-Apr-2013
263,Revenue,CCHD,Supported Living - PS,Private & Voluntary Home Care,Camphill Communities Thornbury Limited,1736.4, 03-Apr-2013
264,Revenue,CCHD,Supported Living - KD,Private & Voluntary Home Care,Camphill Communities Thornbury Limited,2475, 03-Apr-2013
265,Revenue,CCHD,Supported Living - KD,Private & Voluntary Home Care,Camphill Communities Thornbury Limited,2572.8, 03-Apr-2013
266,Revenue,CCHD,Supported Living - KD,Private & Voluntary Home Care,Camphill Communities Thornbury Limited,1804.92, 05-Apr-2013
267,Revenue,CCHD,Supported Living - KD,Private & Voluntary Home Care,Camphill Communities Thornbury Limited,7791.36, 22-Apr-2013
268,Revenue,CCHD,Supported Living - KD,Private & Voluntary Home Care,Camphill Communities Thornbury Limited,2269.12, 10-Apr-2013
269,Revenue,CCHD,Supported Living - KD,Private & Voluntary Home Care,Camphill Communities Thornbury Limited,2030.28, 10-Apr-2013
270,Revenue,CCHD,Supported Living - KD,Private & Voluntary Home Care,Camphill Communities Thornbury Limited,1997.32, 10-Apr-2013
271,Revenue,CCHD,Supported Living - KD,Private & Voluntary Home Care,Camphill Communities Thornbury Limited,2112.64, 30-Apr-2013
272,Revenue,CCHD,Supported Living - KD,Private & Voluntary Home Care,Camphill Communities Thornbury Limited,1997.32, 30-Apr-2013
273,Revenue,CCHD,Supported Living - KD,Private & Voluntary Home Care,Camphill Communities Thornbury Limited,2216.04, 30-Apr-2013
274,Revenue,CCHD,Supported Living - KD,Private & Voluntary Home Care,Camphill Communities Thornbury Limited,1775.92, 30-Apr-2013
275,Revenue,CCHD,Supported Living - KD,Private & Voluntary Home Care,Camphill Communities Thornbury Limited,2086.8, 30-Apr-2013
276,Revenue,CCHD,Supported Living - KD,Private & Voluntary Home Care,Camphill Communities Thornbury Limited,2597.12, 25-Apr-2013
277,Revenue,CCHD,Bed purchasing - Under 65s PWLD - North,Residential Homes,Camphill Devon Community,2411.25, 16-Apr-2013
278,Revenue,CCHD,Bed purchasing - Under 65s PWLD - North,Residential Homes,Camphill Devon Community,796.31, 16-Apr-2013
279,Revenue,CCHD,Bed purchasing - Under 65s PWLD - North,Residential Homes,Camphill Devon Community,1691.04, 16-Apr-2013
280,Revenue,CCHD,Bed purchasing - Under 65s PWLD - North,Residential Homes,Camphill Devon Community,558.52, 16-Apr-2013
281,Revenue,CCHD,Home Care - Elderly - South,Other Small Contracts,Care 1st Homecare,2604.15, 04-Apr-2013
282,Revenue,CCHD,Home Care - Elderly - North,Other Small Contracts,Care 1st Homecare,6046.44, 04-Apr-2013
283,Revenue,CCHD,Day Care - South,Private & Voluntary Day Care,Care 1st Homecare,117.45, 04-Apr-2013
284,Revenue,CCHD,Day Care - North,Private & Voluntary Day Care,Care 1st Homecare,52.65, 04-Apr-2013
285,Revenue,CCHD,Home Care - LD Under 65 - South,Private & Voluntary Home Care,Care 1st Homecare,64.8, 04-Apr-2013
286,Revenue,CCHD,Home Care - Elderly - South,Other Small Contracts,Care 1st Homecare,2523.15, 04-Apr-2013
287,Revenue,CCHD,Home Care - Elderly - North,Other Small Contracts,Care 1st Homecare,4709.94, 04-Apr-2013
288,Revenue,CCHD,Day Care - South,Private & Voluntary Day Care,Care 1st Homecare,113.4, 04-Apr-2013
289,Revenue,CCHD,Day Care - North,Private & Voluntary Day Care,Care 1st Homecare,48.6, 04-Apr-2013
290,Revenue,CCHD,Home Care - Elderly - South,Other Small Contracts,Care 1st Homecare,2579.85, 09-Apr-2013
291,Revenue,CCHD,Home Care - Elderly - North,Other Small Contracts,Care 1st Homecare,4454.79, 09-Apr-2013
292,Revenue,CCHD,Day Care - South,Private & Voluntary Day Care,Care 1st Homecare,113.4, 09-Apr-2013
293,Revenue,CCHD,Day Care - North,Private & Voluntary Day Care,Care 1st Homecare,44.55, 09-Apr-2013
294,Revenue,CCHD,Bed Purchasing - PWLD S 117 Placements,Residential Homes,Care Community Ltd,7518.48, 16-Apr-2013
295,Revenue,CCHD,Home Care - Elderly - North,Other Small Contracts,Care Horizons Limited,2976.08, 30-Apr-2013
296,Revenue,CCHD,Day Care - South,Private & Voluntary Day Care,Care Horizons Limited,359.16, 30-Apr-2013
297,Revenue,CCHD,Purchase of Non-Res Care - KD,Private & Voluntary Day Care,Care Horizons Limited,1022.16, 03-Apr-2013
298,Revenue,CCHD,Purchase of Non-Res Care - KD,Private & Voluntary Day Care,Care Horizons Limited,762.97, 11-Apr-2013
299,Revenue,CCHD,Supported Living - KD,Private & Voluntary Home Care,Care Horizons Limited,5322.68, 11-Apr-2013
300,Revenue,CCHD,Supported Living - KD,Private & Voluntary Home Care,Care Horizons Limited,5757.26, 29-Apr-2013
301,Revenue,CCHD,Purchase of Non-Res Care - KD,Private & Voluntary Day Care,Care Horizons Limited,1616.48, 29-Apr-2013
302,Revenue,CCHD,Purchase of Non-Res Care - KD,Private & Voluntary Day Care,Care Horizons Limited,1246.52, 29-Apr-2013
303,Revenue,CCHD,Purchase of Non-Res Care - KD,Private & Voluntary Day Care,Care Horizons Limited,1151.57, 29-Apr-2013
304,Revenue,CCHD,Supported Living - KD,Private & Voluntary Day Care,Care Horizons Limited,5322.68, 26-Apr-2013
305,Revenue,CCHD,Home Care - Elderly - North,Other Small Contracts,Care Horizons Limited,2955.33, 05-Apr-2013
306,Revenue,CCHD,Day Care - South,Private & Voluntary Day Care,Care Horizons Limited,355.88, 05-Apr-2013
307,Revenue,CCHD,Home Care - Elderly - North,Other Small Contracts,Care Horizons Limited,3054.22, 17-Apr-2013
308,Revenue,CCHD,Day Care - South,Private & Voluntary Day Care,Care Horizons Limited,355.88, 17-Apr-2013
309,Revenue,CCHD,Home Care - Elderly - North,Other Small Contracts,Care Horizons Limited,2965.17, 04-Apr-2013
310,Revenue,CCHD,Day Care - South,Private & Voluntary Day Care,Care Horizons Limited,351.55, 04-Apr-2013
311,Revenue,CCHD,Home Care - Elderly - North,Other Small Contracts,Care Horizons Limited,2939.01, 04-Apr-2013
312,Revenue,CCHD,Day Care - South,Private & Voluntary Day Care,Care Horizons Limited,351.54, 04-Apr-2013
313,Revenue,CCHD,Home Care - Elderly - North,Other Small Contracts,Care Horizons Limited,2960.52, 04-Apr-2013
314,Revenue,CCHD,Day Care - South,Private & Voluntary Day Care,Care Horizons Limited,360.22, 04-Apr-2013
315,Revenue,CCHD,Home Care - Elderly - North,Other Small Contracts,Care Horizons Limited,2976.38, 22-Apr-2013
316,Revenue,CCHD,Day Care - South,Private & Voluntary Day Care,Care Horizons Limited,359.16, 22-Apr-2013
317,Revenue,CCHD,Home Care - Elderly - South,Other Small Contracts,Care UK,7075.53, 04-Apr-2013
318,Revenue,CCHD,Home Care - Elderly - North,Other Small Contracts,Care UK,3247, 04-Apr-2013
319,Revenue,CCHD,Day Care - South,Private & Voluntary Day Care,Care UK,347.62, 04-Apr-2013
320,Revenue,CCHD,Day Care - North,Private & Voluntary Day Care,Care UK,645.58, 04-Apr-2013
321,Revenue,CCHD,Home care - Elderly MH - North,Other Small Contracts,Care UK,561.54, 04-Apr-2013
322,Revenue,CCHD,Elderly MH Day Care North,Private & Voluntary Day Care,Care UK,137.52, 04-Apr-2013
323,Revenue,CCHD,Home Care - Elderly - South,Other Small Contracts,Care UK,6665.9, 04-Apr-2013
324,Revenue,CCHD,Home Care - Elderly - North,Other Small Contracts,Care UK,3243.18, 04-Apr-2013
325,Revenue,CCHD,Day Care - South,Private & Voluntary Day Care,Care UK,267.4, 04-Apr-2013
326,Revenue,CCHD,Day Care - North,Private & Voluntary Day Care,Care UK,664.68, 04-Apr-2013
327,Revenue,CCHD,Home care - Elderly MH - North,Other Small Contracts,Care UK,595.92, 04-Apr-2013
328,Revenue,CCHD,Elderly MH Day Care North,Private & Voluntary Day Care,Care UK,145.16, 04-Apr-2013
329,Revenue,CCHD,Home Care - Elderly - South,Other Small Contracts,Care UK,6318.28, 04-Apr-2013
330,Revenue,CCHD,Home Care - Elderly - North,Other Small Contracts,Care UK,3086.56, 04-Apr-2013
331,Revenue,CCHD,Day Care - South,Private & Voluntary Day Care,Care UK,297.96, 04-Apr-2013
332,Revenue,CCHD,Day Care - North,Private & Voluntary Day Care,Care UK,654.28, 04-Apr-2013
333,Revenue,CCHD,Home care - Elderly MH - North,Other Small Contracts,Care UK,573, 04-Apr-2013
334,Revenue,CCHD,Elderly MH Day Care North,Private & Voluntary Day Care,Care UK,137.52, 04-Apr-2013
335,Revenue,CCHD,Home Care - Elderly - South,Other Small Contracts,Care UK,6497.82, 30-Apr-2013
336,Revenue,CCHD,Home Care - Elderly - North,Other Small Contracts,Care UK,2811.52, 30-Apr-2013
337,Revenue,CCHD,Day Care - South,Private & Voluntary Day Care,Care UK,297.96, 30-Apr-2013
338,Revenue,CCHD,Day Care - North,Private & Voluntary Day Care,Care UK,611.2, 30-Apr-2013
339,Revenue,CCHD,Home care - Elderly MH - North,Other Small Contracts,Care UK,584.46, 30-Apr-2013
340,Revenue,CCHD,Elderly MH Day Care North,Private & Voluntary Day Care,Care UK,137.52, 30-Apr-2013
341,Revenue,CCHD,Home Care - Elderly - South,Other Small Contracts,Care UK,6440.52, 30-Apr-2013
342,Revenue,CCHD,Home Care - Elderly - North,Other Small Contracts,Care UK,2647.26, 30-Apr-2013
343,Revenue,CCHD,Day Care - South,Private & Voluntary Day Care,Care UK,297.96, 30-Apr-2013
344,Revenue,CCHD,Day Care - North,Private & Voluntary Day Care,Care UK,611.2, 30-Apr-2013
345,Revenue,CCHD,Home care - Elderly MH - North,Other Small Contracts,Care UK,588.28, 30-Apr-2013
346,Revenue,CCHD,Elderly MH Day Care North,Private & Voluntary Day Care,Care UK,141.34, 30-Apr-2013
347,Revenue,CCHD,Home Care - Elderly - North,Other Small Contracts,Carers R Us (Bristol) Limited,588.28, 09-Apr-2013
348,Revenue,CCHD,Home Care - Elderly - North,Other Small Contracts,Carers R Us (Bristol) Limited,580.64, 15-Apr-2013
349,Revenue,CCHD,Home Care - Elderly - North,Other Small Contracts,Carers R Us (Bristol) Limited,579, 22-Apr-2013
350,Revenue,CCHD,Home Care - Elderly - South,Other Small Contracts,Carewatch (Bristol),682.02, 26-Apr-2013
351,Revenue,CCHD,Home Care - Elderly - North,Other Small Contracts,Carewatch (Bristol),1338.78, 26-Apr-2013
352,Revenue,CCHD,Home Care - Elderly - South,Other Small Contracts,Carewatch (Bristol),1164.5, 26-Apr-2013
353,Revenue,CCHD,Home Care - Elderly - North,Other Small Contracts,Carewatch (Bristol),1551.25, 26-Apr-2013
354,Revenue,CCHD,Home Care - Elderly - South,Other Small Contracts,Carewatch (Bristol),665.18, 26-Apr-2013
355,Revenue,CCHD,Home Care - Elderly - North,Other Small Contracts,Carewatch (Bristol),1549.28, 26-Apr-2013
356,Revenue,CCHD,Home Care - Elderly - South,Other Small Contracts,Carewatch (Bristol),770.43, 26-Apr-2013
357,Revenue,CCHD,Home Care - Elderly - North,Other Small Contracts,Carewatch (Bristol),1473.5, 26-Apr-2013
358,Revenue,CCHD,Home Care - Elderly - South,Other Small Contracts,Carewatch (Bristol),762.01, 26-Apr-2013
359,Revenue,CCHD,Home Care - Elderly - North,Other Small Contracts,Carewatch (Bristol),1536.65, 26-Apr-2013
360,Revenue,CCHD,Home Care - Elderly - South,Other Small Contracts,Cash Friday at Lloyds TSB,100.36, 09-Apr-2013
361,Revenue,CCHD,Home Care - Elderly - North,Other Small Contracts,Cash Friday at Lloyds TSB,880.08, 09-Apr-2013
362,Revenue,CCHD,Home Care - Elderly - South,Other Small Contracts,Cash Friday at Lloyds TSB,100.36, 09-Apr-2013
363,Revenue,CCHD,Home Care - Elderly - North,Other Small Contracts,Cash Friday at Lloyds TSB,1003.6, 09-Apr-2013
364,Revenue,CCHD,Home Care - Elderly - South,Other Small Contracts,Cash Friday at Lloyds TSB,100.36, 16-Apr-2013
365,Revenue,CCHD,Home Care - Elderly - North,Other Small Contracts,Cash Friday at Lloyds TSB,1011.32, 16-Apr-2013
366,Revenue,CCHD,Frenchay Hospital Purchasing,Nursing Homes,Cedar Care Homes Ltd,1039.66, 16-Apr-2013
367,Revenue,CCHD,Frenchay Hospital Purchasing,Residential Homes,Centenary Care Homes Ltd,1244.3, 16-Apr-2013
368,Revenue,CCHD,Bed Purchasing - Elderly - South,Residential Homes,Cepen Lodge Care Home,2171.11, 16-Apr-2013
369,Revenue,CCHD,Southmead Hospital Purchasing,Residential Homes,Charlton House Residential Home,1382.26, 16-Apr-2013
370,Revenue,CCHD,Home Care - Elderly - South,Other Small Contracts,Cherish Able Care Limited,3790.4, 05-Apr-2013
371,Revenue,CCHD,Home care - Elderly MH - North,Other Small Contracts,Cherish Able Care Limited,57.68, 05-Apr-2013
372,Revenue,CCHD,Home Care - Elderly - South,Other Small Contracts,Cherish Able Care Limited,4062.32, 12-Apr-2013
373,Revenue,CCHD,Home care - Elderly MH - North,Other Small Contracts,Cherish Able Care Limited,57.68, 12-Apr-2013
374,Revenue,CCHD,Home Care - Elderly - South,Other Small Contracts,Cherish Able Care Limited,4218.88, 19-Apr-2013
375,Revenue,CCHD,Home care - Elderly MH - North,Other Small Contracts,Cherish Able Care Limited,16.48, 19-Apr-2013
376,Revenue,CCHD,Bed purchasing -S28A  Under 65 - North,Residential Homes,Chescombe Lodge,8549.55, 16-Apr-2013
377,Revenue,CCHD,Bed Purchasing - Under 65s PWLD - South,Residential Homes,Chosen Court,5182.62, 16-Apr-2013
378,Revenue,CCHD,Bed Purchasing - Under 65s PWLD - South,Residential Homes,Chosen Court,1711.58, 16-Apr-2013
379,Revenue,CCHD,Bed Purchasing - PWLD S 117 Placements,Residential Homes,Chosen Court,6601.38, 16-Apr-2013
380,Revenue,CCHD,Bed Purchasing - PWLD S 117 Placements,Residential Homes,Chosen Court,2200.46, 16-Apr-2013
381,Revenue,CCHD,Bed Purchasing - Under 65s PWLD - South,Residential Homes,Chosen Court,4159.11, 16-Apr-2013
382,Revenue,CCHD,Bed Purchasing - Under 65s PWLD - South,Residential Homes,Chosen Court,1373.96, 16-Apr-2013
383,Revenue,CCHD,Bed purchasing - Under 65s PWLD - North,Residential Homes,Church House,7765.83, 16-Apr-2013
384,Revenue,CCHD,Bed purchasing - Under 65s PWLD - North,Residential Homes,Church House,2564, 16-Apr-2013
385,Revenue,CCHD,Bed purchasing - Under 65s PWLD - North,Residential Homes,Church House,4366.23, 16-Apr-2013
386,Revenue,CCHD,Bed purchasing - Under 65s PWLD - North,Residential Homes,Church House,1440.34, 16-Apr-2013
387,Revenue,CCHD,Supported Living - PS,Private & Voluntary Home Care,Cintre Community,523.59, 11-Apr-2013
388,Revenue,CCHD,Tenancy Start Up Scheme,Other Supplies & Services,Individual,1300, 17-Apr-2013
389,Revenue,CCHD,Bed Purchasing - Elderly - South,Residential Homes,Cleeve Lodge,1200.63, 16-Apr-2013
390,Revenue,CCHD,Bed Purchasing - Elderly - North,Residential Homes,Cleeve Lodge,755.73, 16-Apr-2013
391,Revenue,CCHD,Southmead Hospital Purchasing,Residential Homes,Cleeve Lodge,1076.43, 16-Apr-2013
392,Revenue,CCHD,Bed Purchasing - Elderly - North,Residential Homes,Cleeve Lodge,934.5, 16-Apr-2013
393,Revenue,CCHD,Bed Purchasing - Elderly - South,Residential Homes,Cleeve Lodge,1331.64, 16-Apr-2013
394,Revenue,CCHD,Bed Purchasing - Elderly - South,Residential Homes,Cleeve Lodge,1323.36, 16-Apr-2013
395,Revenue,CCHD,Bed Purchasing - Elderly - South,Residential Homes,Cleeve Lodge,1693.83, 16-Apr-2013
396,Revenue,CCHD,Bed Purchasing - Elderly - South,Residential Homes,Cleeve Lodge,559.24, 16-Apr-2013
397,Revenue,CCHD,Bed Purchasing - Elderly - South,Residential Homes,Cleeve Lodge,1334.94, 16-Apr-2013
398,Revenue,CCHD,Bed Purchasing - Elderly - South,Residential Homes,Cleeve Lodge,1110.84, 16-Apr-2013
399,Revenue,CCHD,Bed Purchasing - Elderly - South,Residential Homes,Cleeve Lodge,2464.29, 16-Apr-2013
400,Revenue,CCHD,Frenchay Hospital Purchasing,Residential Homes,Collingwood Residential Home,770.01, 16-Apr-2013
401,Revenue,CCHD,Bed Purchasing - Elderly - South,Residential Homes,Collingwood Residential Home,964.89, 16-Apr-2013
402,Revenue,CCHD,Bed Purchasing - Elderly - South,Residential Homes,Collingwood Residential Home,1078.56, 16-Apr-2013
403,Revenue,CCHD,Bed Purchasing - Elderly - South,Residential Homes,Collingwood Residential Home,1069.74, 16-Apr-2013
404,Revenue,CCHD,Bed Purchasing - Elderly - South,Residential Homes,Collingwood Residential Home,793.44, 16-Apr-2013
405,Revenue,CCHD,Bed Purchasing - Elderly - South,Residential Homes,Collingwood Residential Home,1000.71, 16-Apr-2013
406,Revenue,CCHD,Bed Purchasing - Elderly MH - South,Residential Homes,Collingwood Residential Home,979.71, 16-Apr-2013
407,Revenue,CCHD,Bed Purchasing - Elderly - South,Residential Homes,Collingwood Residential Home,1036.77, 16-Apr-2013
408,Revenue,CCHD,Bed Purchasing - Elderly - South,Residential Homes,Collingwood Residential Home,941.31, 16-Apr-2013
409,Revenue,CCHD,Bed Purchasing - Elderly - South,Residential Homes,Collingwood Residential Home,1053.99, 16-Apr-2013
410,Revenue,CCHD,Frenchay Hospital Purchasing,Residential Homes,Coombs Wood House,963.72, 16-Apr-2013
411,Revenue,CCHD,Tenancy Start Up Scheme,Other Supplies & Services,Countrywide Lettings,800, 24-Apr-2013
412,Revenue,CCHD,Bed purchasing -S28A  Under 65 - North,Residential Homes,Cream Ii Ltd  Longrun House,7905.06, 16-Apr-2013
413,Revenue,CCHD,Bed Purchasing - Under 65s PWLD - South,Residential Homes,Cream Ii Ltd  Longrun House,5533.26, 16-Apr-2013
414,Revenue,CCHD,Bed purchasing -S28A  Under 65 - North,Residential Homes,Creedy Court,6867.99, 16-Apr-2013
415,Revenue,CCHD,Bed purchasing -S28A  Under 65 - North,Residential Homes,Creedy Court,2268.71, 16-Apr-2013
416,Revenue,CCHD,Bed Purchasing - S28A - Over 65- North,Residential Homes,Creedy Court,5712.57, 16-Apr-2013
417,Revenue,CCHD,Bed Purchasing - S28A - Over 65- North,Residential Homes,Creedy Court,1887.23, 16-Apr-2013
418,Revenue,CCHD,Brokerage and Information Service,Grants to Voluntary Bodies,D H I,9210.08, 26-Apr-2013
419,Revenue,CCHD,Purchase of Non-Res Care - PS,Private & Voluntary Day Care,Daneswood,5023, 15-Apr-2013
420,Revenue,CCHD,Bed Purchasing - Under 65s PWLD - South,Residential Homes,Daneswood,8136.33, 16-Apr-2013
421,Revenue,CCHD,Bed Purchasing - Under 65s PWLD - South,Residential Homes,Daneswood,2688.72, 16-Apr-2013
422,Revenue,CCHD,Bed purchasing - Under 65s PWLD - North,Residential Homes,Daneswood,6740.13, 16-Apr-2013
423,Revenue,CCHD,Bed purchasing - Under 65s PWLD - North,Residential Homes,Daneswood,2225.31, 16-Apr-2013
424,Revenue,CCHD,Learning Difficulties PSL,Other Supplies & Services,Individual,2016.44, 22-Apr-2013
425,Revenue,CCHD,General EPH budgets,Other Supplies & Services,Derek Browne & Associates,1534, 19-Apr-2013
426,Revenue,CCHD,Purchase of Non-Res Care - KD,Private & Voluntary Day Care,Design 4 Life Ltd,1024.8, 19-Apr-2013
427,Revenue,CCHD,Purchase of Non-Res Care - KD,Private & Voluntary Day Care,Design 4 Life Ltd,1537.2, 19-Apr-2013
428,Revenue,CCHD,Purchase of Non-Res Care - KD,Private & Voluntary Day Care,Design 4 Life Ltd,1472.24, 19-Apr-2013
429,Revenue,CCHD,Bed Purchasing - Under 65s PWLD - South,Residential Homes,Devon & Cornwall Autistic Community Trus,8648.64, 16-Apr-2013
430,Revenue,CCHD,Day Care - South,Private & Voluntary Day Care,Dhek Bhal,835.6, 16-Apr-2013
431,Revenue,CCHD,Day Care - South,Private & Voluntary Day Care,Dhek Bhal,668.48, 16-Apr-2013
432,Revenue,CCHD,Bed Purchasing - Under 65s PWLD - South,Residential Homes,Dimensions (Uk),4797.13, 16-Apr-2013
433,Revenue,CCHD,Supported Living - PS,Private & Voluntary Home Care,Dimensions (UK) Ltd,8006.68, 17-Apr-2013
434,Revenue,CCHD,Home Care - Elderly - South,Other Small Contracts,DoCare Ltd,2961.42, 10-Apr-2013
435,Revenue,CCHD,Home Care - Elderly - North,Other Small Contracts,DoCare Ltd,5978.28, 10-Apr-2013
436,Revenue,CCHD,Day Care - South,Private & Voluntary Day Care,DoCare Ltd,60.06, 10-Apr-2013
437,Revenue,CCHD,Day Care - North,Private & Voluntary Day Care,DoCare Ltd,221.76, 10-Apr-2013
438,Revenue,CCHD,Home Care - Elderly - South,Other Small Contracts,DoCare Ltd,3284.82, 10-Apr-2013
439,Revenue,CCHD,Home Care - Elderly - North,Other Small Contracts,DoCare Ltd,6010.62, 10-Apr-2013
440,Revenue,CCHD,Day Care - North,Private & Voluntary Day Care,DoCare Ltd,170.94, 10-Apr-2013
441,Revenue,CCHD,Home Care - Elderly - South,Other Small Contracts,DoCare Ltd,3016.86, 17-Apr-2013
442,Revenue,CCHD,Home Care - Elderly - North,Other Small Contracts,DoCare Ltd,6237, 17-Apr-2013
443,Revenue,CCHD,Day Care - North,Private & Voluntary Day Care,DoCare Ltd,221.76, 17-Apr-2013
444,Revenue,CCHD,Home Care - Elderly - South,Other Small Contracts,DoCare Ltd,3696, 24-Apr-2013
445,Revenue,CCHD,Home Care - Elderly - North,Other Small Contracts,DoCare Ltd,6070.68, 24-Apr-2013
446,Revenue,CCHD,Day Care - North,Private & Voluntary Day Care,DoCare Ltd,221.76, 24-Apr-2013
447,Revenue,CCHD,Bed Purchasing - Elderly - South,Nursing Homes,Dunkirk Memorial House,1158.38, 16-Apr-2013
448,Revenue,CCHD,MH Purchasing - Younger,Residential Homes,Dunraven House,1822.66, 16-Apr-2013
449,Revenue,CCHD,Bed and Breakfast,Bed & Breakfast,E J Bartlett,735, 03-Apr-2013
450,Revenue,CCHD,Bed and Breakfast,Bed & Breakfast,E J Bartlett,840, 03-Apr-2013
451,Revenue,CCHD,Bed and Breakfast,Bed & Breakfast,E J Bartlett,420, 03-Apr-2013
452,Revenue,CCHD,Bed and Breakfast,Bed & Breakfast,E J Bartlett,525, 03-Apr-2013
453,Revenue,CCHD,Bed and Breakfast,Bed & Breakfast,E J Bartlett,420, 03-Apr-2013
454,Revenue,CCHD,Bed and Breakfast,Bed & Breakfast,E J Bartlett,630, 03-Apr-2013
455,Revenue,CCHD,Bed and Breakfast,Bed & Breakfast,E J Bartlett,735, 04-Apr-2013
456,Revenue,CCHD,Bed and Breakfast,Bed & Breakfast,E J Bartlett,840, 04-Apr-2013
457,Revenue,CCHD,Bed and Breakfast,Bed & Breakfast,E J Bartlett,420, 04-Apr-2013
458,Revenue,CCHD,Bed and Breakfast,Bed & Breakfast,E J Bartlett,420, 19-Apr-2013
459,Revenue,CCHD,Bed and Breakfast,Bed & Breakfast,E J Bartlett,630, 04-Apr-2013
460,Revenue,CCHD,Bed and Breakfast,Bed & Breakfast,E J Bartlett,759.5, 19-Apr-2013
461,Revenue,CCHD,Bed and Breakfast,Bed & Breakfast,E J Bartlett,868, 19-Apr-2013
462,Revenue,CCHD,Bed and Breakfast,Bed & Breakfast,E J Bartlett,797, 19-Apr-2013
463,Revenue,CCHD,Bed and Breakfast,Bed & Breakfast,E J Bartlett,434, 19-Apr-2013
464,Revenue,CCHD,Bed and Breakfast,Bed & Breakfast,E J Bartlett,651, 19-Apr-2013
465,Revenue,CCHD,Bed and Breakfast,Bed & Breakfast,E J Bartlett,930, 19-Apr-2013
466,Revenue,CCHD,Bed and Breakfast,Bed & Breakfast,E J Bartlett,759.5, 19-Apr-2013
467,Revenue,CCHD,Bed and Breakfast,Bed & Breakfast,E J Bartlett,868, 19-Apr-2013
468,Revenue,CCHD,Bed and Breakfast,Bed & Breakfast,E J Bartlett,527, 19-Apr-2013
469,Revenue,CCHD,Bed and Breakfast,Bed & Breakfast,E J Bartlett,434, 19-Apr-2013
470,Revenue,CCHD,Bed and Breakfast,Bed & Breakfast,E J Bartlett,651, 19-Apr-2013
471,Revenue,CCHD,Bed purchasing - Under 65s PWLD - North,Residential Homes,East Court,2175.74, 16-Apr-2013
472,Revenue,CCHD,Bed purchasing - Under 65s PWLD - North,Residential Homes,Ebley House,11474.72, 16-Apr-2013
473,Revenue,CCHD,Safeguarding and DOLs,Other Supplies & Services,Edge Training & Consultancy Limited,600, 12-Apr-2013
474,Revenue,CCHD,Southmead Hospital Purchasing,Residential Homes,Edgecumbe Lodge,934.5, 16-Apr-2013
475,Revenue,CCHD,Bed Purchasing - Elderly - South,Residential Homes,Edgecumbe Lodge,789.12, 16-Apr-2013
476,Revenue,CCHD,Bed Purchasing - Elderly - South,Residential Homes,Edgecumbe Lodge,983.97, 16-Apr-2013
477,Revenue,CCHD,Bed Purchasing - Elderly - South,Residential Homes,Edgecumbe Lodge,928.2, 16-Apr-2013
478,Revenue,CCHD,Bed Purchasing - Elderly - South,Residential Homes,Edgecumbe Lodge,743.97, 16-Apr-2013
479,Revenue,CCHD,Frenchay Hospital Purchasing,Residential Homes,Edgecumbe Lodge,962.49, 16-Apr-2013
480,Revenue,CCHD,Bed Purchasing - Elderly - South,Residential Homes,Edgecumbe Lodge,872.86, 16-Apr-2013
481,Revenue,CCHD,Frenchay Hospital Purchasing,Residential Homes,Edgecumbe Lodge,917.37, 16-Apr-2013
482,Revenue,CCHD,Bed Purchasing - Elderly MH - South,Residential Homes,Edgecumbe Lodge,863.76, 16-Apr-2013
483,Revenue,CCHD,Southmead Hospital Purchasing,Residential Homes,Edgemont House Ltd,1060.5, 16-Apr-2013
484,Revenue,CCHD,Bed Purchasing - Elderly - South,Residential Homes,Edgemont House Ltd,934.5, 16-Apr-2013
485,Revenue,CCHD,Bed Purchasing - Elderly - South,Residential Homes,Edgemont House Ltd,575.34, 16-Apr-2013
486,Revenue,CCHD,Bed Purchasing - Elderly - South,Residential Homes,Edgemont House Ltd,934.5, 16-Apr-2013
487,Revenue,CCHD,Frenchay Hospital Purchasing,Residential Homes,Edgemont House Ltd,1027.53, 16-Apr-2013
488,Revenue,CCHD,Bed Purchasing - Elderly - South,Residential Homes,Edgemont House Ltd,1068.03, 16-Apr-2013
489,Revenue,CCHD,Bed Purchasing - Elderly - South,Nursing Homes,Edgemont View Nursing Home,1070.64, 16-Apr-2013
490,Revenue,CCHD,Frenchay Hospital Purchasing,Nursing Homes,Edgemont View Nursing Home,1014, 16-Apr-2013
491,Revenue,CCHD,Bed Purchasing - Elderly - South,Nursing Homes,Edgemont View Nursing Home,976.5, 16-Apr-2013
492,Revenue,CCHD,Bed Purchasing - Elderly - South,Nursing Homes,Edgemont View Nursing Home,1210.14, 16-Apr-2013
493,Revenue,CCHD,Bed Purchasing - Elderly - South,Nursing Homes,Edgemont View Nursing Home,882.93, 16-Apr-2013
494,Revenue,CCHD,NTS Grant - Trainee Social Wor,Training Expenses,Eils/Scils,3150, 15-Apr-2013
495,Revenue,CCHD,Supporting People Programme,Grants to Voluntary Bodies,Elim Housing Association Limited,4945.25, 05-Apr-2013
496,Revenue,CCHD,Home Care - Elderly - South,Other Small Contracts,Elite Home Care Ltd,3754.11, 04-Apr-2013
497,Revenue,CCHD,Under 65s -MH  Home Care Purch,Other Small Contracts,Elite Home Care Ltd,86.6, 04-Apr-2013
498,Revenue,CCHD,Home care - Elderly MH - North,Other Small Contracts,Elite Home Care Ltd,359.39, 04-Apr-2013
499,Revenue,CCHD,Home Care - Elderly - South,Other Small Contracts,Elite Home Care Ltd,3736.79, 04-Apr-2013
500,Revenue,CCHD,Under 65s -MH  Home Care Purch,Other Small Contracts,Elite Home Care Ltd,86.6, 04-Apr-2013
501,Revenue,CCHD,Home care - Elderly MH - North,Other Small Contracts,Elite Home Care Ltd,363.72, 04-Apr-2013
502,Revenue,CCHD,Home Care - Elderly - South,Other Small Contracts,Elite Home Care Ltd,3827.72, 04-Apr-2013
503,Revenue,CCHD,Under 65s -MH  Home Care Purch,Other Small Contracts,Elite Home Care Ltd,86.6, 04-Apr-2013
504,Revenue,CCHD,Home care - Elderly MH - North,Other Small Contracts,Elite Home Care Ltd,155.88, 04-Apr-2013
505,Revenue,CCHD,Home Care - Elderly - South,Other Small Contracts,Elite Home Care Ltd,3559.26, 24-Apr-2013
506,Revenue,CCHD,Under 65s -MH  Home Care Purch,Other Small Contracts,Elite Home Care Ltd,86.6, 24-Apr-2013
507,Revenue,CCHD,Home care - Elderly MH - North,Other Small Contracts,Elite Home Care Ltd,155.88, 24-Apr-2013
508,Revenue,CCHD,Home Care - Elderly - South,Other Small Contracts,Elite Home Care Ltd,4061.54, 24-Apr-2013
509,Revenue,CCHD,Under 65s -MH  Home Care Purch,Other Small Contracts,Elite Home Care Ltd,86.6, 24-Apr-2013
510,Revenue,CCHD,Home care - Elderly MH - North,Other Small Contracts,Elite Home Care Ltd,155.88, 24-Apr-2013
511,Revenue,CCHD,Home Care - Elderly - South,Other Small Contracts,Elite Home Care Ltd,4433.92, 24-Apr-2013
512,Revenue,CCHD,Under 65s -MH  Home Care Purch,Other Small Contracts,Elite Home Care Ltd,86.6, 24-Apr-2013
513,Revenue,CCHD,Home care - Elderly MH - North,Other Small Contracts,Elite Home Care Ltd,160.21, 24-Apr-2013
514,Revenue,CCHD,Home Care - Elderly - South,Other Small Contracts,Elite Home Care Ltd,4330.19, 24-Apr-2013
515,Revenue,CCHD,Under 65s -MH  Home Care Purch,Other Small Contracts,Elite Home Care Ltd,8.74, 24-Apr-2013
516,Revenue,CCHD,Home care - Elderly MH - North,Other Small Contracts,Elite Home Care Ltd,157.32, 24-Apr-2013
517,Revenue,CCHD,Bed Purchasing - Elderly - South,Residential Homes,Elmbridge Residential Home Ltd,1315.5, 16-Apr-2013
518,Revenue,CCHD,Frenchay Hospital Purchasing,Nursing Homes,Elmwood Nursing Home,2221.19, 16-Apr-2013
519,Revenue,CCHD,Younger MH non-res purchasing,Private & Voluntary Day Care,Enham,638.72, 15-Apr-2013
520,Revenue,CCHD,Southmead Hospital Purchasing,Nursing Homes,Epworth House,1333.05, 16-Apr-2013
521,Revenue,CCHD,Home Care - Elderly - South,Other Small Contracts,Everycare (Bristol) Ltd,2398.2, 04-Apr-2013
522,Revenue,CCHD,Home Care - Elderly - North,Other Small Contracts,Everycare (Bristol) Ltd,2675.4, 04-Apr-2013
523,Revenue,CCHD,Home Care - Elderly - South,Other Small Contracts,Everycare (Bristol) Ltd,2133.6, 16-Apr-2013
524,Revenue,CCHD,Home Care - Elderly - North,Other Small Contracts,Everycare (Bristol) Ltd,2486.4, 16-Apr-2013
525,Revenue,CCHD,Home Care - Elderly - South,Other Small Contracts,Everycare (Bristol) Ltd,2814, 16-Apr-2013
526,Revenue,CCHD,Home Care - Elderly - North,Other Small Contracts,Everycare (Bristol) Ltd,2314.2, 16-Apr-2013
527,Revenue,CCHD,Home Care - Elderly - South,Other Small Contracts,Everycare (Bristol) Ltd,3693.04, 30-Apr-2013
528,Revenue,CCHD,Home Care - Elderly - North,Other Small Contracts,Everycare (Bristol) Ltd,2922.8, 30-Apr-2013
529,Revenue,CCHD,Home Care - Elderly - South,Other Small Contracts,Everycare (Bristol) Ltd,4235.76, 30-Apr-2013
530,Revenue,CCHD,Home Care - Elderly - North,Other Small Contracts,Everycare (Bristol) Ltd,2473.32, 30-Apr-2013
531,Revenue,CCHD,Home Care - Elderly - South,Other Small Contracts,Everycare (Bristol) Ltd,3070.2, 30-Apr-2013
532,Revenue,CCHD,Home Care - Elderly - North,Other Small Contracts,Everycare (Bristol) Ltd,2650.2, 30-Apr-2013
533,Revenue,CCHD,Bed Purchasing - Elderly MH - South,Residential Homes,Exmouth House,1394.14, 16-Apr-2013
534,Revenue,CCHD,Southmead Hospital Purchasing,Residential Homes,Fairfield House Care Home,1434.01, 16-Apr-2013
535,Revenue,CCHD,South Glos Users in South Glos Homes,Nursing Homes,Fairview Court,3354.17, 16-Apr-2013
536,Revenue,CCHD,Bed Purchasing - Elderly - South,Nursing Homes,Fairview Court,885.3, 16-Apr-2013
537,Revenue,CCHD,Bed purchasing - Elderly MH - North,Nursing Homes,Fairview Court,1211.01, 16-Apr-2013
538,Revenue,CCHD,Bed Purchasing - Elderly MH - South,Nursing Homes,Fairview Court,1334.49, 16-Apr-2013
539,Revenue,CCHD,Southmead Hospital Purchasing,Nursing Homes,Fairview Court,1001.6, 16-Apr-2013
540,Revenue,CCHD,Southmead Hospital Purchasing,Nursing Homes,Fairview Court,767.79, 16-Apr-2013
541,Revenue,CCHD,Bed Purchasing - Elderly MH - South,Residential Homes,Fairview Court,1018.71, 16-Apr-2013
542,Revenue,CCHD,Bed Purchasing - Elderly - South,Residential Homes,Fairview Court,1986.42, 16-Apr-2013
543,Revenue,CCHD,Bed Purchasing - Elderly - South,Residential Homes,Fairview Court,655.84, 16-Apr-2013
544,Revenue,CCHD,Bed Purchasing - Elderly - South,Residential Homes,Fairview Court,1600.92, 16-Apr-2013
545,Revenue,CCHD,Bed Purchasing - Elderly - South,Residential Homes,Fairview Court,529.64, 16-Apr-2013
546,Revenue,CCHD,Bed Purchasing - Elderly MH - South,Nursing Homes,Fairview Court,1502.16, 16-Apr-2013
547,Revenue,CCHD,Bed purchasing - Elderly MH - North,Nursing Homes,Fairview Court,3818.16, 16-Apr-2013
548,Revenue,CCHD,Bed purchasing - Elderly MH - North,Nursing Homes,Fairview Court,1214, 16-Apr-2013
549,Revenue,CCHD,Frenchay Hospital Purchasing,Nursing Homes,Fairview Court Care Home,1491.68, 10-Apr-2013
550,Revenue,CCHD,South Glos Users in South Glos Homes,Nursing Homes,Fairview Court Care Home,2888.31, 10-Apr-2013
551,Revenue,CCHD,Bed purchasing - Phys Dis - North,Nursing Homes,Fairview Court Care Home,1976.55, 10-Apr-2013
552,Revenue,CCHD,Bed Purchasing - Elderly MH - South,Nursing Homes,Fairview Court Care Home,4678.7, 10-Apr-2013
553,Revenue,CCHD,Bed purchasing - Elderly S117 - South,Nursing Homes,Fairview Court Care Home,2550.02, 10-Apr-2013
554,Revenue,CCHD,Bed Purchasing - Elderly - South,Residential Homes,Fairview House,649.11, 16-Apr-2013
555,Revenue,CCHD,Bed Purchasing - Elderly - South,Residential Homes,Fairview House,948.93, 16-Apr-2013
556,Revenue,CCHD,Frenchay Hospital Purchasing,Residential Homes,Fairview House,744.18, 16-Apr-2013
557,Revenue,CCHD,Bed Purchasing - Elderly - South,Residential Homes,Fairview House,696.09, 16-Apr-2013
558,Revenue,CCHD,Bed purchasing - Elderly S117 - South,Residential Homes,Fairview House,1052.16, 16-Apr-2013
559,Revenue,CCHD,Southmead Hospital Purchasing,Residential Homes,Fairview House,763.8, 16-Apr-2013
560,Revenue,CCHD,Bed Purchasing - Elderly - South,Residential Homes,Fairview House,1293.19, 16-Apr-2013
561,Revenue,CCHD,Bed Purchasing - Elderly MH - South,Residential Homes,Fairview House,1007.14, 16-Apr-2013
562,Revenue,CCHD,Bed Purchasing - Elderly - South,Residential Homes,Fairview House,869.13, 16-Apr-2013
563,Revenue,CCHD,Southmead Hospital Purchasing,Residential Homes,Fairview House,837.18, 16-Apr-2013
564,Revenue,CCHD,Bed Purchasing - Elderly MH - South,Residential Homes,Fairview House,827.31, 16-Apr-2013
565,Revenue,CCHD,Frenchay Hospital Purchasing,Residential Homes,Fairview House,934.5, 16-Apr-2013
566,Revenue,CCHD,Southmead Hospital Purchasing,Residential Homes,Fairview House,796.62, 16-Apr-2013
567,Revenue,CCHD,Bed Purchasing - Elderly MH - South,Residential Homes,Fairview House,778.05, 16-Apr-2013
568,Revenue,CCHD,Bed Purchasing - Elderly MH - South,Residential Homes,Fairview House,894.69, 16-Apr-2013
569,Revenue,CCHD,Frenchay Hospital Purchasing,Residential Homes,Faith House,1308.69, 16-Apr-2013
570,Revenue,CCHD,Bed Purchasing - Elderly - North,Residential Homes,Faith House,1090, 16-Apr-2013
571,Revenue,CCHD,Bed purchasing - Under 65s PWLD - North,Residential Homes,Fernbank,8539.85, 16-Apr-2013
572,Revenue,CCHD,Purchase of Non-Res Care - PS,Private & Voluntary Day Care,Firstpoint Homecare Ltd,1273.07, 03-Apr-2013
573,Revenue,CCHD,Purchase of Non-Res Care - PS,Private & Voluntary Day Care,Firstpoint Homecare Ltd,1273.07, 15-Apr-2013
574,Revenue,CCHD,Purchase of Non-Res Care - PS,Private & Voluntary Day Care,Firstpoint Homecare Ltd,1038.43, 16-Apr-2013
575,Revenue,CCHD,Purchase of Non-Res Care - PS,Private & Voluntary Day Care,Firstpoint Homecare Ltd,1038.43, 19-Apr-2013
576,Revenue,CCHD,Purchase of Non-Res Care - PS,Private & Voluntary Day Care,Firstpoint Homecare Ltd,1273.07, 24-Apr-2013
577,Revenue,CCHD,Home Care - Elderly - South,Other Small Contracts,Firstpoint Homecare Ltd,1919, 09-Apr-2013
578,Revenue,CCHD,Home Care - Elderly - North,Other Small Contracts,Firstpoint Homecare Ltd,801.8, 09-Apr-2013
579,Revenue,CCHD,Day Care - South,Private & Voluntary Day Care,Firstpoint Homecare Ltd,494, 09-Apr-2013
580,Revenue,CCHD,Day Care - North,Private & Voluntary Day Care,Firstpoint Homecare Ltd,243.2, 09-Apr-2013
581,Revenue,CCHD,Under 65s -MH  Home Care Purch,Other Small Contracts,Firstpoint Homecare Ltd,45.6, 09-Apr-2013
582,Revenue,CCHD,Younger MH non-res purchasing,Private & Voluntary Day Care,Firstpoint Homecare Ltd,68.4, 09-Apr-2013
583,Revenue,CCHD,Home care - Elderly MH - North,Other Small Contracts,Firstpoint Homecare Ltd,201.4, 09-Apr-2013
584,Revenue,CCHD,Elderly MH Day Care North,Private & Voluntary Day Care,Firstpoint Homecare Ltd,98.8, 09-Apr-2013
585,Revenue,CCHD,Home Care - Elderly - South,Other Small Contracts,Firstpoint Homecare Ltd,1607.4, 05-Apr-2013
586,Revenue,CCHD,Home Care - Elderly - North,Other Small Contracts,Firstpoint Homecare Ltd,851.2, 05-Apr-2013
587,Revenue,CCHD,Day Care - South,Private & Voluntary Day Care,Firstpoint Homecare Ltd,516.8, 05-Apr-2013
588,Revenue,CCHD,Day Care - North,Private & Voluntary Day Care,Firstpoint Homecare Ltd,243.2, 05-Apr-2013
589,Revenue,CCHD,Younger MH non-res purchasing,Private & Voluntary Day Care,Firstpoint Homecare Ltd,68.4, 05-Apr-2013
590,Revenue,CCHD,Home care - Elderly MH - North,Other Small Contracts,Firstpoint Homecare Ltd,205.2, 05-Apr-2013
591,Revenue,CCHD,Elderly MH Day Care North,Private & Voluntary Day Care,Firstpoint Homecare Ltd,91.2, 05-Apr-2013
592,Revenue,CCHD,Home Care - Elderly - South,Other Small Contracts,Firstpoint Homecare Ltd,1550.4, 09-Apr-2013
593,Revenue,CCHD,Home Care - Elderly - North,Other Small Contracts,Firstpoint Homecare Ltd,847.4, 09-Apr-2013
594,Revenue,CCHD,Day Care - South,Private & Voluntary Day Care,Firstpoint Homecare Ltd,490.2, 09-Apr-2013
595,Revenue,CCHD,Day Care - North,Private & Voluntary Day Care,Firstpoint Homecare Ltd,243.2, 09-Apr-2013
596,Revenue,CCHD,Under 65s -MH  Home Care Purch,Other Small Contracts,Firstpoint Homecare Ltd,45.6, 09-Apr-2013
597,Revenue,CCHD,Younger MH non-res purchasing,Private & Voluntary Day Care,Firstpoint Homecare Ltd,129.2, 09-Apr-2013
598,Revenue,CCHD,Home care - Elderly MH - North,Other Small Contracts,Firstpoint Homecare Ltd,201.4, 09-Apr-2013
599,Revenue,CCHD,Elderly MH Day Care North,Private & Voluntary Day Care,Firstpoint Homecare Ltd,91.2, 09-Apr-2013
600,Revenue,CCHD,Home Care - Elderly - South,Other Small Contracts,Firstpoint Homecare Ltd,1865.8, 05-Apr-2013
601,Revenue,CCHD,Home Care - Elderly - North,Other Small Contracts,Firstpoint Homecare Ltd,927.2, 05-Apr-2013
602,Revenue,CCHD,Day Care - South,Private & Voluntary Day Care,Firstpoint Homecare Ltd,490.2, 05-Apr-2013
603,Revenue,CCHD,Day Care - North,Private & Voluntary Day Care,Firstpoint Homecare Ltd,243.2, 05-Apr-2013
604,Revenue,CCHD,Under 65s -MH  Home Care Purch,Other Small Contracts,Firstpoint Homecare Ltd,41.8, 05-Apr-2013
605,Revenue,CCHD,Younger MH non-res purchasing,Private & Voluntary Day Care,Firstpoint Homecare Ltd,129.2, 05-Apr-2013
606,Revenue,CCHD,Home care - Elderly MH - North,Other Small Contracts,Firstpoint Homecare Ltd,201.4, 05-Apr-2013
607,Revenue,CCHD,Elderly MH Day Care North,Private & Voluntary Day Care,Firstpoint Homecare Ltd,95, 05-Apr-2013
608,Revenue,CCHD,Home Care - Elderly - South,Other Small Contracts,Firstpoint Homecare Ltd,1907.6, 22-Apr-2013
609,Revenue,CCHD,Home Care - Elderly - North,Other Small Contracts,Firstpoint Homecare Ltd,999.4, 22-Apr-2013
610,Revenue,CCHD,Day Care - South,Private & Voluntary Day Care,Firstpoint Homecare Ltd,418, 22-Apr-2013
611,Revenue,CCHD,Day Care - North,Private & Voluntary Day Care,Firstpoint Homecare Ltd,243.2, 22-Apr-2013
612,Revenue,CCHD,Under 65s -MH  Home Care Purch,Other Small Contracts,Firstpoint Homecare Ltd,41.8, 22-Apr-2013
613,Revenue,CCHD,Younger MH non-res purchasing,Private & Voluntary Day Care,Firstpoint Homecare Ltd,68.4, 22-Apr-2013
614,Revenue,CCHD,Home care - Elderly MH - North,Other Small Contracts,Firstpoint Homecare Ltd,201.4, 22-Apr-2013
615,Revenue,CCHD,Elderly MH Day Care North,Private & Voluntary Day Care,Firstpoint Homecare Ltd,91.2, 22-Apr-2013
616,Revenue,CCHD,Home Care - Elderly - South,Other Small Contracts,Firstpoint Homecare Ltd,1596, 22-Apr-2013
617,Revenue,CCHD,Home Care - Elderly - North,Other Small Contracts,Firstpoint Homecare Ltd,1022.2, 22-Apr-2013
618,Revenue,CCHD,Day Care - South,Private & Voluntary Day Care,Firstpoint Homecare Ltd,334.4, 22-Apr-2013
619,Revenue,CCHD,Day Care - North,Private & Voluntary Day Care,Firstpoint Homecare Ltd,197.6, 22-Apr-2013
620,Revenue,CCHD,Under 65s -MH  Home Care Purch,Other Small Contracts,Firstpoint Homecare Ltd,45.6, 22-Apr-2013
621,Revenue,CCHD,Younger MH non-res purchasing,Private & Voluntary Day Care,Firstpoint Homecare Ltd,68.4, 22-Apr-2013
622,Revenue,CCHD,Home care - Elderly MH - North,Other Small Contracts,Firstpoint Homecare Ltd,193.8, 22-Apr-2013
623,Revenue,CCHD,Elderly MH Day Care North,Private & Voluntary Day Care,Firstpoint Homecare Ltd,91.2, 22-Apr-2013
624,Revenue,CCHD,Home Care - Elderly - South,Other Small Contracts,Firstpoint Homecare Ltd,1532.16, 30-Apr-2013
625,Revenue,CCHD,Home Care - Elderly - North,Other Small Contracts,Firstpoint Homecare Ltd,1052.16, 30-Apr-2013
626,Revenue,CCHD,Day Care - South,Private & Voluntary Day Care,Firstpoint Homecare Ltd,276.48, 30-Apr-2013
627,Revenue,CCHD,Day Care - North,Private & Voluntary Day Care,Firstpoint Homecare Ltd,249.6, 30-Apr-2013
628,Revenue,CCHD,Under 65s -MH  Home Care Purch,Other Small Contracts,Firstpoint Homecare Ltd,46.08, 30-Apr-2013
629,Revenue,CCHD,Younger MH non-res purchasing,Private & Voluntary Day Care,Firstpoint Homecare Ltd,130.56, 30-Apr-2013
630,Revenue,CCHD,Home care - Elderly MH - North,Other Small Contracts,Firstpoint Homecare Ltd,203.52, 30-Apr-2013
631,Revenue,CCHD,Elderly MH Day Care North,Private & Voluntary Day Care,Firstpoint Homecare Ltd,92.16, 30-Apr-2013
632,Revenue,CCHD,Training - Adult Services,Training Expenses,Focal Point UK,523.8, 12-Apr-2013
633,Revenue,CCHD,Bed Purchasing - Elderly - South,Nursing Homes,Four Seasons Health Care,1175.77, 16-Apr-2013
634,Revenue,CCHD,Bed Purchasing - Elderly S117- North,Residential Homes,Four Seasons Health Care,1522.77, 16-Apr-2013
635,Revenue,CCHD,Bed Purchasing - Elderly S117- North,Residential Homes,Four Seasons Health Care,502.76, 16-Apr-2013
636,Revenue,CCHD,Frenchay Hospital Purchasing,Residential Homes,Four Seasons Health Care,1144.95, 16-Apr-2013
637,Revenue,CCHD,Home Care - Elderly - South,Other Small Contracts,Freedom Social Care Recruitment,888.75, 04-Apr-2013
638,Revenue,CCHD,Home Care - Elderly - North,Other Small Contracts,Freedom Social Care Recruitment,2580.06, 04-Apr-2013
639,Revenue,CCHD,Home care - Elderly MH - North,Other Small Contracts,Freedom Social Care Recruitment,15.8, 04-Apr-2013
640,Revenue,CCHD,Home Care - Elderly - South,Other Small Contracts,Freedom Social Care Recruitment,872.95, 04-Apr-2013
641,Revenue,CCHD,Home Care - Elderly - North,Other Small Contracts,Freedom Social Care Recruitment,2655.11, 04-Apr-2013
642,Revenue,CCHD,Home care - Elderly MH - North,Other Small Contracts,Freedom Social Care Recruitment,15.8, 04-Apr-2013
643,Revenue,CCHD,Home Care - Elderly - South,Other Small Contracts,Freedom Social Care Recruitment,671.5, 04-Apr-2013
644,Revenue,CCHD,Home Care - Elderly - North,Other Small Contracts,Freedom Social Care Recruitment,2548.46, 04-Apr-2013
645,Revenue,CCHD,Home care - Elderly MH - North,Other Small Contracts,Freedom Social Care Recruitment,15.8, 04-Apr-2013
646,Revenue,CCHD,Home Care - Elderly - South,Other Small Contracts,Freedom Social Care Recruitment,841.35, 04-Apr-2013
647,Revenue,CCHD,Home Care - Elderly - North,Other Small Contracts,Freedom Social Care Recruitment,2750.63, 04-Apr-2013
648,Revenue,CCHD,Home care - Elderly MH - North,Other Small Contracts,Freedom Social Care Recruitment,15.8, 04-Apr-2013
649,Revenue,CCHD,Freeways,Residential Homes,Freeways Trust Limited,44356.49, 16-Apr-2013
650,Revenue,CCHD,Supported Living - PS,Private & Voluntary Home Care,Freeways Trust Limited,1868.13, 12-Apr-2013
651,Revenue,CCHD,Supported Living - PS,Private & Voluntary Home Care,Freeways Trust Limited,1447.38, 12-Apr-2013
652,Revenue,CCHD,Supported Living - PS,Private & Voluntary Home Care,Freeways Trust Limited,1582.02, 12-Apr-2013
653,Revenue,CCHD,Supported Living - PS,Private & Voluntary Home Care,Freeways Trust Limited,992.97, 12-Apr-2013
654,Revenue,CCHD,Purchase of Non-Res Care - KD,Private & Voluntary Day Care,Freeways Trust Limited,631.32, 23-Apr-2013
655,Revenue,CCHD,Supported Living - PS,Private & Voluntary Home Care,Freeways Trust Limited,1363.23, 12-Apr-2013
656,Revenue,CCHD,Supported Living - PS,Private & Voluntary Home Care,Freeways Trust Limited,1582.02, 15-Apr-2013
657,Revenue,CCHD,Supported Living - PS,Private & Voluntary Home Care,Freeways Trust Limited,1211.76, 12-Apr-2013
658,Revenue,CCHD,Supported Living - PS,Private & Voluntary Home Care,Freeways Trust Limited,1203.35, 12-Apr-2013
659,Revenue,CCHD,Supported Living - PS,Private & Voluntary Home Care,Freeways Trust Limited,1308.84, 26-Apr-2013
660,Revenue,CCHD,Bed purchasing - Under 65s PWLD - North,Residential Homes,Freeways Trust Ltd,2113.41, 16-Apr-2013
661,Revenue,CCHD,Bed purchasing - Under 65s PWLD - North,Residential Homes,Freeways Trust Ltd,697.97, 16-Apr-2013
662,Revenue,CCHD,Bed purchasing - S28A Under 65 - South,Residential Homes,Freeways Trust Ltd,2893.65, 16-Apr-2013
663,Revenue,CCHD,Bed purchasing - Under 65s PWLD - North,Residential Homes,Freeways Trust Ltd,2011.77, 16-Apr-2013
664,Revenue,CCHD,Bed purchasing - Under 65s PWLD - North,Residential Homes,Freeways Trust Ltd,664.41, 16-Apr-2013
665,Revenue,CCHD,Bed purchasing - Under 65s PWLD - North,Residential Homes,Freeways Trust Ltd,1689.87, 16-Apr-2013
666,Revenue,CCHD,Bed purchasing - Under 65s PWLD - North,Residential Homes,Freeways Trust Ltd,558.13, 16-Apr-2013
667,Revenue,CCHD,Bed purchasing - Under 65s PWLD - North,Residential Homes,Freeways Trust Ltd,2018.31, 16-Apr-2013
668,Revenue,CCHD,Bed purchasing - Under 65s PWLD - North,Residential Homes,Freeways Trust Ltd,666.57, 16-Apr-2013
669,Revenue,CCHD,Bed Purchasing - Under 65s PWLD - South,Residential Homes,Freeways Trust Ltd,2467.2, 16-Apr-2013
670,Revenue,CCHD,Bed Purchasing - Under 65s PWLD - South,Residential Homes,Freeways Trust Ltd,814.78, 16-Apr-2013
671,Revenue,CCHD,Bed purchasing - Elderly PWLD - North,Residential Homes,Freeways Trust Ltd,1676.94, 16-Apr-2013
672,Revenue,CCHD,Bed purchasing - Elderly PWLD - North,Residential Homes,Freeways Trust Ltd,554.81, 16-Apr-2013
673,Revenue,CCHD,Bed Purchasing - Under 65s PWLD - South,Residential Homes,Freeways Trust Ltd,1786.77, 16-Apr-2013
674,Revenue,CCHD,Bed Purchasing - Under 65s PWLD - South,Residential Homes,Freeways Trust Ltd,591.07, 16-Apr-2013
675,Revenue,CCHD,Bed purchasing - Under 65s PWLD - North,Residential Homes,Freeways Trust Ltd,2684.88, 16-Apr-2013
676,Revenue,CCHD,Bed purchasing - Elderly PWLD - North,Residential Homes,Freeways Trust Ltd,1883.67, 16-Apr-2013
677,Revenue,CCHD,Bed purchasing - Elderly PWLD - North,Residential Homes,Freeways Trust Ltd,623.06, 16-Apr-2013
678,Revenue,CCHD,Section 117 Placements MH Younger,Residential Homes,Freeways Trust Ltd,3316.1, 16-Apr-2013
679,Revenue,CCHD,Bed Purchasing - Under 65s PWLD - South,Residential Homes,Freeways Trust Ltd,6103.62, 16-Apr-2013
680,Revenue,CCHD,Frenchay Hospital Purchasing,Nursing Homes,Frenchay Park Nursing Home,2873.82, 16-Apr-2013
681,Revenue,CCHD,Frenchay Hospital Purchasing,Nursing Homes,Frenchay Park Nursing Home,2202.8, 16-Apr-2013
682,Revenue,CCHD,Frenchay Hospital Purchasing,Nursing Homes,Frenchay Park Nursing Home,755.64, 16-Apr-2013
683,Revenue,CCHD,Bed Purchasing - Elderly - South,Nursing Homes,Fshc  1St Floor,688.92, 16-Apr-2013
684,Revenue,CCHD,Bed Purchasing - Elderly - South,Nursing Homes,Fshc  1St Floor,941.16, 16-Apr-2013
685,Revenue,CCHD,Frenchay Hospital Purchasing,Residential Homes,Fshc  1St Floor,665.58, 16-Apr-2013
686,Revenue,CCHD,Frenchay Hospital Purchasing,Nursing Homes,Fshc  1St Floor,1027.5, 16-Apr-2013
687,Revenue,CCHD,Southmead Hospital Purchasing,Nursing Homes,Fshc  1St Floor,1027.5, 16-Apr-2013
688,Revenue,CCHD,Bed purchasing - Elderly MH - North,Residential Homes,Fshc  1St Floor,717.48, 16-Apr-2013
689,Revenue,CCHD,Southmead Hospital Purchasing,Nursing Homes,Fshc  1St Floor,610.98, 16-Apr-2013
690,Revenue,CCHD,South Glos Users in South Glos Homes,Nursing Homes,Fshc  1St Floor,729.84, 16-Apr-2013
691,Revenue,CCHD,Frenchay Hospital Purchasing,Nursing Homes,Fshc  1St Floor,1007.34, 16-Apr-2013
692,Revenue,CCHD,Bed Purchasing - Elderly - South,Nursing Homes,Fshc  1St Floor,1026.06, 16-Apr-2013
693,Revenue,CCHD,Southmead Hospital Purchasing,Nursing Homes,Fshc  1St Floor,1027.5, 16-Apr-2013
694,Revenue,CCHD,Bed Purchasing - Elderly - South,Nursing Homes,Fshc  1St Floor,905.7, 16-Apr-2013
695,Revenue,CCHD,Bed Purchasing - Elderly - South,Nursing Homes,Fshc  1St Floor,1027.77, 16-Apr-2013
696,Revenue,CCHD,Southmead Hospital Purchasing,Nursing Homes,Fshc  1St Floor,1027.5, 16-Apr-2013
697,Revenue,CCHD,Southmead Hospital Purchasing,Nursing Homes,Fshc  1St Floor,1027.5, 16-Apr-2013
698,Revenue,CCHD,Bed Purchasing - Elderly - South,Nursing Homes,Fshc  1St Floor,949.98, 16-Apr-2013
699,Revenue,CCHD,Bed Purchasing - Elderly - North,Residential Homes,Fshc  1St Floor,934.5, 16-Apr-2013
700,Revenue,CCHD,Southmead Hospital Purchasing,Nursing Homes,Fshc  1St Floor,810.69, 16-Apr-2013
701,Revenue,CCHD,Bed Purchasing - Elderly - North,Nursing Homes,Fshc  1St Floor,1027.5, 16-Apr-2013
702,Revenue,CCHD,Frenchay Hospital Purchasing,Nursing Homes,Fshc  1St Floor,930.48, 16-Apr-2013
703,Revenue,CCHD,Southmead Hospital Purchasing,Nursing Homes,Fshc  1St Floor,956.22, 16-Apr-2013
704,Revenue,CCHD,Bed Purchasing - Elderly - South,Nursing Homes,Fshc  1St Floor,1018.08, 16-Apr-2013
705,Revenue,CCHD,Frenchay Hospital Purchasing,Nursing Homes,Fshc  1St Floor,870.24, 16-Apr-2013
706,Revenue,CCHD,Bed Purchasing - Elderly - South,Nursing Homes,Fshc  1St Floor,1027.5, 16-Apr-2013
707,Revenue,CCHD,Bed Purchasing - Elderly - South,Nursing Homes,Fshc  1St Floor,986.16, 16-Apr-2013
708,Revenue,CCHD,Bed Purchasing - Elderly MH - South,Nursing Homes,Fshc  1St Floor,1027.5, 16-Apr-2013
709,Revenue,CCHD,Bed Purchasing - Elderly - South,Nursing Homes,Fshc  1St Floor,799.8, 16-Apr-2013
710,Revenue,CCHD,Bed Purchasing - Elderly - South,Nursing Homes,Fshc  1St Floor,1000.5, 16-Apr-2013
711,Revenue,CCHD,Frenchay Hospital Purchasing,Nursing Homes,Fshc  1St Floor,808.8, 16-Apr-2013
712,Revenue,CCHD,Bed Purchasing - Elderly MH - South,Residential Homes,Fshc  1St Floor,817.56, 16-Apr-2013
713,Revenue,CCHD,Bed Purchasing - Elderly - South,Nursing Homes,Fshc  1St Floor,1027.5, 16-Apr-2013
714,Revenue,CCHD,Bed Purchasing - Elderly - South,Nursing Homes,Fshc  1St Floor,1027.26, 16-Apr-2013
715,Revenue,CCHD,Southmead Hospital Purchasing,Nursing Homes,Fshc  1St Floor,705.3, 16-Apr-2013
716,Revenue,CCHD,Bed Purchasing - Elderly MH - South,Nursing Homes,Fshc  1St Floor,912.63, 16-Apr-2013
717,Revenue,CCHD,Frenchay Hospital Purchasing,Nursing Homes,Fshc  1St Floor,1027.5, 16-Apr-2013
718,Revenue,CCHD,Southmead Hospital Purchasing,Nursing Homes,Fshc  1St Floor,1557.95, 16-Apr-2013
719,Revenue,CCHD,Southmead Hospital Purchasing,Nursing Homes,Fshc  1St Floor,1027.5, 16-Apr-2013
720,Revenue,CCHD,South Glos Users in South Glos Homes,Nursing Homes,Fshc  1St Floor,4969.14, 16-Apr-2013
721,Revenue,CCHD,Bed purchasing - Elderly MH - North,Nursing Homes,Fshc  1St Floor,578.94, 16-Apr-2013
722,Revenue,CCHD,Bed Purchasing - Elderly - South,Nursing Homes,Fshc  1St Floor,744.3, 16-Apr-2013
723,Revenue,CCHD,Bed Purchasing - Elderly - North,Nursing Homes,Fshc  1St Floor,713.37, 16-Apr-2013
724,Revenue,CCHD,Frenchay Hospital Purchasing,Residential Homes,Fshc  1St Floor,551.52, 16-Apr-2013
725,Revenue,CCHD,Southmead Hospital Purchasing,Nursing Homes,Fshc  1St Floor,842.22, 16-Apr-2013
726,Revenue,CCHD,Southmead Hospital Purchasing,Nursing Homes,Fshc  1St Floor,800.4, 16-Apr-2013
727,Revenue,CCHD,Southmead Hospital Purchasing,Residential Homes,Fshc  1St Floor,924.69, 16-Apr-2013
728,Revenue,CCHD,Southmead Hospital Purchasing,Nursing Homes,Fshc  1St Floor,706.62, 16-Apr-2013
729,Revenue,CCHD,Bed Purchasing - Elderly - North,Nursing Homes,Fshc  1St Floor,2336.92, 16-Apr-2013
730,Revenue,CCHD,Bed Purchasing - Elderly - North,Nursing Homes,Fshc  1St Floor,1027.5, 16-Apr-2013
731,Revenue,CCHD,South Glos Users in South Glos Homes,Nursing Homes,Fshc  1St Floor,3633.69, 16-Apr-2013
732,Revenue,CCHD,South Glos Users in South Glos Homes,Nursing Homes,Fshc  1St Floor,5605.81, 16-Apr-2013
733,Revenue,CCHD,South Glos Users in South Glos Homes,Nursing Homes,Fshc  1St Floor,1677.09, 16-Apr-2013
734,Revenue,CCHD,Frenchay Hospital Purchasing,Nursing Homes,Fshc  1St Floor,1027.5, 16-Apr-2013
735,Revenue,CCHD,Southmead Hospital Purchasing,Residential Homes,Fshc  1St Floor,2176, 16-Apr-2013
736,Revenue,CCHD,South Glos Users in South Glos Homes,Nursing Homes,Fshc  1St Floor,2174, 16-Apr-2013
737,Revenue,CCHD,South Glos Users in South Glos Homes,Nursing Homes,Fshc  1St Floor,1692.61, 16-Apr-2013
738,Revenue,CCHD,Bed Purchasing - Elderly - South,Residential Homes,Fshc  1St Floor,837.93, 16-Apr-2013
739,Revenue,CCHD,South Glos Users in South Glos Homes,Nursing Homes,Fshc  1St Floor,3478.4, 16-Apr-2013
740,Revenue,CCHD,Frenchay Hospital Purchasing,Nursing Homes,Fshc  1St Floor,1159.5, 16-Apr-2013
741,Revenue,CCHD,Bed Purchasing - Elderly - North,Nursing Homes,Fshc  1St Floor,1027.5, 16-Apr-2013
742,Revenue,CCHD,Southmead Hospital Purchasing,Nursing Homes,Fshc  1St Floor,1027.5, 16-Apr-2013
743,Revenue,CCHD,Bed Purchasing - Elderly - North,Nursing Homes,Fshc  1St Floor,971.7, 16-Apr-2013
744,Revenue,CCHD,Bed purchasing - Elderly MH - North,Nursing Homes,Fshc  1St Floor,1101.45, 16-Apr-2013
745,Revenue,CCHD,Bed Purchasing - Elderly - North,Nursing Homes,Fshc  1St Floor,952.26, 16-Apr-2013
746,Revenue,CCHD,Bed Purchasing - Elderly - North,Nursing Homes,Fshc  1St Floor,820.2, 16-Apr-2013
747,Revenue,CCHD,Southmead Hospital Purchasing,Nursing Homes,Fshc  1St Floor,1023.24, 16-Apr-2013
748,Revenue,CCHD,Frenchay Hospital Purchasing,Residential Homes,Fshc  1St Floor,502.29, 16-Apr-2013
749,Revenue,CCHD,Frenchay Hospital Purchasing,Nursing Homes,Fshc  1St Floor,965.22, 16-Apr-2013
750,Revenue,CCHD,Frenchay Hospital Purchasing,Nursing Homes,Fshc  1St Floor,1013.13, 16-Apr-2013
751,Revenue,CCHD,Bed Purchasing - Elderly - North,Nursing Homes,Fshc  1St Floor,769.68, 16-Apr-2013
752,Revenue,CCHD,South Glos Users in South Glos Homes,Nursing Homes,Fshc  1St Floor,4907.03, 16-Apr-2013
753,Revenue,CCHD,Bed Purchasing - Elderly - North,Residential Homes,Fshc  1St Floor,500.07, 16-Apr-2013
754,Revenue,CCHD,South Glos Users in South Glos Homes,Nursing Homes,Fshc  1St Floor,1149.11, 16-Apr-2013
755,Revenue,CCHD,Frenchay Hospital Purchasing,Nursing Homes,Fshc  1St Floor,1150.83, 16-Apr-2013
756,Revenue,CCHD,Bed purchasing - Elderly MH - North,Nursing Homes,Fshc  1St Floor,9241.76, 16-Apr-2013
757,Revenue,CCHD,South Glos Users in South Glos Homes,Nursing Homes,Fshc  1St Floor,2857.26, 16-Apr-2013
758,Revenue,CCHD,Bed purchasing - Elderly MH - North,Nursing Homes,Fshc  1St Floor,1067.07, 16-Apr-2013
759,Revenue,CCHD,Bed Purchasing - Elderly - North,Nursing Homes,Fshc  1St Floor,1132.5, 16-Apr-2013
760,Revenue,CCHD,South Glos Users in South Glos Homes,Nursing Homes,Fshc  1St Floor,2236.11, 16-Apr-2013
761,Revenue,CCHD,Bed Purchasing - Elderly - North,Nursing Homes,Fshc  1St Floor,1027.5, 16-Apr-2013
762,Revenue,CCHD,Bed Purchasing - Elderly - North,Nursing Homes,Fshc  1St Floor,1044.39, 16-Apr-2013
763,Revenue,CCHD,Southmead Hospital Purchasing,Residential Homes,Fshc  1St Floor,522.03, 16-Apr-2013
764,Revenue,CCHD,Frenchay Hospital Purchasing,Nursing Homes,Fshc  1St Floor,1297.41, 16-Apr-2013
765,Revenue,CCHD,Frenchay Hospital Purchasing,Nursing Homes,Fshc  1St Floor,896.85, 16-Apr-2013
766,Revenue,CCHD,South Glos Users in South Glos Homes,Nursing Homes,Fshc  1St Floor,605.61, 16-Apr-2013
767,Revenue,CCHD,Southmead Hospital Purchasing,Nursing Homes,Fshc  1St Floor,1089.21, 16-Apr-2013
768,Revenue,CCHD,Southmead Hospital Purchasing,Nursing Homes,Fshc  1St Floor,862.29, 16-Apr-2013
769,Revenue,CCHD,Frenchay Hospital Purchasing,Nursing Homes,Fshc  1St Floor,908.97, 16-Apr-2013
770,Revenue,CCHD,South Glos Users in South Glos Homes,Nursing Homes,Fshc  1St Floor,1133.59, 16-Apr-2013
771,Revenue,CCHD,Southmead Hospital Purchasing,Nursing Homes,Fshc  1St Floor,1027.5, 16-Apr-2013
772,Revenue,CCHD,Southmead Hospital Purchasing,Nursing Homes,Fshc  1St Floor,1159.5, 16-Apr-2013
773,Revenue,CCHD,Bed Purchasing - Elderly MH - South,Nursing Homes,Fshc  1St Floor,1183.54, 16-Apr-2013
774,Revenue,CCHD,Bed Purchasing - Elderly MH - South,Nursing Homes,Fshc  1St Floor,1041.48, 16-Apr-2013
775,Revenue,CCHD,Bed Purchasing - Elderly - North,Residential Homes,Fshc  1St Floor,934.5, 16-Apr-2013
776,Revenue,CCHD,Bed purchasing - Elderly MH - North,Residential Homes,Fshc  1St Floor,934.5, 16-Apr-2013
777,Revenue,CCHD,Southmead Hospital Purchasing,Residential Homes,Fshc  1St Floor,934.5, 16-Apr-2013
778,Revenue,CCHD,Southmead Hospital Purchasing,Nursing Homes,Fshc  1St Floor,1148.13, 16-Apr-2013
779,Revenue,CCHD,Bed purchasing - Elderly MH - North,Residential Homes,Fshc  1St Floor,899.13, 16-Apr-2013
780,Revenue,CCHD,Bed Purchasing - Elderly - South,Residential Homes,Fshc  1St Floor,1580.11, 16-Apr-2013
781,Revenue,CCHD,Bed Purchasing - Elderly - South,Residential Homes,Fshc  1St Floor,1078.5, 16-Apr-2013
782,Revenue,CCHD,Southmead Hospital Purchasing,Residential Homes,Fshc  1St Floor,934.5, 16-Apr-2013
783,Revenue,CCHD,Bed purchasing - Elderly MH - North,Residential Homes,Fshc  1St Floor,1034.16, 16-Apr-2013
784,Revenue,CCHD,Bed Purchasing - Elderly - North,Nursing Homes,Fshc  1St Floor,1012.14, 16-Apr-2013
785,Revenue,CCHD,Southmead Hospital Purchasing,Nursing Homes,Fshc  1St Floor,909.93, 16-Apr-2013
786,Revenue,CCHD,Bed purchasing - Elderly MH - North,Nursing Homes,Fshc  1St Floor,765.45, 16-Apr-2013
787,Revenue,CCHD,Bed Purchasing - Elderly - North,Nursing Homes,Fshc  1St Floor,1027.5, 16-Apr-2013
788,Revenue,CCHD,Bed Purchasing - Elderly - North,Residential Homes,Fshc  1St Floor,952.5, 16-Apr-2013
789,Revenue,CCHD,Bed Purchasing - Elderly - North,Nursing Homes,Fshc  1St Floor,1926.6, 16-Apr-2013
790,Revenue,CCHD,Bed Purchasing - Elderly - North,Nursing Homes,Fshc  1St Floor,859.29, 16-Apr-2013
791,Revenue,CCHD,Frenchay Hospital Purchasing,Residential Homes,Fshc  1St Floor,934.5, 16-Apr-2013
792,Revenue,CCHD,Southmead Hospital Purchasing,Nursing Homes,Fshc  1St Floor,3016.18, 16-Apr-2013
793,Revenue,CCHD,South Glos Users in South Glos Homes,Nursing Homes,Fshc  1St Floor,745.37, 16-Apr-2013
794,Revenue,CCHD,Frenchay Hospital Purchasing,Nursing Homes,Fshc  1St Floor,1774.29, 16-Apr-2013
795,Revenue,CCHD,Frenchay Hospital Purchasing,Nursing Homes,Fshc  1St Floor,1027.5, 16-Apr-2013
796,Revenue,CCHD,Bed Purchasing - Elderly - North,Nursing Homes,Fshc  1St Floor,764.07, 16-Apr-2013
797,Revenue,CCHD,Bed Purchasing - Elderly - North,Nursing Homes,Fshc  1St Floor,1027.5, 16-Apr-2013
798,Revenue,CCHD,Frenchay Hospital Purchasing,Nursing Homes,Fshc  1St Floor,1027.5, 16-Apr-2013
799,Revenue,CCHD,Frenchay Hospital Purchasing,Nursing Homes,Fshc  1St Floor,1027.5, 16-Apr-2013
800,Revenue,CCHD,South Glos Users in South Glos Homes,Nursing Homes,Fshc  1St Floor,3975.31, 16-Apr-2013
801,Revenue,CCHD,Bed Purchasing - Elderly - North,Nursing Homes,Fshc  1St Floor,803.73, 16-Apr-2013
802,Revenue,CCHD,Frenchay Hospital Purchasing,Nursing Homes,Fshc  1St Floor,1027.5, 16-Apr-2013
803,Revenue,CCHD,Southmead Hospital Purchasing,Nursing Homes,Fshc  1St Floor,565.86, 16-Apr-2013
804,Revenue,CCHD,South Glos Users in South Glos Homes,Nursing Homes,Fshc  1St Floor,2003.19, 16-Apr-2013
805,Revenue,CCHD,Frenchay Hospital Purchasing,Nursing Homes,Fshc  1St Floor,1033.5, 16-Apr-2013
806,Revenue,CCHD,Bed Purchasing - Elderly - South,Nursing Homes,Fshc  1St Floor,781.17, 16-Apr-2013
807,Revenue,CCHD,Southmead Hospital Purchasing,Nursing Homes,Fshc  1St Floor,969.45, 16-Apr-2013
808,Revenue,CCHD,Southmead Hospital Purchasing,Residential Homes,Fshc  1St Floor,843.78, 16-Apr-2013
809,Revenue,CCHD,Southmead Hospital Purchasing,Nursing Homes,Fshc  1St Floor,1027.5, 16-Apr-2013
810,Revenue,CCHD,Frenchay Hospital Purchasing,Nursing Homes,Fshc  1St Floor,1024.5, 16-Apr-2013
811,Revenue,CCHD,South Glos Users in South Glos Homes,Nursing Homes,Fshc  1St Floor,807.49, 16-Apr-2013
812,Revenue,CCHD,Frenchay Hospital Purchasing,Nursing Homes,Fshc  1St Floor,1002.45, 16-Apr-2013
813,Revenue,CCHD,Southmead Hospital Purchasing,Nursing Homes,Fshc  1St Floor,1008.15, 16-Apr-2013
814,Revenue,CCHD,Bed Purchasing - Elderly - North,Residential Homes,Fshc  1St Floor,2338.08, 16-Apr-2013
815,Revenue,CCHD,Bed Purchasing - Elderly - North,Residential Homes,Fshc  1St Floor,772.15, 16-Apr-2013
816,Revenue,CCHD,Bed purchasing - Phys Dis - North,Nursing Homes,Fshc  1St Floor,2982.6, 16-Apr-2013
817,Revenue,CCHD,Bed purchasing - Phys Dis - North,Nursing Homes,Fshc  1St Floor,1032.21, 16-Apr-2013
818,Revenue,CCHD,South Glos Users in South Glos Homes,Nursing Homes,Fshc  1St Floor,1164.64, 16-Apr-2013
819,Revenue,CCHD,Southmead Hospital Purchasing,Nursing Homes,Fshc  1St Floor,4665.71, 16-Apr-2013
820,Revenue,CCHD,Frenchay Hospital Purchasing,Nursing Homes,Fshc  1St Floor,6349.58, 16-Apr-2013
821,Revenue,CCHD,Frenchay Hospital Purchasing,Nursing Homes,Fshc  1St Floor,574.62, 16-Apr-2013
822,Revenue,CCHD,Southmead Hospital Purchasing,Nursing Homes,Fshc  1St Floor,973.86, 16-Apr-2013
823,Revenue,CCHD,Bed purchasing - Elderly MH - North,Residential Homes,Fshc  1St Floor,1056.36, 16-Apr-2013
824,Revenue,CCHD,Frenchay Hospital Purchasing,Nursing Homes,Fshc  1St Floor,1206.61, 16-Apr-2013
825,Revenue,CCHD,Frenchay Hospital Purchasing,Nursing Homes,Fshc  1St Floor,1019.31, 16-Apr-2013
826,Revenue,CCHD,Frenchay Hospital Purchasing,Nursing Homes,Fshc  1St Floor,970.17, 16-Apr-2013
827,Revenue,CCHD,Bed Purchasing - Elderly - South,Residential Homes,Fshc  1St Floor,1049.79, 16-Apr-2013
828,Revenue,CCHD,Bed Purchasing - Elderly - North,Residential Homes,Fshc  1St Floor,870.72, 16-Apr-2013
829,Revenue,CCHD,Frenchay Hospital Purchasing,Nursing Homes,Fshc  1St Floor,1840, 16-Apr-2013
830,Revenue,CCHD,Frenchay Hospital Purchasing,Nursing Homes,Fshc  1St Floor,6900, 16-Apr-2013
831,Revenue,CCHD,South Glos Users in South Glos Homes,Nursing Homes,Fshc  1St Floor,512.44, 16-Apr-2013
832,Revenue,CCHD,Frenchay Hospital Purchasing,Nursing Homes,Fshc  1St Floor,922.89, 16-Apr-2013
833,Revenue,CCHD,Bed purchasing - Elderly PWLD - South,Residential Homes,Fshc  1St Floor,934.5, 16-Apr-2013
834,Revenue,CCHD,Frenchay Hospital Purchasing,Nursing Homes,Fshc  1St Floor,1027.5, 16-Apr-2013
835,Revenue,CCHD,Southmead Hospital Purchasing,Nursing Homes,Fshc  1St Floor,825.81, 16-Apr-2013
836,Revenue,CCHD,Bed Purchasing - Elderly - South,Nursing Homes,Fshc  1St Floor,971.01, 16-Apr-2013
837,Revenue,CCHD,Bed Purchasing - Elderly - North,Residential Homes,Fshc  1St Floor,884.94, 16-Apr-2013
838,Revenue,CCHD,South Glos Users in South Glos Homes,Nursing Homes,Fshc  1St Floor,1071.47, 16-Apr-2013
839,Revenue,CCHD,Frenchay Hospital Purchasing,Nursing Homes,Fshc  1St Floor,1027.5, 16-Apr-2013
840,Revenue,CCHD,Southmead Hospital Purchasing,Nursing Homes,Fshc  1St Floor,859.11, 16-Apr-2013
841,Revenue,CCHD,Frenchay Hospital Purchasing,Nursing Homes,Fshc  1St Floor,2194.64, 16-Apr-2013
842,Revenue,CCHD,Frenchay Hospital Purchasing,Nursing Homes,Fshc  1St Floor,1212.51, 16-Apr-2013
843,Revenue,CCHD,Bed Purchasing - Elderly - South,Residential Homes,Fshc  1St Floor,612.42, 16-Apr-2013
844,Revenue,CCHD,Bed Purchasing - Elderly - North,Nursing Homes,Fshc  1St Floor,1314.29, 16-Apr-2013
845,Revenue,CCHD,Southmead Hospital Purchasing,Residential Homes,Fshc  1St Floor,1047.75, 16-Apr-2013
846,Revenue,CCHD,Southmead Hospital Purchasing,Residential Homes,Fshc  1St Floor,1089.96, 16-Apr-2013
847,Revenue,CCHD,Frenchay Hospital Purchasing,Nursing Homes,Fshc  1St Floor,574.62, 16-Apr-2013
848,Revenue,CCHD,Bed Purchasing - Elderly - South,Nursing Homes,Fshc  1St Floor,706.32, 16-Apr-2013
849,Revenue,CCHD,Bed purchasing - Elderly S117 - South,Nursing Homes,Fshc  1St Floor,1392, 16-Apr-2013
850,Revenue,CCHD,Frenchay Hospital Purchasing,Residential Homes,Fshc  1St Floor,830.67, 16-Apr-2013
851,Revenue,CCHD,Southmead Hospital Purchasing,Residential Homes,Fshc  1St Floor,998.82, 16-Apr-2013
852,Revenue,CCHD,Frenchay Hospital Purchasing,Nursing Homes,Fshc  1St Floor,810.31, 16-Apr-2013
853,Revenue,CCHD,Bed Purchasing - Elderly - North,Residential Homes,Fshc  1St Floor,1951.68, 16-Apr-2013
854,Revenue,CCHD,Frenchay Hospital Purchasing,Nursing Homes,Fshc  1St Floor,1434.02, 16-Apr-2013
855,Revenue,CCHD,Bed Purchasing - Elderly - North,Residential Homes,Fshc  1St Floor,899.94, 16-Apr-2013
856,Revenue,CCHD,Southmead Hospital Purchasing,Nursing Homes,Fshc  1St Floor,1027.5, 16-Apr-2013
857,Revenue,CCHD,Frenchay Hospital Purchasing,Nursing Homes,Fshc  1St Floor,832.44, 16-Apr-2013
858,Revenue,CCHD,Frenchay Hospital Purchasing,Nursing Homes,Fshc  1St Floor,3088.81, 16-Apr-2013
859,Revenue,CCHD,Frenchay Hospital Purchasing,Nursing Homes,Fshc  1St Floor,1027.5, 16-Apr-2013
860,Revenue,CCHD,Bed Purchasing - Elderly - North,Nursing Homes,Fshc  1St Floor,1128.41, 16-Apr-2013
861,Revenue,CCHD,Frenchay Hospital Purchasing,Nursing Homes,Fshc  1St Floor,816.78, 16-Apr-2013
862,Revenue,CCHD,Frenchay Hospital Purchasing,Nursing Homes,Fshc  1St Floor,772.56, 16-Apr-2013
863,Revenue,CCHD,Bed Purchasing - Elderly - North,Nursing Homes,Fshc  1St Floor,525.72, 16-Apr-2013
864,Revenue,CCHD,Frenchay Hospital Purchasing,Nursing Homes,Fshc  1St Floor,795.21, 16-Apr-2013
865,Revenue,CCHD,Southmead Hospital Purchasing,Nursing Homes,Fshc  1St Floor,653.07, 16-Apr-2013
866,Revenue,CCHD,Southmead Hospital Purchasing,Nursing Homes,Fshc  1St Floor,976.5, 16-Apr-2013
867,Revenue,CCHD,Southmead Hospital Purchasing,Residential Homes,Fshc  1St Floor,934.5, 16-Apr-2013
868,Revenue,CCHD,Bed Purchasing - Elderly - North,Nursing Homes,Fshc  1St Floor,957.78, 16-Apr-2013
869,Revenue,CCHD,Bed purchasing - Phys Dis - North,Nursing Homes,Fshc  1St Floor,841.77, 16-Apr-2013
870,Revenue,CCHD,Frenchay Hospital Purchasing,Nursing Homes,Fshc  1St Floor,1624.1, 16-Apr-2013
871,Revenue,CCHD,Bed purchasing - Elderly MH - North,Nursing Homes,Fshc  1St Floor,1074.43, 16-Apr-2013
872,Revenue,CCHD,Bed purchasing - Elderly S117 - South,Nursing Homes,Fshc  1St Floor,2445, 16-Apr-2013
873,Revenue,CCHD,Frenchay Hospital Purchasing,Nursing Homes,Fshc  1St Floor,806.4, 16-Apr-2013
874,Revenue,CCHD,Frenchay Hospital Purchasing,Nursing Homes,Fshc  1St Floor,641, 16-Apr-2013
875,Revenue,CCHD,Frenchay Hospital Purchasing,Nursing Homes,Fshc  1St Floor,716.58, 16-Apr-2013
876,Revenue,CCHD,Frenchay Hospital Purchasing,Nursing Homes,Fshc  1St Floor,823.53, 16-Apr-2013
877,Revenue,CCHD,Frenchay Hospital Purchasing,Nursing Homes,Fshc  1St Floor,550.12, 16-Apr-2013
878,Revenue,CCHD,Section 117 Placements MH Younger,Residential Homes,Gladstone House,2715.41, 16-Apr-2013
879,Revenue,CCHD,Bed Purchasing - Under 65s PWLD - South,Residential Homes,Glasallt Fawr,4537.23, 16-Apr-2013
880,Revenue,CCHD,South Glos Users in South Glos Homes,Nursing Homes,Glebe House Nursing Home,1832.37, 16-Apr-2013
881,Revenue,CCHD,Bed Purchasing - Elderly - North,Nursing Homes,Glebe House Nursing Home,1042.53, 16-Apr-2013
882,Revenue,CCHD,Bed purchasing - Elderly MH - North,Nursing Homes,Glebe House Nursing Home,564.99, 16-Apr-2013
883,Revenue,CCHD,Bed purchasing - Elderly MH - North,Residential Homes,Glebe House Nursing Home,585.6, 16-Apr-2013
884,Revenue,CCHD,Bed Purchasing - Elderly - South,Residential Homes,Glebe House Nursing Home,1483.32, 16-Apr-2013
885,Revenue,CCHD,Bed Purchasing - Elderly - North,Residential Homes,Glebe House Nursing Home,1912.74, 16-Apr-2013
886,Revenue,CCHD,Bed Purchasing - Elderly - North,Residential Homes,Glebe House Nursing Home,632.44, 16-Apr-2013
887,Revenue,CCHD,Bed Purchasing - Under 65s PWLD - South,Residential Homes,Gordena Care Home,1561.77, 16-Apr-2013
888,Revenue,CCHD,Bed Purchasing - Under 65s PWLD - South,Residential Homes,Gordena Care Home,515.84, 16-Apr-2013
889,Revenue,CCHD,Bed purchasing - Elderly PWLD - South,Residential Homes,Gordena Care Home,3549.3, 16-Apr-2013
890,Revenue,CCHD,Bed purchasing - Elderly PWLD - South,Residential Homes,Gordena Care Home,1172.99, 16-Apr-2013
891,Revenue,CCHD,Bed purchasing - Elderly PWLD - South,Residential Homes,Gordena Care Home,2337.18, 16-Apr-2013
892,Revenue,CCHD,Bed purchasing - Elderly PWLD - South,Residential Homes,Gordena Care Home,552, 16-Apr-2013
893,Revenue,CCHD,Bed purchasing - Elderly PWLD - South,Residential Homes,Gordena Care Home,2195.58, 16-Apr-2013
894,Revenue,CCHD,Bed purchasing - Elderly PWLD - South,Residential Homes,Gordena Care Home,726.05, 16-Apr-2013
895,Revenue,CCHD,Bed Purchasing - Under 65s PWLD - South,Residential Homes,Gordena Care Home,1430.7, 16-Apr-2013
896,Revenue,CCHD,Bed Purchasing - Under 65s PWLD - South,Residential Homes,Gordena Care Limited,3118.92, 16-Apr-2013
897,Revenue,CCHD,Bed Purchasing - Under 65s PWLD - South,Residential Homes,Gordena Care Limited,1029.96, 16-Apr-2013
898,Revenue,CCHD,Bed purchasing - S28A Under 65 - South,Residential Homes,Gordena Care Limited,3041.85, 16-Apr-2013
899,Revenue,CCHD,Bed purchasing - S28A Under 65 - South,Residential Homes,Gordena Care Limited,1004.56, 16-Apr-2013
900,Revenue,CCHD,Bed purchasing - Under 65s PWLD - North,Residential Homes,Gordena Care Limited,3120, 16-Apr-2013
901,Revenue,CCHD,Bed purchasing - Under 65s PWLD - North,Residential Homes,Gordena Care Limited,1031.26, 16-Apr-2013
902,Revenue,CCHD,Bed Purchasing - Elderly - North,Residential Homes,Greensleeves,1309.7, 16-Apr-2013
903,Revenue,CCHD,Management & Support costs,Other Supplies & Services,GVA Grimley Limited,2500, 03-Apr-2013
904,Revenue,CCHD,Bed Purchasing - Elderly - South,Residential Homes,Gwendoline House,3228, 16-Apr-2013
905,Revenue,CCHD,Bed Purchasing - Elderly - South,Residential Homes,Gwendoline House,1117.53, 16-Apr-2013
906,Revenue,CCHD,Bed Purchasing - Elderly - South,Residential Homes,Gwendoline House,873.72, 16-Apr-2013
907,Revenue,CCHD,Bed Purchasing - Elderly - North,Residential Homes,Gwendoline House,1240.77, 16-Apr-2013
908,Revenue,CCHD,Bed Purchasing - Elderly MH - South,Residential Homes,Gwendoline House,953.85, 16-Apr-2013
909,Revenue,CCHD,Southmead Hospital Purchasing,Residential Homes,Gwendoline House,1264.98, 16-Apr-2013
910,Revenue,CCHD,Bed Purchasing - Elderly - South,Residential Homes,Gwendoline House,846.39, 16-Apr-2013
911,Revenue,CCHD,Supporting People Programme,Grants to Voluntary Bodies,Habinteg Housing Association,1338.75, 05-Apr-2013
912,Revenue,CCHD,Bed Purchasing - Elderly - South,Residential Homes,Harefield Hall,995.43, 16-Apr-2013
913,Revenue,CCHD,Bed Purchasing - Elderly - South,Residential Homes,Harefield Hall,833.37, 16-Apr-2013
914,Revenue,CCHD,Bed Purchasing - Elderly - South,Residential Homes,Harefield Hall,1333.92, 16-Apr-2013
915,Revenue,CCHD,Bed Purchasing - Elderly MH - South,Residential Homes,Harefield Hall,814.89, 16-Apr-2013
916,Revenue,CCHD,Southmead Hospital Purchasing,Nursing Homes,Haven Lodge,1379.48, 16-Apr-2013
917,Revenue,CCHD,Southmead Hospital Purchasing,Nursing Homes,Hc-One Ltd,1610.83, 16-Apr-2013
918,Revenue,CCHD,Bed Purchasing - Elderly - North,Nursing Homes,Hc-One Ltd,1100.61, 16-Apr-2013
919,Revenue,CCHD,Bed Purchasing - Elderly - North,Nursing Homes,Hc-One Ltd,725.49, 16-Apr-2013
920,Revenue,CCHD,Bed purchasing - Elderly PWLD - South,Nursing Homes,Hc-One Ltd,1447.47, 16-Apr-2013
921,Revenue,CCHD,Bed purchasing - Elderly MH - North,Nursing Homes,Hc-One Ltd,1108.5, 16-Apr-2013
922,Revenue,CCHD,Bed purchasing - Elderly MH - North,Nursing Homes,Hc-One Ltd,908.61, 16-Apr-2013
923,Revenue,CCHD,Frenchay Hospital Purchasing,Nursing Homes,Hc-One Ltd,1103.37, 16-Apr-2013
924,Revenue,CCHD,Bed Purchasing - Elderly - South,Nursing Homes,Hc-One Ltd,1598.83, 16-Apr-2013
925,Revenue,CCHD,Bed purchasing - Elderly MH - North,Nursing Homes,Hc-One Ltd,1108.5, 16-Apr-2013
926,Revenue,CCHD,Bed purchasing - Elderly MH - North,Nursing Homes,Hc-One Ltd,870.27, 16-Apr-2013
927,Revenue,CCHD,Bed Purchasing - Elderly S117- North,Nursing Homes,Hc-One Ltd,1460.79, 16-Apr-2013
928,Revenue,CCHD,Frenchay Hospital Purchasing,Residential Homes,Hc-One Ltd,1117.23, 16-Apr-2013
929,Revenue,CCHD,Day Care - North,Private & Voluntary Day Care,Headway Bristol,857.52, 26-Apr-2013
930,Revenue,CCHD,Day Care - South,Private & Voluntary Day Care,Headway Bristol,1074.63, 26-Apr-2013
931,Revenue,CCHD,Day Care - South,Private & Voluntary Day Care,Headway Bristol,857.52, 26-Apr-2013
932,Revenue,CCHD,Day Care - South,Private & Voluntary Day Care,Headway Bristol,721.45, 26-Apr-2013
933,Revenue,CCHD,Day Care - North,Private & Voluntary Day Care,Headway Bristol,678.87, 26-Apr-2013
934,Revenue,CCHD,Day Care - South,Private & Voluntary Day Care,Headway Bristol,893.25, 26-Apr-2013
935,Revenue,CCHD,Day Care - South,Private & Voluntary Day Care,Headway Bristol,2595.49, 26-Apr-2013
936,Revenue,CCHD,Day Care - North,Private & Voluntary Day Care,Headway Bristol,893.25, 26-Apr-2013
937,Revenue,CCHD,Tenancy Start Up Scheme,Other Supplies & Services,Heron Way Agencies Limited,1073.09, 24-Apr-2013
938,Revenue,CCHD,Southmead Hospital Purchasing,Residential Homes,Highgate Studios,1166.99, 16-Apr-2013
939,Revenue,CCHD,Bed purchasing - Under 65s PWLD - North,Residential Homes,Holmleigh Care Homes Ltd,3990.85, 16-Apr-2013
940,Revenue,CCHD,Bed Purchasing - Under 65s PWLD - South,Residential Homes,Holmleigh Care Homes Ltd,5015.97, 16-Apr-2013
941,Revenue,CCHD,South Glos Users in South Glos Homes,Nursing Homes,Holmwood House,2174, 16-Apr-2013
942,Revenue,CCHD,Southmead Hospital Purchasing,Nursing Homes,Holmwood House,948.48, 16-Apr-2013
943,Revenue,CCHD,Southmead Hospital Purchasing,Nursing Homes,Holmwood House,627, 16-Apr-2013
944,Revenue,CCHD,Bed purchasing - Under 65s PWLD - North,Residential Homes,Home Farm Trust Ltd  5-6 Brook Office Pa,1979.43, 16-Apr-2013
945,Revenue,CCHD,Bed purchasing - Under 65s PWLD - North,Residential Homes,Home Farm Trust Ltd  5-6 Brook Office Pa,696.03, 16-Apr-2013
946,Revenue,CCHD,Bed purchasing - Under 65s PWLD - North,Residential Homes,Home Farm Trust Ltd  5-6 Brook Office Pa,3784.71, 16-Apr-2013
947,Revenue,CCHD,Bed purchasing - Under 65s PWLD - North,Residential Homes,Home Farm Trust Ltd  5-6 Brook Office Pa,1252.5, 16-Apr-2013
948,Revenue,CCHD,Bed purchasing - Under 65s PWLD - North,Residential Homes,Home Farm Trust Ltd  5-6 Brook Office Pa,2547, 16-Apr-2013
949,Revenue,CCHD,Bed purchasing - Under 65s PWLD - North,Residential Homes,Home Farm Trust Ltd  5-6 Brook Office Pa,841.77, 16-Apr-2013
950,Revenue,CCHD,Bed Purchasing - Under 65s PWLD - South,Residential Homes,Home Farm Trust Ltd  5-6 Brook Office Pa,3378.78, 16-Apr-2013
951,Revenue,CCHD,Bed Purchasing - Under 65s PWLD - South,Residential Homes,Home Farm Trust Ltd  5-6 Brook Office Pa,1115.75, 16-Apr-2013
952,Revenue,CCHD,Bed purchasing - Under 65s PWLD - North,Residential Homes,Home From Home Care Ltd,8842.33, 16-Apr-2013
953,Revenue,CCHD,Bed purchasing - Under 65s PWLD - North,Residential Homes,Homes Caring For Autism Ltd  Churchill H,9732.41, 16-Apr-2013
954,Revenue,CCHD,Bed Purchasing - Under 65s PWLD - South,Residential Homes,Homes Caring For Autism Ltd  Churchill H,12686.16, 16-Apr-2013
955,Revenue,CCHD,Bed Purchasing - Elderly - South,Nursing Homes,Horfield Care Limited,4043.95, 04-Apr-2013
956,Revenue,CCHD,Bed Purchasing - Elderly - North,Nursing Homes,Horfield Care Limited,3279.92, 04-Apr-2013
957,Revenue,CCHD,Frenchay Hospital Purchasing,Nursing Homes,Horfield Care Limited,1480.83, 04-Apr-2013
958,Revenue,CCHD,Southmead Hospital Purchasing,Nursing Homes,Horfield Care Limited,9179.37, 04-Apr-2013
959,Revenue,CCHD,Supporting People Programme,Grants to Voluntary Bodies,Housing 21,921.33, 10-Apr-2013
960,Revenue,CCHD,Supporting People Programme,Grants to Voluntary Bodies,Housing 21,607.38, 09-Apr-2013
961,Revenue,CCHD,Home Care - Elderly - North,Private & Voluntary Home Care,Housing 21,37028.34, 10-Apr-2013
962,Revenue,CCHD,Information Systems - Software,Software Support & Maintenance,IBM United Kingdom,1350, 04-Apr-2013
963,Revenue,CCHD,Care Management Team - South,Agency Staff (Operational)/PCT Pay,IPE,5785.01, 12-Apr-2013
964,Revenue,CCHD,Care Management Team - South,Agency Staff (Operational)/PCT Pay,IPE,4260, 18-Apr-2013
965,Revenue,CCHD,Care Management Team - South,Agency Staff (Operational)/PCT Pay,IPE,3038.76, 18-Apr-2013
966,Revenue,CCHD,Social Lettings Agency,Other Supplies & Services,Individual,655.41, 11-Apr-2013
967,Revenue,CCHD,Woodleaze,Furniture & Fittings Loose,J&P Healthcare LLP,799.46, 02-Apr-2013
968,Revenue,CCHD,Alexandra Way,Furniture & Fittings Loose,J&P Healthcare LLP,1110.04, 26-Apr-2013
969,Revenue,CCHD,Southmead Hospital Purchasing,Nursing Homes,Jasmine Court,1225.92, 16-Apr-2013
970,Revenue,CCHD,Training - Adult Services,Training Expenses,Jo Williams,612, 15-Apr-2013
971,Revenue,CCHD,Training - Adult Services,Training Expenses,Jo Williams,697, 15-Apr-2013
972,Revenue,CCHD,Training - Adult Services,Training Expenses,Jonathan Coles,600, 12-Apr-2013
973,Revenue,CCHD,Bed Purchasing - Under 65s PWLD - South,Residential Homes,Julia Simone- Supp. Ind.,2671.74, 16-Apr-2013
974,Revenue,CCHD,Bed Purchasing - Under 65s PWLD - South,Residential Homes,Julia Simone- Supp. Ind.,882.31, 16-Apr-2013
975,Revenue,CCHD,Bed purchasing -S28A  Under 65 - North,Residential Homes,Julia Simone- Supp. Ind.,2582.31, 16-Apr-2013
976,Revenue,CCHD,Bed purchasing -S28A  Under 65 - North,Residential Homes,Julia Simone- Supp. Ind.,852.79, 16-Apr-2013
977,Revenue,CCHD,Bed Purchasing - Under 65s PWLD - South,Nursing Homes,K3 The Park Centre,3732.81, 16-Apr-2013
978,Revenue,CCHD,Bed Purchasing - Under 65s PWLD - South,Nursing Homes,K3 The Park Centre,1232.64, 16-Apr-2013
979,Revenue,CCHD,Bed Purchasing - LD S28A- Over 65- South,Residential Homes,K3 The Park Centre,2396.88, 16-Apr-2013
980,Revenue,CCHD,Bed Purchasing - LD S28A- Over 65- South,Residential Homes,K3 The Park Centre,792.51, 16-Apr-2013
981,Revenue,CCHD,Bed Purchasing - Under 65s PWLD - South,Residential Homes,K3 The Park Centre,8575.26, 16-Apr-2013
982,Revenue,CCHD,Bed Purchasing - Under 65s PWLD - South,Residential Homes,K3 The Park Centre,2831.44, 16-Apr-2013
983,Revenue,CCHD,Bed Purchasing - Under 65s PWLD - South,Residential Homes,K3 The Park Centre,2982.6, 16-Apr-2013
984,Revenue,CCHD,Bed Purchasing - Under 65s PWLD - South,Residential Homes,K3 The Park Centre,984.95, 16-Apr-2013
985,Revenue,CCHD,Bed Purchasing - Under 65s PWLD - South,Nursing Homes,K3 The Park Centre,6699.44, 16-Apr-2013
986,Revenue,CCHD,Bed purchasing - Elderly PWLD - South,Residential Homes,K3 The Park Centre,2559.03, 16-Apr-2013
987,Revenue,CCHD,Bed purchasing - Elderly PWLD - South,Residential Homes,K3 The Park Centre,846.04, 16-Apr-2013
988,Revenue,CCHD,Bed Purchasing - LD S28A- Over 65- South,Residential Homes,K3 The Park Centre,2900.49, 16-Apr-2013
989,Revenue,CCHD,Bed Purchasing - LD S28A- Over 65- South,Residential Homes,K3 The Park Centre,958.78, 16-Apr-2013
990,Revenue,CCHD,Bed Purchasing - Under 65s PWLD - South,Nursing Homes,K3 The Park Centre,3726.81, 16-Apr-2013
991,Revenue,CCHD,Bed Purchasing - Under 65s PWLD - South,Nursing Homes,K3 The Park Centre,1230.59, 16-Apr-2013
992,Revenue,CCHD,Bed purchasing - S28A Under 65 - South,Nursing Homes,K3 The Park Centre,3973.98, 16-Apr-2013
993,Revenue,CCHD,Bed purchasing - S28A Under 65 - South,Nursing Homes,K3 The Park Centre,1312.26, 16-Apr-2013
994,Revenue,CCHD,Bed purchasing - S28A Under 65 - South,Residential Homes,K3 The Park Centre,3624.45, 16-Apr-2013
995,Revenue,CCHD,Bed purchasing - S28A Under 65 - South,Residential Homes,K3 The Park Centre,1197.63, 16-Apr-2013
996,Revenue,CCHD,Bed purchasing - S28A Under 65 - South,Nursing Homes,K3 The Park Centre,3973.98, 16-Apr-2013
997,Revenue,CCHD,Bed purchasing - S28A Under 65 - South,Nursing Homes,K3 The Park Centre,1312.26, 16-Apr-2013
998,Revenue,CCHD,Bed Purchasing - LD S28A- Over 65- South,Nursing Homes,K3 The Park Centre,3845.88, 16-Apr-2013
999,Revenue,CCHD,Bed Purchasing - LD S28A- Over 65- South,Nursing Homes,K3 The Park Centre,1270.91, 16-Apr-2013
1000,Revenue,CCHD,Bed Purchasing - LD S28A- Over 65- South,Nursing Homes,K3 The Park Centre,3593.97, 16-Apr-2013
1001,Revenue,CCHD,Bed Purchasing - LD S28A- Over 65- South,Nursing Homes,K3 The Park Centre,1187.52, 16-Apr-2013
1002,Revenue,CCHD,Bed Purchasing - Under 65s PWLD - South,Residential Homes,K3 The Park Centre,2525.88, 16-Apr-2013
1003,Revenue,CCHD,Bed Purchasing - Under 65s PWLD - South,Residential Homes,K3 The Park Centre,834.15, 16-Apr-2013
1004,Revenue,CCHD,Bed Purchasing - S28A - Over 65- North,Nursing Homes,K3 The Park Centre,5404.91, 16-Apr-2013
1005,Revenue,CCHD,Bed purchasing - S28A Under 65 - South,Residential Homes,K3 The Park Centre,3844.83, 16-Apr-2013
1006,Revenue,CCHD,Bed purchasing - S28A Under 65 - South,Residential Homes,K3 The Park Centre,1269.62, 16-Apr-2013
1007,Revenue,CCHD,Bed purchasing - S28A Under 65 - South,Residential Homes,K3 The Park Centre,3885.96, 16-Apr-2013
1008,Revenue,CCHD,Bed purchasing - S28A Under 65 - South,Residential Homes,K3 The Park Centre,1283.2, 16-Apr-2013
1009,Revenue,CCHD,Bed Purchasing - S28A - Over 65- North,Residential Homes,K3 The Park Centre,5458.71, 16-Apr-2013
1010,Revenue,CCHD,Bed Purchasing - S28A - Over 65- North,Residential Homes,K3 The Park Centre,1803.41, 16-Apr-2013
1011,Revenue,CCHD,Bed purchasing - S28A Under 65 - South,Nursing Homes,K3 The Park Centre,3973.98, 16-Apr-2013
1012,Revenue,CCHD,Bed purchasing - S28A Under 65 - South,Nursing Homes,K3 The Park Centre,1312.26, 16-Apr-2013
1013,Revenue,CCHD,Bed purchasing - S28A Under 65 - South,Nursing Homes,K3 The Park Centre,3973.98, 16-Apr-2013
1014,Revenue,CCHD,Bed purchasing - S28A Under 65 - South,Nursing Homes,K3 The Park Centre,1312.26, 16-Apr-2013
1015,Revenue,CCHD,Bed purchasing -S28A  Under 65 - North,Nursing Homes,K3 The Park Centre,4701.96, 16-Apr-2013
1016,Revenue,CCHD,Bed purchasing - S28A Under 65 - South,Residential Homes,K3 The Park Centre,3885.96, 16-Apr-2013
1017,Revenue,CCHD,Bed purchasing - S28A Under 65 - South,Residential Homes,K3 The Park Centre,1283.2, 16-Apr-2013
1018,Revenue,CCHD,Bed Purchasing - LD S28A- Over 65- South,Residential Homes,K3 The Park Centre,3511.14, 16-Apr-2013
1019,Revenue,CCHD,Bed Purchasing - LD S28A- Over 65- South,Residential Homes,K3 The Park Centre,1160.4, 16-Apr-2013
1020,Revenue,CCHD,Bed Purchasing - Elderly - South,Residential Homes,Karenza Ltd,1728, 16-Apr-2013
1021,Revenue,CCHD,Bed Purchasing - Elderly - North,Residential Homes,Katherine House,1197.28, 16-Apr-2013
1022,Revenue,CCHD,Home Care - Elderly - North,Other Small Contracts,Kensington Community Care,532.77, 05-Apr-2013
1023,Revenue,CCHD,Home Care - Elderly - North,Other Small Contracts,Kensington Community Care,685.58, 05-Apr-2013
1024,Revenue,CCHD,Home Care - Elderly - North,Other Small Contracts,Kensington Community Care,1309.21, 22-Apr-2013
1025,Revenue,CCHD,Home Care - Elderly - North,Other Small Contracts,Kensington Community Care,1094.45, 22-Apr-2013
1026,Revenue,CCHD,Home Care - Elderly - North,Other Small Contracts,Kensington Community Care,1171.77, 26-Apr-2013
1027,Revenue,CCHD,Home Care - Elderly - North,Other Small Contracts,Kensington Community Care,1246.83, 26-Apr-2013
1028,Revenue,CCHD,Bed purchasing - Elderly S117 - South,Residential Homes,Kenver House Residential Home,1058.31, 16-Apr-2013
1029,Revenue,CCHD,Frenchay Hospital Purchasing,Residential Homes,Kenver House Residential Home,1601.46, 16-Apr-2013
1030,Revenue,CCHD,Frenchay Hospital Purchasing,Residential Homes,Kenver House Residential Home,528.74, 16-Apr-2013
1031,Revenue,CCHD,Bed Purchasing - Elderly - South,Residential Homes,Kenver House Residential Home,1236.96, 16-Apr-2013
1032,Revenue,CCHD,Bed Purchasing - Elderly - South,Residential Homes,Kenver House Residential Home,1170.12, 16-Apr-2013
1033,Revenue,CCHD,Bed purchasing - Elderly S117 - South,Residential Homes,Kenver House Residential Home,1425, 16-Apr-2013
1034,Revenue,CCHD,Bed Purchasing - Elderly MH - South,Residential Homes,Kenver House Residential Home,964.47, 16-Apr-2013
1035,Revenue,CCHD,Bed Purchasing - Elderly S117- North,Residential Homes,Kenver House Residential Home,1425, 16-Apr-2013
1036,Revenue,CCHD,Southmead Hospital Purchasing,Residential Homes,Kenver House Residential Home,1236.96, 16-Apr-2013
1037,Revenue,CCHD,Bed Purchasing - Elderly - South,Residential Homes,Kenver House Residential Home,1236.96, 16-Apr-2013
1038,Revenue,CCHD,Southmead Hospital Purchasing,Residential Homes,Kenver House Residential Home,877.8, 16-Apr-2013
1039,Revenue,CCHD,Frenchay Hospital Purchasing,Residential Homes,Kenver House Residential Home,1754, 16-Apr-2013
1040,Revenue,CCHD,Frenchay Hospital Purchasing,Residential Homes,Kenver House Residential Home,1059.12, 16-Apr-2013
1041,Revenue,CCHD,Frenchay Hospital Purchasing,Residential Homes,Kenver House Residential Home,1236.96, 16-Apr-2013
1042,Revenue,CCHD,Bed Purchasing - Elderly - South,Residential Homes,Kenver House Residential Home,9722.68, 16-Apr-2013
1043,Revenue,CCHD,Bed Purchasing - Elderly - South,Residential Homes,Kenver House Residential Home,1182.3, 16-Apr-2013
1044,Revenue,CCHD,Bed Purchasing - Elderly MH - South,Residential Homes,Kenver House Residential Home,892.26, 16-Apr-2013
1045,Revenue,CCHD,Frenchay Hospital Purchasing,Residential Homes,Kenver House Residential Home,1060.35, 16-Apr-2013
1046,Revenue,CCHD,Bed Purchasing - Elderly MH - South,Residential Homes,Kenver House Residential Home,875.94, 16-Apr-2013
1047,Revenue,CCHD,Bed Purchasing - Elderly MH - South,Residential Homes,Kenver House Residential Home,1060.5, 16-Apr-2013
1048,Revenue,CCHD,Bed Purchasing - Elderly - South,Residential Homes,Kenver House Residential Home,1547.19, 16-Apr-2013
1049,Revenue,CCHD,Bed Purchasing - Elderly - South,Residential Homes,Kenver House Residential Home,1122.81, 16-Apr-2013
1050,Revenue,CCHD,Frenchay Hospital Purchasing,Residential Homes,Kenver House Residential Home,1180.59, 16-Apr-2013
1051,Revenue,CCHD,Bed Purchasing - Elderly - South,Residential Homes,Kenver House Residential Home,1236.96, 16-Apr-2013
1052,Revenue,CCHD,Frenchay Hospital Purchasing,Residential Homes,Kenver House Residential Home,1154.82, 16-Apr-2013
1053,Revenue,CCHD,Supporting People Programme,Grants to Voluntary Bodies,Keyring Living Support Networks,2874.42, 09-Apr-2013
1054,Revenue,CCHD,Supporting People Programme,Grants to Voluntary Bodies,Kingswood Young Homeless Project,17289.42, 09-Apr-2013
1055,Revenue,CCHD,Bed purchasing - Under 65s PWLD - North,Residential Homes,Kisimul Group,11335.7, 16-Apr-2013
1056,Revenue,CCHD,Supporting People Programme,Grants to Voluntary Bodies,Knightstone Housing Association Limited,13316.58, 05-Apr-2013
1057,Revenue,CCHD,Supporting People Programme,Grants to Voluntary Bodies,Knightstone Housing Association Limited,8413.33, 05-Apr-2013
1058,Revenue,CCHD,Supporting People Programme,Grants to Voluntary Bodies,Knightstone Housing Association Limited,7491.58, 05-Apr-2013
1059,Revenue,CCHD,Supporting People Programme,Grants to Voluntary Bodies,Knightstone Housing Association Limited,1883.92, 05-Apr-2013
1060,Revenue,CCHD,Supporting People Programme,Grants to Voluntary Bodies,Knightstone Housing Association Limited,2446.5, 05-Apr-2013
1061,Revenue,CCHD,Supporting People Programme,Grants to Voluntary Bodies,Knightstone Housing Association Limited,2447.08, 05-Apr-2013
1062,Revenue,CCHD,Supporting People Programme,Grants to Voluntary Bodies,Knightstone Housing Association Limited,1189.08, 05-Apr-2013
1063,Revenue,CCHD,Supporting People Programme,Grants to Voluntary Bodies,Knightstone Housing Association Limited,2194.67, 05-Apr-2013
1064,Revenue,CCHD,Home Care - Elderly - South,Other Small Contracts,Kumari Care Limited,4244.02, 05-Apr-2013
1065,Revenue,CCHD,Home Care - Elderly - North,Other Small Contracts,Kumari Care Limited,827.13, 05-Apr-2013
1066,Revenue,CCHD,Day Care - South,Private & Voluntary Day Care,Kumari Care Limited,164.26, 05-Apr-2013
1067,Revenue,CCHD,Under 65s -MH  Home Care Purch,Other Small Contracts,Kumari Care Limited,259.76, 05-Apr-2013
1068,Revenue,CCHD,PWLD Home Care - Under 65 - KH,Private & Voluntary Home Care,Kumari Care Limited,244.48, 05-Apr-2013
1069,Revenue,CCHD,Home Care - Elderly - South,Other Small Contracts,Kumari Care Limited,4217.28, 05-Apr-2013
1070,Revenue,CCHD,Home Care - Elderly - North,Other Small Contracts,Kumari Care Limited,827.59, 05-Apr-2013
1071,Revenue,CCHD,Day Care - South,Private & Voluntary Day Care,Kumari Care Limited,171.9, 05-Apr-2013
1072,Revenue,CCHD,Under 65s -MH  Home Care Purch,Other Small Contracts,Kumari Care Limited,240.66, 05-Apr-2013
1073,Revenue,CCHD,PWLD Home Care - Under 65 - KH,Private & Voluntary Home Care,Kumari Care Limited,64.94, 05-Apr-2013
1074,Revenue,CCHD,Home Care - Elderly - South,Other Small Contracts,Kumari Care Limited,4037.74, 05-Apr-2013
1075,Revenue,CCHD,Home Care - Elderly - North,Other Small Contracts,Kumari Care Limited,828.16, 05-Apr-2013
1076,Revenue,CCHD,Day Care - South,Private & Voluntary Day Care,Kumari Care Limited,168.08, 05-Apr-2013
1077,Revenue,CCHD,Under 65s -MH  Home Care Purch,Other Small Contracts,Kumari Care Limited,244.48, 05-Apr-2013
1078,Revenue,CCHD,PWLD Home Care - Under 65 - KH,Private & Voluntary Home Care,Kumari Care Limited,309.42, 05-Apr-2013
1079,Revenue,CCHD,Home Care - Elderly - South,Other Small Contracts,Kumari Care Limited,4182.25, 19-Apr-2013
1080,Revenue,CCHD,Home Care - Elderly - North,Other Small Contracts,Kumari Care Limited,827.13, 19-Apr-2013
1081,Revenue,CCHD,Day Care - South,Private & Voluntary Day Care,Kumari Care Limited,168.08, 19-Apr-2013
1082,Revenue,CCHD,Under 65s -MH  Home Care Purch,Other Small Contracts,Kumari Care Limited,259.76, 19-Apr-2013
1083,Revenue,CCHD,PWLD Home Care - Under 65 - KH,Private & Voluntary Home Care,Kumari Care Limited,78.65, 19-Apr-2013
1084,Revenue,CCHD,Home Care - Elderly - South,Other Small Contracts,Kumari Care Limited,4236.38, 22-Apr-2013
1085,Revenue,CCHD,Home Care - Elderly - North,Other Small Contracts,Kumari Care Limited,827.13, 22-Apr-2013
1086,Revenue,CCHD,Day Care - South,Private & Voluntary Day Care,Kumari Care Limited,168.08, 22-Apr-2013
1087,Revenue,CCHD,Under 65s -MH  Home Care Purch,Other Small Contracts,Kumari Care Limited,198.64, 22-Apr-2013
1088,Revenue,CCHD,PWLD Home Care - Under 65 - KH,Private & Voluntary Home Care,Kumari Care Limited,301.78, 22-Apr-2013
1089,Revenue,CCHD,Home Care - Elderly - South,Other Small Contracts,Kumari Care Limited,4273.02, 30-Apr-2013
1090,Revenue,CCHD,Home Care - Elderly - North,Other Small Contracts,Kumari Care Limited,833.86, 30-Apr-2013
1091,Revenue,CCHD,Day Care - South,Private & Voluntary Day Care,Kumari Care Limited,158.26, 30-Apr-2013
1092,Revenue,CCHD,Under 65s -MH  Home Care Purch,Other Small Contracts,Kumari Care Limited,250.9, 30-Apr-2013
1093,Revenue,CCHD,PWLD Home Care - Under 65 - KH,Private & Voluntary Home Care,Kumari Care Limited,312.12, 30-Apr-2013
1094,Revenue,CCHD,Social Lettings Agency,Other Supplies & Services,Individual,565, 05-Apr-2013
1095,Revenue,CCHD,Social Lettings Agency,Other Supplies & Services,Individual,565, 18-Apr-2013
1096,Revenue,CCHD,Bed purchasing - Phys Dis - North,Nursing Homes,Leonard Cheshire  National Account Centr,3722.28, 16-Apr-2013
1097,Revenue,CCHD,Bed purchasing - Phys Dis - North,Nursing Homes,Leonard Cheshire  National Account Centr,1228.96, 16-Apr-2013
1098,Revenue,CCHD,Bed purchasing - Phys Dis - North,Residential Homes,Leonard Cheshire  National Account Centr,2080.41, 16-Apr-2013
1099,Revenue,CCHD,Bed purchasing - Phys Dis - North,Residential Homes,Leonard Cheshire  National Account Centr,729.37, 16-Apr-2013
1100,Revenue,CCHD,Bed Purchasing - Under 65s PWLD - South,Residential Homes,Leonard Cheshire  National Account Centr,2219.58, 16-Apr-2013
1101,Revenue,CCHD,Bed Purchasing - Under 65s PWLD - South,Residential Homes,Leonard Cheshire  National Account Centr,733.03, 16-Apr-2013
1102,Revenue,CCHD,Bed Purchasing - Elderly - North,Nursing Homes,Leonard Cheshire  National Account Centr,2601.6, 16-Apr-2013
1103,Revenue,CCHD,Bed Purchasing - Elderly - North,Nursing Homes,Leonard Cheshire  National Account Centr,859.15, 16-Apr-2013
1104,Revenue,CCHD,Bed purchasing - Phys Dis - North,Nursing Homes,Leonard Cheshire  National Account Centr,2072.28, 16-Apr-2013
1105,Revenue,CCHD,Bed purchasing - Phys Dis - North,Nursing Homes,Leonard Cheshire  National Account Centr,684.15, 16-Apr-2013
1106,Revenue,CCHD,Bed Purchasing - Elderly - North,Residential Homes,Leonard Cheshire  National Account Centr,2364.69, 16-Apr-2013
1107,Revenue,CCHD,Bed Purchasing - Elderly - North,Residential Homes,Leonard Cheshire  National Account Centr,780.56, 16-Apr-2013
1108,Revenue,CCHD,Bed purchasing - Under 65s PWLD - North,Residential Homes,Leonard Cheshire  National Account Centr,4404.09, 16-Apr-2013
1109,Revenue,CCHD,Bed purchasing - Under 65s PWLD - North,Residential Homes,Leonard Cheshire  National Account Centr,1454.27, 16-Apr-2013
1110,Revenue,CCHD,Bed purchasing - Under 65s PWLD - North,Residential Homes,Leonard Cheshire  National Account Centr,4402.92, 16-Apr-2013
1111,Revenue,CCHD,Bed purchasing - Under 65s PWLD - North,Residential Homes,Leonard Cheshire  National Account Centr,1453.89, 16-Apr-2013
1112,Revenue,CCHD,Bed Purchasing - Elderly - South,Residential Homes,Leonard Cheshire  National Account Centr,4398.92, 16-Apr-2013
1113,Revenue,CCHD,Bed Purchasing - Elderly - South,Residential Homes,Leonard Cheshire  National Account Centr,3324.78, 16-Apr-2013
1114,Revenue,CCHD,Bed Purchasing - Elderly - South,Residential Homes,Leonard Cheshire  National Account Centr,1099.73, 16-Apr-2013
1115,Revenue,CCHD,Bed purchasing - Phys Dis - North,Nursing Homes,Leonard Cheshire  National Account Centr,2812.44, 16-Apr-2013
1116,Revenue,CCHD,Bed purchasing - Phys Dis - North,Nursing Homes,Leonard Cheshire  National Account Centr,2128.98, 16-Apr-2013
1117,Revenue,CCHD,Bed purchasing - Phys Dis - North,Nursing Homes,Leonard Cheshire  National Account Centr,703.11, 16-Apr-2013
1118,Revenue,CCHD,Bed purchasing - Phys Dis - North,Nursing Homes,Leonard Cheshire  National Account Centr,2409.03, 16-Apr-2013
1119,Revenue,CCHD,Bed purchasing - Phys Dis - North,Nursing Homes,Leonard Cheshire  National Account Centr,795.78, 16-Apr-2013
1120,Revenue,CCHD,Bed purchasing - Phys Dis - North,Residential Homes,Leonard Cheshire  National Account Centr,2862.72, 16-Apr-2013
1121,Revenue,CCHD,Bed purchasing - Phys Dis - North,Residential Homes,Leonard Cheshire  National Account Centr,2167.05, 16-Apr-2013
1122,Revenue,CCHD,Bed purchasing - Phys Dis - North,Residential Homes,Leonard Cheshire  National Account Centr,715.68, 16-Apr-2013
1123,Revenue,CCHD,Bed Purchasing - Elderly - North,Nursing Homes,Leonard Cheshire  National Account Centr,2666.46, 16-Apr-2013
1124,Revenue,CCHD,Bed Purchasing - Elderly - North,Nursing Homes,Leonard Cheshire  National Account Centr,880.33, 16-Apr-2013
1125,Revenue,CCHD,Bed purchasing - Phys Dis - North,Nursing Homes,Leonard Cheshire  National Account Centr,6409.3, 16-Apr-2013
1126,Revenue,CCHD,Bed purchasing - Phys Dis - South,Nursing Homes,Leonard Cheshire  National Account Centr,6056.64, 16-Apr-2013
1127,Revenue,CCHD,Bed purchasing - Phys Dis - South,Nursing Homes,Leonard Cheshire  National Account Centr,4586.1, 16-Apr-2013
1128,Revenue,CCHD,Bed purchasing - Phys Dis - South,Nursing Homes,Leonard Cheshire  National Account Centr,1514.16, 16-Apr-2013
1129,Revenue,CCHD,Bed purchasing - Phys Dis - North,Nursing Homes,Leonard Cheshire  National Account Centr,5468.84, 16-Apr-2013
1130,Revenue,CCHD,Bed purchasing - Phys Dis - North,Nursing Homes,Leonard Cheshire  National Account Centr,4141.02, 16-Apr-2013
1131,Revenue,CCHD,Bed purchasing - Phys Dis - North,Nursing Homes,Leonard Cheshire  National Account Centr,1367.21, 16-Apr-2013
1132,Revenue,CCHD,Bed Purchasing - Elderly - South,Nursing Homes,Leonard Cheshire  National Account Centr,2151.9, 16-Apr-2013
1133,Revenue,CCHD,Bed Purchasing - Elderly - South,Nursing Homes,Leonard Cheshire  National Account Centr,710.31, 16-Apr-2013
1134,Revenue,CCHD,Southmead Hospital Purchasing,Nursing Homes,Leonard Cheshire  National Account Centr,2995.97, 16-Apr-2013
1135,Revenue,CCHD,South Glos Users in all other LA Homes,Nursing Homes,Leonard Cheshire  National Account Centr,604.4, 16-Apr-2013
1136,Revenue,CCHD,Bed purchasing - Phys Dis - North,Nursing Homes,Leonard Cheshire  National Account Centr,3278.52, 16-Apr-2013
1137,Revenue,CCHD,Bed purchasing - Phys Dis - North,Nursing Homes,Leonard Cheshire  National Account Centr,2481.9, 16-Apr-2013
1138,Revenue,CCHD,Bed purchasing - Phys Dis - North,Nursing Homes,Leonard Cheshire  National Account Centr,819.63, 16-Apr-2013
1139,Revenue,CCHD,Frenchay Hospital Purchasing,Residential Homes,Leonard Cheshire  National Account Centr,2830.05, 16-Apr-2013
1140,Revenue,CCHD,Frenchay Hospital Purchasing,Residential Homes,Leonard Cheshire  National Account Centr,934.58, 16-Apr-2013
1141,Revenue,CCHD,Bed Purchasing - Under 65s PWLD - South,Nursing Homes,Leonard Cheshire  National Account Centr,12850.74, 16-Apr-2013
1142,Revenue,CCHD,Bed Purchasing - Elderly - South,Nursing Homes,Leonard Cheshire  National Account Centr,4327.48, 16-Apr-2013
1143,Revenue,CCHD,Bed Purchasing - Elderly - South,Nursing Homes,Leonard Cheshire  National Account Centr,3277.2, 16-Apr-2013
1144,Revenue,CCHD,Bed Purchasing - Elderly - South,Nursing Homes,Leonard Cheshire  National Account Centr,1081.87, 16-Apr-2013
1145,Revenue,CCHD,Bed Purchasing - Elderly - South,Nursing Homes,Leonard Elms Care Home,1536.65, 16-Apr-2013
1146,Revenue,CCHD,Tenancy Start Up Scheme,Other Supplies & Services,Lifestyle Lettings (Deposit),1410, 17-Apr-2013
1147,Revenue,CCHD,Supported Living - KD,Private & Voluntary Home Care,Lifeways Community Care (Gloucester) Ltd,11373, 19-Apr-2013
1148,Revenue,CCHD,Supported Living - KD,Private & Voluntary Home Care,Lifeways Community Care (Gloucester) Ltd,11373, 19-Apr-2013
1149,Revenue,CCHD,Supported Living - KD,Private & Voluntary Home Care,Lifeways Community Care (Gloucester) Ltd,8792, 19-Apr-2013
1150,Revenue,CCHD,Supported Living - KD,Private & Voluntary Home Care,Lifeways Community Care (Gloucester) Ltd,11373, 19-Apr-2013
1151,Revenue,CCHD,Newton House,Prop.Serv. General Repairs,Lionel Saunders & Co (Bristol) Limited,1000, 22-Apr-2013
1152,Revenue,CCHD,Southmead Hospital Purchasing,Residential Homes,Little Croft,2712.96, 16-Apr-2013
1153,Revenue,CCHD,Bed Purchasing - Elderly - South,Residential Homes,Little Croft,934.5, 16-Apr-2013
1154,Revenue,CCHD,Bed Purchasing - Elderly - South,Residential Homes,Little Croft,1082.04, 16-Apr-2013
1155,Revenue,CCHD,Bed Purchasing - Elderly - South,Residential Homes,Little Croft,1392, 16-Apr-2013
1156,Revenue,CCHD,Bed Purchasing - Elderly - South,Residential Homes,Little Croft,959.82, 16-Apr-2013
1157,Revenue,CCHD,Frenchay Hospital Purchasing,Residential Homes,Little Croft,798.87, 16-Apr-2013
1158,Revenue,CCHD,Bed Purchasing - Elderly MH - South,Residential Homes,Little Croft,879.96, 16-Apr-2013
1159,Revenue,CCHD,Southmead Hospital Purchasing,Residential Homes,Little Croft,907.14, 16-Apr-2013
1160,Revenue,CCHD,Southmead Hospital Purchasing,Residential Homes,Little Croft,934.5, 16-Apr-2013
1161,Revenue,CCHD,Bed purchasing - Under 65s PWLD - North,Residential Homes,Littlecroft Residential Homes  Longcroft,6570.82, 16-Apr-2013
1162,Revenue,CCHD,SLA Grants - Support Serv,Grants to Voluntary Bodies,Lives Through Friends CIC,5000, 12-Apr-2013
1163,Revenue,CCHD,Home Care - Elderly - South,Other Small Contracts,Lloyds TSB Commercial Finance Limited,375.39, 30-Apr-2013
1164,Revenue,CCHD,Home Care - Elderly - North,Other Small Contracts,Lloyds TSB Commercial Finance Limited,7271.73, 30-Apr-2013
1165,Revenue,CCHD,Day Care - South,Private & Voluntary Day Care,Lloyds TSB Commercial Finance Limited,247.68, 30-Apr-2013
1166,Revenue,CCHD,Day Care - North,Private & Voluntary Day Care,Lloyds TSB Commercial Finance Limited,220.59, 30-Apr-2013
1167,Revenue,CCHD,Supported Living - PS,Private & Voluntary Home Care,Lloyds TSB Commercial Finance Limited,3843.46, 12-Apr-2013
1168,Revenue,CCHD,Supported Living - PS,Private & Voluntary Home Care,Lloyds TSB Commercial Finance Limited,3928.9, 15-Apr-2013
1169,Revenue,CCHD,Supported Living - PS,Private & Voluntary Home Care,Lloyds TSB Commercial Finance Limited,3871.84, 17-Apr-2013
1170,Revenue,CCHD,Supported Living - PS,Private & Voluntary Home Care,Lloyds TSB Commercial Finance Limited,6093.44, 12-Apr-2013
1171,Revenue,CCHD,Supported Living - PS,Private & Voluntary Home Care,Lloyds TSB Commercial Finance Limited,3848.74, 15-Apr-2013
1172,Revenue,CCHD,Supported Living - PS,Private & Voluntary Home Care,Lloyds TSB Commercial Finance Limited,4088.3, 12-Apr-2013
1173,Revenue,CCHD,Supported Living - PS,Private & Voluntary Home Care,Lloyds TSB Commercial Finance Limited,3981.27, 12-Apr-2013
1174,Revenue,CCHD,Supported Living - PS,Private & Voluntary Home Care,Lloyds TSB Commercial Finance Limited,3888.04, 12-Apr-2013
1175,Revenue,CCHD,Supported Living - PS,Private & Voluntary Home Care,Lloyds TSB Commercial Finance Limited,3800.74, 12-Apr-2013
1176,Revenue,CCHD,Supported Living - PS,Private & Voluntary Home Care,Lloyds TSB Commercial Finance Limited,3568.42, 12-Apr-2013
1177,Revenue,CCHD,Supported Living - PS,Private & Voluntary Home Care,Lloyds TSB Commercial Finance Limited,3674.5, 15-Apr-2013
1178,Revenue,CCHD,Supported Living - PS,Private & Voluntary Home Care,Lloyds TSB Commercial Finance Limited,3580, 12-Apr-2013
1179,Revenue,CCHD,Home Care - Elderly - South,Other Small Contracts,Lloyds TSB Commercial Finance Limited,375.39, 16-Apr-2013
1180,Revenue,CCHD,Home Care - Elderly - North,Other Small Contracts,Lloyds TSB Commercial Finance Limited,7740, 16-Apr-2013
1181,Revenue,CCHD,Day Care - South,Private & Voluntary Day Care,Lloyds TSB Commercial Finance Limited,247.68, 16-Apr-2013
1182,Revenue,CCHD,Day Care - North,Private & Voluntary Day Care,Lloyds TSB Commercial Finance Limited,131.58, 16-Apr-2013
1183,Revenue,CCHD,Home Care - Elderly - South,Other Small Contracts,Lloyds TSB Commercial Finance Limited,359.91, 04-Apr-2013
1184,Revenue,CCHD,Home Care - Elderly - North,Other Small Contracts,Lloyds TSB Commercial Finance Limited,7306.56, 04-Apr-2013
1185,Revenue,CCHD,Day Care - South,Private & Voluntary Day Care,Lloyds TSB Commercial Finance Limited,251.55, 04-Apr-2013
1186,Revenue,CCHD,Day Care - North,Private & Voluntary Day Care,Lloyds TSB Commercial Finance Limited,216.72, 04-Apr-2013
1187,Revenue,CCHD,Bed Purchasing - Under 65s PWLD - South,Residential Homes,Longton Court,2720.05, 16-Apr-2013
1188,Revenue,CCHD,Southmead Hospital Purchasing,Nursing Homes,Majestic 3 Limited,998.99, 16-Apr-2013
1189,Revenue,CCHD,Frenchay Hospital Purchasing,Residential Homes,Manor Cottage,18883.06, 16-Apr-2013
1190,Revenue,CCHD,Frenchay Hospital Purchasing,Residential Homes,Manor Cottage,794.64, 16-Apr-2013
1191,Revenue,CCHD,Bed Purchasing - Elderly - North,Residential Homes,Manor Cottage,3535.37, 16-Apr-2013
1192,Revenue,CCHD,Southmead Hospital Purchasing,Residential Homes,Manor Cottage,934.5, 16-Apr-2013
1193,Revenue,CCHD,Bed Purchasing - Elderly - South,Residential Homes,Manor Cottage,1076.01, 16-Apr-2013
1194,Revenue,CCHD,Southmead Hospital Purchasing,Residential Homes,Manor Cottage,934.5, 16-Apr-2013
1195,Revenue,CCHD,Bed Purchasing - Elderly - South,Residential Homes,Manor Cottage,1086.45, 16-Apr-2013
1196,Revenue,CCHD,Bed Purchasing - Elderly - North,Residential Homes,Manton Hall Residential Home,1493.41, 16-Apr-2013
1197,Revenue,CCHD,Younger MH non-res purchasing,Private & Voluntary Day Care,Maples Community Care Limited,569.52, 12-Apr-2013
1198,Revenue,CCHD,Section 117 Placements MH Younger,Private & Voluntary Day Care,Maples Community Care Limited,1155.1, 12-Apr-2013
1199,Revenue,CCHD,Supported Living - KD,Private & Voluntary Home Care,Maples Community Care Limited,658.56, 12-Apr-2013
1200,Revenue,CCHD,Supporting People Programme,Grants to Voluntary Bodies,Maples Community Housing Limited,2677.58, 09-Apr-2013
1201,Revenue,CCHD,Social Lettings Agency,Other Supplies & Services,Individual,655.41, 19-Apr-2013
1202,Revenue,CCHD,Bed Purchasing - Under 65s PWLD - South,Residential Homes,Marsden Healthcare Limited,683.28, 12-Apr-2013
1203,Revenue,CCHD,Bed purchasing - Elderly PWLD - South,Residential Homes,Marsden Healthcare Limited,2402.25, 12-Apr-2013
1204,Revenue,CCHD,Bed purchasing - Elderly PWLD - South,Residential Homes,Marsden Healthcare Limited,794.28, 12-Apr-2013
1205,Revenue,CCHD,Bed purchasing - Elderly PWLD - South,Residential Homes,Marsden Healthcare Limited,1129.47, 12-Apr-2013
1206,Revenue,CCHD,Bed Purchasing - Elderly MH - South,Nursing Homes,Meadow Care Home,1474.39, 16-Apr-2013
1207,Revenue,CCHD,Home Care - Elderly - South,Other Small Contracts,Mears Care,534.36, 30-Apr-2013
1208,Revenue,CCHD,Home Care - Elderly - North,Other Small Contracts,Mears Care,6053.64, 30-Apr-2013
1209,Revenue,CCHD,Day Care - South,Private & Voluntary Day Care,Mears Care,87.84, 30-Apr-2013
1210,Revenue,CCHD,Day Care - North,Private & Voluntary Day Care,Mears Care,226.92, 30-Apr-2013
1211,Revenue,CCHD,Under 65s -MH  Home Care Purch,Other Small Contracts,Mears Care,109.8, 30-Apr-2013
1212,Revenue,CCHD,Home Care - Elderly LD - KH,Private & Voluntary Home Care,Mears Care,51.24, 30-Apr-2013
1213,Revenue,CCHD,Home Care - Elderly - South,Private & Voluntary Home Care,Mears Care,48154.25, 26-Apr-2013
1214,Revenue,CCHD,Home Care - Elderly - South,Other Small Contracts,Mears Care,596.58, 15-Apr-2013
1215,Revenue,CCHD,Home Care - Elderly - North,Other Small Contracts,Mears Care,6284.22, 15-Apr-2013
1216,Revenue,CCHD,Day Care - South,Private & Voluntary Day Care,Mears Care,87.84, 15-Apr-2013
1217,Revenue,CCHD,Day Care - North,Private & Voluntary Day Care,Mears Care,252.54, 15-Apr-2013
1218,Revenue,CCHD,Under 65s -MH  Home Care Purch,Other Small Contracts,Mears Care,109.8, 15-Apr-2013
1219,Revenue,CCHD,Home care - Elderly MH - North,Other Small Contracts,Mears Care,204.96, 15-Apr-2013
1220,Revenue,CCHD,Home Care - Elderly LD - KH,Private & Voluntary Home Care,Mears Care,51.24, 15-Apr-2013
1221,Revenue,CCHD,Home Care - Elderly - South,Other Small Contracts,Mears Care,596.58, 15-Apr-2013
1222,Revenue,CCHD,Home Care - Elderly - North,Other Small Contracts,Mears Care,6383.04, 15-Apr-2013
1223,Revenue,CCHD,Day Care - South,Private & Voluntary Day Care,Mears Care,87.84, 15-Apr-2013
1224,Revenue,CCHD,Day Care - North,Private & Voluntary Day Care,Mears Care,248.88, 15-Apr-2013
1225,Revenue,CCHD,Under 65s -MH  Home Care Purch,Other Small Contracts,Mears Care,109.8, 15-Apr-2013
1226,Revenue,CCHD,Home care - Elderly MH - North,Other Small Contracts,Mears Care,237.9, 15-Apr-2013
1227,Revenue,CCHD,Home Care - Elderly LD - KH,Private & Voluntary Home Care,Mears Care,51.24, 15-Apr-2013
1228,Revenue,CCHD,Home Care - Elderly - South,Other Small Contracts,Mears Care,622.2, 15-Apr-2013
1229,Revenue,CCHD,Home Care - Elderly - North,Other Small Contracts,Mears Care,6156.12, 15-Apr-2013
1230,Revenue,CCHD,Day Care - South,Private & Voluntary Day Care,Mears Care,87.84, 15-Apr-2013
1231,Revenue,CCHD,Day Care - North,Private & Voluntary Day Care,Mears Care,248.88, 15-Apr-2013
1232,Revenue,CCHD,Under 65s -MH  Home Care Purch,Other Small Contracts,Mears Care,109.8, 15-Apr-2013
1233,Revenue,CCHD,Home Care - Elderly LD - KH,Private & Voluntary Home Care,Mears Care,51.24, 15-Apr-2013
1234,Revenue,CCHD,Home Care - Elderly - North,Other Small Contracts,Medacs Home Care,747.36, 26-Apr-2013
1235,Revenue,CCHD,Home care - Elderly MH - North,Other Small Contracts,Medacs Home Care,124.56, 26-Apr-2013
1236,Revenue,CCHD,Home Care - Elderly - North,Other Small Contracts,Medacs Home Care,763, 26-Apr-2013
1237,Revenue,CCHD,Home care - Elderly MH - North,Other Small Contracts,Medacs Home Care,98, 26-Apr-2013
1238,Revenue,CCHD,Home Care - Elderly - North,Other Small Contracts,Medacs Home Care,694.8, 26-Apr-2013
1239,Revenue,CCHD,Home care - Elderly MH - North,Other Small Contracts,Medacs Home Care,124.56, 26-Apr-2013
1240,Revenue,CCHD,Home Care - Elderly - North,Other Small Contracts,Medacs Home Care,723.14, 26-Apr-2013
1241,Revenue,CCHD,Home care - Elderly MH - North,Other Small Contracts,Medacs Home Care,128.02, 26-Apr-2013
1242,Revenue,CCHD,Home Care - Elderly - North,Other Small Contracts,Medacs Home Care,778.32, 26-Apr-2013
1243,Revenue,CCHD,Home care - Elderly MH - North,Other Small Contracts,Medacs Home Care,134.94, 26-Apr-2013
1244,Revenue,CCHD,NRS Contract,Daily Living Equipment,Medequip Assistive Technology Ltd,35352.22, 19-Apr-2013
1245,Revenue,CCHD,NRS Contract,Daily Living Equipment,Medequip Assistive Technology Ltd,61244.41, 19-Apr-2013
1246,Revenue,CCHD,Bed Purchasing - Under 65s PWLD - South,Residential Homes,Mencap,2214.09, 16-Apr-2013
1247,Revenue,CCHD,Supported Living (S28a) South,Private & Voluntary Home Care,Mencap - PS North,3751.02, 24-Apr-2013
1248,Revenue,CCHD,Supported Living (S28a) South,Private & Voluntary Home Care,Mencap - PS North,3751.02, 24-Apr-2013
1249,Revenue,CCHD,Supported Living (S28a) South,Private & Voluntary Home Care,Mencap - PS North,3751.02, 24-Apr-2013
1250,Revenue,CCHD,Older People's Commissioned Se,Grants to Voluntary Bodies,Mencap Employment,5338.2, 19-Apr-2013
1251,Revenue,CCHD,Supporting People Programme,Grants to Voluntary Bodies,Merlin Housing Society,15398.42, 05-Apr-2013
1252,Revenue,CCHD,Supporting People Programme,Grants to Voluntary Bodies,Merlin Housing Society,2423, 05-Apr-2013
1253,Revenue,CCHD,Supporting People Programme,Grants to Voluntary Bodies,Merlin Housing Society,51328.08, 05-Apr-2013
1254,Revenue,CCHD,Supporting People Programme,Grants to Voluntary Bodies,Merlin Housing Society,1026.58, 05-Apr-2013
1255,Revenue,CCHD,Intermediate Care Accommodation,Other Supplies & Services,Merlin Housing Society,1212.41, 12-Apr-2013
1256,Revenue,CCHD,Frenchay Hospital Purchasing,Residential Homes,Milburn Finance,1038.99, 16-Apr-2013
1257,Revenue,CCHD,Home Care - Elderly - South,Other Small Contracts,Milestones Outreach Dementia Services,1787.76, 04-Apr-2013
1258,Revenue,CCHD,Home Care - Elderly - North,Other Small Contracts,Milestones Outreach Dementia Services,420.2, 04-Apr-2013
1259,Revenue,CCHD,Day Care - South,Private & Voluntary Day Care,Milestones Outreach Dementia Services,61.12, 04-Apr-2013
1260,Revenue,CCHD,Day Care - North,Private & Voluntary Day Care,Milestones Outreach Dementia Services,164.16, 04-Apr-2013
1261,Revenue,CCHD,Home care - Elderly MH - North,Other Small Contracts,Milestones Outreach Dementia Services,91.68, 04-Apr-2013
1262,Revenue,CCHD,Elderly MH Day Care North,Private & Voluntary Day Care,Milestones Outreach Dementia Services,106.96, 04-Apr-2013
1263,Revenue,CCHD,Home Care - Elderly - South,Other Small Contracts,Milestones Outreach Dementia Services,2043.7, 04-Apr-2013
1264,Revenue,CCHD,Home Care - Elderly - North,Other Small Contracts,Milestones Outreach Dementia Services,412.56, 04-Apr-2013
1265,Revenue,CCHD,Day Care - South,Private & Voluntary Day Care,Milestones Outreach Dementia Services,61.12, 04-Apr-2013
1266,Revenue,CCHD,Day Care - North,Private & Voluntary Day Care,Milestones Outreach Dementia Services,164.16, 04-Apr-2013
1267,Revenue,CCHD,Home care - Elderly MH - North,Other Small Contracts,Milestones Outreach Dementia Services,72.58, 04-Apr-2013
1268,Revenue,CCHD,Elderly MH Day Care North,Private & Voluntary Day Care,Milestones Outreach Dementia Services,106.96, 04-Apr-2013
1269,Revenue,CCHD,Home Care - Elderly - South,Other Small Contracts,Milestones Outreach Dementia Services,1917.64, 04-Apr-2013
1270,Revenue,CCHD,Home Care - Elderly - North,Other Small Contracts,Milestones Outreach Dementia Services,324.7, 04-Apr-2013
1271,Revenue,CCHD,Day Care - South,Private & Voluntary Day Care,Milestones Outreach Dementia Services,61.12, 04-Apr-2013
1272,Revenue,CCHD,Day Care - North,Private & Voluntary Day Care,Milestones Outreach Dementia Services,168.72, 04-Apr-2013
1273,Revenue,CCHD,Home care - Elderly MH - North,Other Small Contracts,Milestones Outreach Dementia Services,84.04, 04-Apr-2013
1274,Revenue,CCHD,Elderly MH Day Care North,Private & Voluntary Day Care,Milestones Outreach Dementia Services,106.96, 04-Apr-2013
1275,Revenue,CCHD,Home Care - Elderly - South,Other Small Contracts,Milestones Outreach Dementia Services,1860.34, 17-Apr-2013
1276,Revenue,CCHD,Home Care - Elderly - North,Other Small Contracts,Milestones Outreach Dementia Services,504.24, 17-Apr-2013
1277,Revenue,CCHD,Day Care - South,Private & Voluntary Day Care,Milestones Outreach Dementia Services,61.12, 17-Apr-2013
1278,Revenue,CCHD,Day Care - North,Private & Voluntary Day Care,Milestones Outreach Dementia Services,173.28, 17-Apr-2013
1279,Revenue,CCHD,Home care - Elderly MH - North,Other Small Contracts,Milestones Outreach Dementia Services,87.86, 17-Apr-2013
1280,Revenue,CCHD,Elderly MH Day Care North,Private & Voluntary Day Care,Milestones Outreach Dementia Services,106.96, 17-Apr-2013
1281,Revenue,CCHD,Home Care - Elderly - South,Other Small Contracts,Milestones Outreach Dementia Services,1913.82, 17-Apr-2013
1282,Revenue,CCHD,Home Care - Elderly - North,Other Small Contracts,Milestones Outreach Dementia Services,339.98, 17-Apr-2013
1283,Revenue,CCHD,Day Care - South,Private & Voluntary Day Care,Milestones Outreach Dementia Services,61.12, 17-Apr-2013
1284,Revenue,CCHD,Day Care - North,Private & Voluntary Day Care,Milestones Outreach Dementia Services,164.16, 17-Apr-2013
1285,Revenue,CCHD,Home care - Elderly MH - North,Other Small Contracts,Milestones Outreach Dementia Services,80.22, 17-Apr-2013
1286,Revenue,CCHD,Elderly MH Day Care North,Private & Voluntary Day Care,Milestones Outreach Dementia Services,106.96, 17-Apr-2013
1287,Revenue,CCHD,Supported Living (S28a) South,Private & Voluntary Home Care,Milestones Trust,3499.49, 03-Apr-2013
1288,Revenue,CCHD,Supported Living (S28a) South,Private & Voluntary Home Care,Milestones Trust,3707.69, 03-Apr-2013
1289,Revenue,CCHD,Supported Living - PS,Private & Voluntary Home Care,Milestones Trust,3578.87, 03-Apr-2013
1290,Revenue,CCHD,Supported Living (S28a) South,Private & Voluntary Home Care,Milestones Trust,2943.98, 03-Apr-2013
1291,Revenue,CCHD,Supported Living - PS,Private & Voluntary Home Care,Milestones Trust,1808.21, 03-Apr-2013
1292,Revenue,CCHD,Supported Living - PS,Private & Voluntary Home Care,Milestones Trust,648.4, 03-Apr-2013
1293,Revenue,CCHD,Supported Living - PS,Private & Voluntary Home Care,Milestones Trust,1093.25, 03-Apr-2013
1294,Revenue,CCHD,Supported Living - PS,Private & Voluntary Home Care,Milestones Trust,615.2, 03-Apr-2013
1295,Revenue,CCHD,Supported Living (S28a) South,Private & Voluntary Home Care,Milestones Trust,564.51, 03-Apr-2013
1296,Revenue,CCHD,Supported Living - PS,Private & Voluntary Home Care,Milestones Trust,14354.3, 12-Apr-2013
1297,Revenue,CCHD,Purchase of Non-Res Care - PS,Private & Voluntary Day Care,Milestones Trust,1438.7, 11-Apr-2013
1298,Revenue,CCHD,Purchase of Non-Res Care - PS,Private & Voluntary Day Care,Milestones Trust,1245.97, 15-Apr-2013
1299,Revenue,CCHD,Purchase of Non-Res Care - PS,Private & Voluntary Day Care,Milestones Trust,1133.53, 11-Apr-2013
1300,Revenue,CCHD,Purchase of Non-Res Care - PS,Private & Voluntary Day Care,Milestones Trust,1765.54, 12-Apr-2013
1301,Revenue,CCHD,Supported Living - PS,Private & Voluntary Home Care,Milestones Trust,528.01, 11-Apr-2013
1302,Revenue,CCHD,Purchase of Non-Res Care - PS,Private & Voluntary Day Care,Milestones Trust,1382.61, 12-Apr-2013
1303,Revenue,CCHD,Purchase of Non-Res Care - PS,Private & Voluntary Day Care,Milestones Trust,1796.8, 12-Apr-2013
1304,Revenue,CCHD,Purchase of Non-Res Care - PS,Private & Voluntary Day Care,Milestones Trust,2668.75, 12-Apr-2013
1305,Revenue,CCHD,Purchase of Non-Res Care - PS,Private & Voluntary Day Care,Milestones Trust,1461.17, 12-Apr-2013
1306,Revenue,CCHD,Purchase of Non-Res Care - PS,Private & Voluntary Day Care,Milestones Trust,521.4, 12-Apr-2013
1307,Revenue,CCHD,Purchase of Non-Res Care - PS,Private & Voluntary Day Care,Milestones Trust,1596.29, 15-Apr-2013
1308,Revenue,CCHD,Purchase of Non-Res Care - PS,Private & Voluntary Day Care,Milestones Trust,1231.33, 11-Apr-2013
1309,Revenue,CCHD,Supported Living - PS,Private & Voluntary Home Care,Milestones Trust,1836.01, 12-Apr-2013
1310,Revenue,CCHD,Purchase of Non-Res Care - PS,Private & Voluntary Day Care,Milestones Trust,1196.43, 12-Apr-2013
1311,Revenue,CCHD,Supported Living (S28a) North,Private & Voluntary Home Care,Milestones Trust,3666.7, 11-Apr-2013
1312,Revenue,CCHD,Supported Living (S28a) North,Private & Voluntary Home Care,Milestones Trust,3479.2, 11-Apr-2013
1313,Revenue,CCHD,Supported Living (S28a) South,Private & Voluntary Home Care,Milestones Trust,3479.2, 11-Apr-2013
1314,Revenue,CCHD,Supported Living - PS,Private & Voluntary Home Care,Milestones Trust,530.88, 12-Apr-2013
1315,Revenue,CCHD,Purchase of Non-Res Care - PS,Private & Voluntary Day Care,Milestones Trust,615.98, 11-Apr-2013
1316,Revenue,CCHD,Supported Living (S28a) South,Private & Voluntary Home Care,Milestones Trust,5869.72, 12-Apr-2013
1317,Revenue,CCHD,Supported Living - PS,Private & Voluntary Home Care,Milestones Trust,1374.16, 12-Apr-2013
1318,Revenue,CCHD,Supported Living - PS,Private & Voluntary Home Care,Milestones Trust,540, 12-Apr-2013
1319,Revenue,CCHD,Supported Living (S28a) South,Private & Voluntary Home Care,Milestones Trust,610.98, 11-Apr-2013
1320,Revenue,CCHD,Supported Living - PS,Private & Voluntary Home Care,Milestones Trust,563.3, 12-Apr-2013
1321,Revenue,CCHD,Supported Living (S28a) North,Private & Voluntary Home Care,Milestones Trust,3936.2, 11-Apr-2013
1322,Revenue,CCHD,Supported Living (S28a) North,Private & Voluntary Home Care,Milestones Trust,3936.2, 11-Apr-2013
1323,Revenue,CCHD,Supported Living - PS,Private & Voluntary Home Care,Milestones Trust,676.75, 12-Apr-2013
1324,Revenue,CCHD,Stibbs and Fairburn,Private & Voluntary Respite Care,Milestones Trust,125996.56, 11-Apr-2013
1325,Revenue,CCHD,Purchase of Non-Res Care - PS,Private & Voluntary Day Care,Milestones Trust,599.89, 12-Apr-2013
1326,Revenue,CCHD,Supported Living - PS,Private & Voluntary Home Care,Milestones Trust,907.76, 12-Apr-2013
1327,Revenue,CCHD,Supported Living - PS,Private & Voluntary Home Care,Milestones Trust,1106.31, 12-Apr-2013
1328,Revenue,CCHD,Supported Living (S28a) South,Private & Voluntary Home Care,Milestones Trust,6839.76, 11-Apr-2013
1329,Revenue,CCHD,Supported Living (S28a) North,Private & Voluntary Home Care,Milestones Trust,8313.92, 11-Apr-2013
1330,Revenue,CCHD,Supported Living (S28a) North,Private & Voluntary Home Care,Milestones Trust,8880.1, 11-Apr-2013
1331,Revenue,CCHD,Supported Living (S28a) North,Private & Voluntary Home Care,Milestones Trust,4232.19, 12-Apr-2013
1332,Revenue,CCHD,Supported Living - KD,Private & Voluntary Home Care,Milestones Trust,4231.99, 24-Apr-2013
1333,Revenue,CCHD,Supported Living - KD,Private & Voluntary Home Care,Milestones Trust,1742.13, 29-Apr-2013
1334,Revenue,CCHD,Supported Living - PS,Private & Voluntary Home Care,Milestones Trust,669.24, 15-Apr-2013
1335,Revenue,CCHD,Supported Living - KD,Private & Voluntary Home Care,Milestones Trust,594.7, 30-Apr-2013
1336,Revenue,CCHD,Supported Living - KD,Private & Voluntary Home Care,Milestones Trust,583.74, 30-Apr-2013
1337,Revenue,CCHD,Supported Living - KD,Private & Voluntary Home Care,Milestones Trust,976.56, 30-Apr-2013
1338,Revenue,CCHD,Supported Living - KD,Private & Voluntary Home Care,Milestones Trust,714.15, 30-Apr-2013
1339,Revenue,CCHD,Purchase of Non-Res Care - PS,Private & Voluntary Day Care,Milestones Trust,649.03, 16-Apr-2013
1340,Revenue,CCHD,Purchase of Non-Res Care - PS,Private & Voluntary Day Care,Milestones Trust,605.62, 16-Apr-2013
1341,Revenue,CCHD,Supported Living - KD,Private & Voluntary Home Care,Milestones Trust,948.75, 30-Apr-2013
1342,Revenue,CCHD,Elderly MH Day Care South,Private & Voluntary Day Care,Milestones Trust,640, 17-Apr-2013
1343,Revenue,CCHD,Supported Living - KD,Private & Voluntary Home Care,Milestones Trust,1690.98, 26-Apr-2013
1344,Revenue,CCHD,Supported Living - PS,Private & Voluntary Home Care,Milestones Trust,505.85, 24-Apr-2013
1345,Revenue,CCHD,Purchase of Non-Res Care - PS,Private & Voluntary Day Care,Milestones Trust,506.56, 29-Apr-2013
1346,Revenue,CCHD,Supported Living - PS,Private & Voluntary Home Care,Milestones Trust,1284.38, 29-Apr-2013
1347,Revenue,CCHD,Supported Living - KD,Private & Voluntary Home Care,Milestones Trust,545.78, 30-Apr-2013
1348,Revenue,CCHD,Supported Living - PS,Private & Voluntary Home Care,Milestones Trust,544.96, 29-Apr-2013
1349,Revenue,CCHD,Purchase of Non-Res Care - KD,Private & Voluntary Day Care,Milestones Trust,3936.2, 30-Apr-2013
1350,Revenue,CCHD,Supported Living - PS,Private & Voluntary Home Care,Milestones Trust,671.81, 29-Apr-2013
1351,Revenue,CCHD,Supported Living (S28a) South,Private & Voluntary Home Care,Milestones Trust,1661.53, 30-Apr-2013
1352,Revenue,CCHD,Supported Living - PS,Private & Voluntary Home Care,Milestones Trust,907.76, 29-Apr-2013
1353,Revenue,CCHD,Bed Purchasing - S28A - Over 65- North,Residential Homes,Milestones Trust,2936.22, 16-Apr-2013
1354,Revenue,CCHD,Bed Purchasing - S28A - Over 65- North,Residential Homes,Milestones Trust,970.58, 16-Apr-2013
1355,Revenue,CCHD,Bed Purchasing - Elderly - South,Residential Homes,Milestones Trust,1405.81, 16-Apr-2013
1356,Revenue,CCHD,Bed Purchasing - Under 65s PWLD - South,Residential Homes,Milestones Trust,4470.99, 16-Apr-2013
1357,Revenue,CCHD,Bed Purchasing - Under 65s PWLD - South,Residential Homes,Milestones Trust,1477.3, 16-Apr-2013
1358,Revenue,CCHD,Bed purchasing - Elderly MH - North,Nursing Homes,Milestones Trust,644.19, 16-Apr-2013
1359,Revenue,CCHD,Bed Purchasing - Elderly S117- North,Residential Homes,Milestones Trust,1003.98, 16-Apr-2013
1360,Revenue,CCHD,Bed purchasing - Elderly PWLD - North,Residential Homes,Milestones Trust,2688.51, 16-Apr-2013
1361,Revenue,CCHD,Bed purchasing - Elderly PWLD - North,Residential Homes,Milestones Trust,888.72, 16-Apr-2013
1362,Revenue,CCHD,Bed Purchasing - Under 65s PWLD - South,Residential Homes,Milestones Trust,3957.36, 16-Apr-2013
1363,Revenue,CCHD,Bed Purchasing - Under 65s PWLD - South,Residential Homes,Milestones Trust,1306.78, 16-Apr-2013
1364,Revenue,CCHD,Bed Purchasing - Under 65s PWLD - South,Residential Homes,Milestones Trust,4303.11, 16-Apr-2013
1365,Revenue,CCHD,Bed Purchasing - Under 65s PWLD - South,Residential Homes,Milestones Trust,1420.93, 16-Apr-2013
1366,Revenue,CCHD,Bed Purchasing - Under 65s PWLD - South,Nursing Homes,Milestones Trust,2088.66, 16-Apr-2013
1367,Revenue,CCHD,Bed Purchasing - Under 65s PWLD - South,Nursing Homes,Milestones Trust,691.58, 16-Apr-2013
1368,Revenue,CCHD,Bed Purchasing - Elderly S117- North,Nursing Homes,Milestones Trust,1473, 16-Apr-2013
1369,Revenue,CCHD,Bed purchasing - Elderly MH - North,Nursing Homes,Milestones Trust,1078.68, 16-Apr-2013
1370,Revenue,CCHD,Section 117 Placements MH Younger,Nursing Homes,Milestones Trust,1211.52, 16-Apr-2013
1371,Revenue,CCHD,Bed purchasing - Elderly PWLD - South,Residential Homes,Milestones Trust,2702.19, 16-Apr-2013
1372,Revenue,CCHD,Bed purchasing - Elderly PWLD - South,Residential Homes,Milestones Trust,893.31, 16-Apr-2013
1373,Revenue,CCHD,Bed purchasing - Elderly PWLD - South,Residential Homes,Milestones Trust,3296.25, 16-Apr-2013
1374,Revenue,CCHD,Bed purchasing - Elderly PWLD - South,Residential Homes,Milestones Trust,1089.45, 16-Apr-2013
1375,Revenue,CCHD,Bed purchasing -S28A  Under 65 - North,Nursing Homes,Milestones Trust,4390.17, 16-Apr-2013
1376,Revenue,CCHD,Bed purchasing -S28A  Under 65 - North,Nursing Homes,Milestones Trust,1450.18, 16-Apr-2013
1377,Revenue,CCHD,Bed purchasing -S28A  Under 65 - North,Residential Homes,Milestones Trust,3921.84, 16-Apr-2013
1378,Revenue,CCHD,Bed purchasing -S28A  Under 65 - North,Residential Homes,Milestones Trust,1295.99, 16-Apr-2013
1379,Revenue,CCHD,Bed Purchasing - Under 65s PWLD - South,Residential Homes,Milestones Trust,2643.81, 16-Apr-2013
1380,Revenue,CCHD,Bed Purchasing - Under 65s PWLD - South,Residential Homes,Milestones Trust,873.83, 16-Apr-2013
1381,Revenue,CCHD,Bed purchasing - S28A Under 65 - South,Residential Homes,Milestones Trust,4033.59, 16-Apr-2013
1382,Revenue,CCHD,Bed purchasing - S28A Under 65 - South,Residential Homes,Milestones Trust,1331.95, 16-Apr-2013
1383,Revenue,CCHD,Bed Purchasing - Elderly MH - South,Residential Homes,Milestones Trust,968.16, 16-Apr-2013
1384,Revenue,CCHD,Bed Purchasing - Under 65s PWLD - South,Residential Homes,Milestones Trust,4331.79, 16-Apr-2013
1385,Revenue,CCHD,Bed Purchasing - Under 65s PWLD - South,Residential Homes,Milestones Trust,1430.4, 16-Apr-2013
1386,Revenue,CCHD,Bed purchasing - S28A Under 65 - South,Nursing Homes,Milestones Trust,5733.15, 16-Apr-2013
1387,Revenue,CCHD,Bed purchasing - S28A Under 65 - South,Nursing Homes,Milestones Trust,1894.02, 16-Apr-2013
1388,Revenue,CCHD,MH Purchasing - Younger,Residential Homes,Milestones Trust,765.6, 16-Apr-2013
1389,Revenue,CCHD,Bed purchasing - Elderly PWLD - South,Residential Homes,Milestones Trust,3991.71, 16-Apr-2013
1390,Revenue,CCHD,Bed purchasing - Elderly PWLD - South,Residential Homes,Milestones Trust,1319.08, 16-Apr-2013
1391,Revenue,CCHD,Bed purchasing - Elderly PWLD - South,Residential Homes,Milestones Trust,2867.76, 16-Apr-2013
1392,Revenue,CCHD,Bed purchasing - Elderly PWLD - South,Residential Homes,Milestones Trust,947.98, 16-Apr-2013
1393,Revenue,CCHD,Bed purchasing - Elderly PWLD - North,Residential Homes,Milestones Trust,3579.99, 16-Apr-2013
1394,Revenue,CCHD,Bed purchasing - Elderly PWLD - North,Residential Homes,Milestones Trust,1183.13, 16-Apr-2013
1395,Revenue,CCHD,Bed purchasing -S28A  Under 65 - North,Residential Homes,Milestones Trust,3987.93, 16-Apr-2013
1396,Revenue,CCHD,Bed purchasing -S28A  Under 65 - North,Residential Homes,Milestones Trust,1317.17, 16-Apr-2013
1397,Revenue,CCHD,Bed purchasing -S28A  Under 65 - North,Residential Homes,Milestones Trust,4637.97, 16-Apr-2013
1398,Revenue,CCHD,Bed purchasing -S28A  Under 65 - North,Residential Homes,Milestones Trust,1531.49, 16-Apr-2013
1399,Revenue,CCHD,Bed purchasing -S28A  Under 65 - North,Nursing Homes,Milestones Trust,4704.54, 16-Apr-2013
1400,Revenue,CCHD,Bed purchasing -S28A  Under 65 - North,Nursing Homes,Milestones Trust,1553.47, 16-Apr-2013
1401,Revenue,CCHD,Bed Purchasing - Under 65s PWLD - South,Residential Homes,Milestones Trust,2797.86, 16-Apr-2013
1402,Revenue,CCHD,Bed Purchasing - Under 65s PWLD - South,Residential Homes,Milestones Trust,924.9, 16-Apr-2013
1403,Revenue,CCHD,Bed purchasing -S28A  Under 65 - North,Residential Homes,Milestones Trust,4637.97, 16-Apr-2013
1404,Revenue,CCHD,Bed purchasing -S28A  Under 65 - North,Residential Homes,Milestones Trust,1531.49, 16-Apr-2013
1405,Revenue,CCHD,Bed purchasing - S28A Under 65 - South,Residential Homes,Milestones Trust,3677.04, 16-Apr-2013
1406,Revenue,CCHD,Bed purchasing - S28A Under 65 - South,Residential Homes,Milestones Trust,1214.23, 16-Apr-2013
1407,Revenue,CCHD,Bed Purchasing - S28A - Over 65- North,Residential Homes,Milestones Trust,6496.43, 16-Apr-2013
1408,Revenue,CCHD,Bed Purchasing - LD S28A- Over 65- South,Residential Homes,Milestones Trust,3037.08, 16-Apr-2013
1409,Revenue,CCHD,Bed Purchasing - LD S28A- Over 65- South,Residential Homes,Milestones Trust,1003.88, 16-Apr-2013
1410,Revenue,CCHD,Bed purchasing -S28A  Under 65 - North,Residential Homes,Milestones Trust,4637.97, 16-Apr-2013
1411,Revenue,CCHD,Bed purchasing -S28A  Under 65 - North,Residential Homes,Milestones Trust,1531.49, 16-Apr-2013
1412,Revenue,CCHD,Bed purchasing -S28A  Under 65 - North,Residential Homes,Milestones Trust,4637.97, 16-Apr-2013
1413,Revenue,CCHD,Bed purchasing -S28A  Under 65 - North,Residential Homes,Milestones Trust,1531.49, 16-Apr-2013
1414,Revenue,CCHD,Bed Purchasing - LD S28A- Over 65- South,Residential Homes,Milestones Trust,2953.71, 16-Apr-2013
1415,Revenue,CCHD,Bed Purchasing - LD S28A- Over 65- South,Residential Homes,Milestones Trust,976.36, 16-Apr-2013
1416,Revenue,CCHD,Bed purchasing - S28A Under 65 - South,Residential Homes,Milestones Trust,3824.91, 16-Apr-2013
1417,Revenue,CCHD,Bed purchasing - S28A Under 65 - South,Residential Homes,Milestones Trust,1263.05, 16-Apr-2013
1418,Revenue,CCHD,Bed purchasing - S28A Under 65 - South,Residential Homes,Milestones Trust,5016.81, 16-Apr-2013
1419,Revenue,CCHD,Bed purchasing - S28A Under 65 - South,Residential Homes,Milestones Trust,1656.57, 16-Apr-2013
1420,Revenue,CCHD,Bed purchasing - S28A Under 65 - South,Residential Homes,Milestones Trust,3064.38, 16-Apr-2013
1421,Revenue,CCHD,Bed purchasing - S28A Under 65 - South,Residential Homes,Milestones Trust,1011.95, 16-Apr-2013
1422,Revenue,CCHD,Bed Purchasing - LD S28A- Over 65- South,Residential Homes,Milestones Trust,4406.67, 16-Apr-2013
1423,Revenue,CCHD,Bed Purchasing - LD S28A- Over 65- South,Residential Homes,Milestones Trust,1456.07, 16-Apr-2013
1424,Revenue,CCHD,Bed Purchasing - S28A - Over 65- North,Residential Homes,Milestones Trust,2569.29, 16-Apr-2013
1425,Revenue,CCHD,Bed Purchasing - S28A - Over 65- North,Residential Homes,Milestones Trust,849.43, 16-Apr-2013
1426,Revenue,CCHD,Bed Purchasing - LD S28A- Over 65- South,Residential Homes,Milestones Trust,3601.2, 16-Apr-2013
1427,Revenue,CCHD,Bed Purchasing - LD S28A- Over 65- South,Residential Homes,Milestones Trust,1190.13, 16-Apr-2013
1428,Revenue,CCHD,Bed Purchasing - LD S28A- Over 65- South,Residential Homes,Milestones Trust,3713.01, 16-Apr-2013
1429,Revenue,CCHD,Bed Purchasing - LD S28A- Over 65- South,Residential Homes,Milestones Trust,1227.05, 16-Apr-2013
1430,Revenue,CCHD,Bed Purchasing - LD S28A- Over 65- South,Residential Homes,Milestones Trust,3496.77, 16-Apr-2013
1431,Revenue,CCHD,Bed Purchasing - LD S28A- Over 65- South,Residential Homes,Milestones Trust,1155.65, 16-Apr-2013
1432,Revenue,CCHD,Bed Purchasing - LD S28A- Over 65- South,Residential Homes,Milestones Trust,4072.89, 16-Apr-2013
1433,Revenue,CCHD,Bed Purchasing - LD S28A- Over 65- South,Residential Homes,Milestones Trust,1345.87, 16-Apr-2013
1434,Revenue,CCHD,Bed purchasing -S28A  Under 65 - North,Residential Homes,Milestones Trust,5534.16, 16-Apr-2013
1435,Revenue,CCHD,Bed purchasing -S28A  Under 65 - North,Residential Homes,Milestones Trust,1827.38, 16-Apr-2013
1436,Revenue,CCHD,Bed purchasing -S28A  Under 65 - North,Nursing Homes,Milestones Trust,4767.06, 16-Apr-2013
1437,Revenue,CCHD,Bed purchasing -S28A  Under 65 - North,Nursing Homes,Milestones Trust,1574.11, 16-Apr-2013
1438,Revenue,CCHD,Bed Purchasing - LD S28A- Over 65- South,Residential Homes,Milestones Trust,2641.38, 16-Apr-2013
1439,Revenue,CCHD,Bed Purchasing - LD S28A- Over 65- South,Residential Homes,Milestones Trust,873.23, 16-Apr-2013
1440,Revenue,CCHD,Bed Purchasing - LD S28A- Over 65- South,Residential Homes,Milestones Trust,2458.56, 16-Apr-2013
1441,Revenue,CCHD,Bed Purchasing - LD S28A- Over 65- South,Residential Homes,Milestones Trust,812.87, 16-Apr-2013
1442,Revenue,CCHD,Bed Purchasing - S28A - Over 65- North,Residential Homes,Milestones Trust,2501.91, 16-Apr-2013
1443,Revenue,CCHD,Bed Purchasing - S28A - Over 65- North,Residential Homes,Milestones Trust,827.18, 16-Apr-2013
1444,Revenue,CCHD,Section 117 Placements MH Younger,Residential Homes,Milestones Trust,1333, 16-Apr-2013
1445,Revenue,CCHD,Bed purchasing - Elderly MH - North,Residential Homes,Milestones Trust,637.5, 16-Apr-2013
1446,Revenue,CCHD,Bed purchasing - S28A Under 65 - South,Residential Homes,Milestones Trust,3627.12, 16-Apr-2013
1447,Revenue,CCHD,Bed purchasing - S28A Under 65 - South,Residential Homes,Milestones Trust,1197.74, 16-Apr-2013
1448,Revenue,CCHD,Bed purchasing - Elderly PWLD - North,Residential Homes,Milestones Trust,4103.61, 16-Apr-2013
1449,Revenue,CCHD,Bed purchasing - Elderly PWLD - North,Residential Homes,Milestones Trust,1356.01, 16-Apr-2013
1450,Revenue,CCHD,Bed purchasing - Under 65s PWLD - North,Residential Homes,Milestones Trust,4173.03, 16-Apr-2013
1451,Revenue,CCHD,Bed purchasing - Under 65s PWLD - North,Residential Homes,Milestones Trust,1377.78, 16-Apr-2013
1452,Revenue,CCHD,Bed purchasing - Elderly MH - North,Nursing Homes,Milestones Trust,823.53, 16-Apr-2013
1453,Revenue,CCHD,Bed Purchasing - Under 65s PWLD - South,Residential Homes,Milestones Trust,2914.17, 16-Apr-2013
1454,Revenue,CCHD,Bed Purchasing - Under 65s PWLD - South,Residential Homes,Milestones Trust,962.35, 16-Apr-2013
1455,Revenue,CCHD,Bed purchasing -S28A  Under 65 - North,Residential Homes,Milestones Trust,4369.65, 16-Apr-2013
1456,Revenue,CCHD,Bed purchasing -S28A  Under 65 - North,Residential Homes,Milestones Trust,1442.9, 16-Apr-2013
1457,Revenue,CCHD,Bed Purchasing - S28A - Over 65- North,Residential Homes,Milestones Trust,2473.71, 16-Apr-2013
1458,Revenue,CCHD,Bed Purchasing - S28A - Over 65- North,Residential Homes,Milestones Trust,817.87, 16-Apr-2013
1459,Revenue,CCHD,Section 117 Placements MH Younger,Residential Homes,Milestones Trust,1299, 16-Apr-2013
1460,Revenue,CCHD,MH Purchasing - Younger,Residential Homes,Milestones Trust,765.6, 16-Apr-2013
1461,Revenue,CCHD,Bed Purchasing - S28A - Over 65- North,Residential Homes,Milestones Trust,2655.27, 16-Apr-2013
1462,Revenue,CCHD,Bed Purchasing - S28A - Over 65- North,Residential Homes,Milestones Trust,877.82, 16-Apr-2013
1463,Revenue,CCHD,Bed purchasing - S28A Under 65 - South,Residential Homes,Milestones Trust,2695.14, 16-Apr-2013
1464,Revenue,CCHD,Bed purchasing - S28A Under 65 - South,Residential Homes,Milestones Trust,890.98, 16-Apr-2013
1465,Revenue,CCHD,Bed purchasing - S28A Under 65 - South,Residential Homes,Milestones Trust,3824.91, 16-Apr-2013
1466,Revenue,CCHD,Bed purchasing - S28A Under 65 - South,Residential Homes,Milestones Trust,1263.05, 16-Apr-2013
1467,Revenue,CCHD,Bed purchasing - S28A Under 65 - South,Residential Homes,Milestones Trust,4561.26, 16-Apr-2013
1468,Revenue,CCHD,Bed purchasing - S28A Under 65 - South,Residential Homes,Milestones Trust,1506.16, 16-Apr-2013
1469,Revenue,CCHD,Bed Purchasing - LD S28A- Over 65- South,Residential Homes,Milestones Trust,4462.62, 16-Apr-2013
1470,Revenue,CCHD,Bed Purchasing - LD S28A- Over 65- South,Residential Homes,Milestones Trust,1474.54, 16-Apr-2013
1471,Revenue,CCHD,Bed Purchasing - LD S28A- Over 65- South,Residential Homes,Milestones Trust,3150.24, 16-Apr-2013
1472,Revenue,CCHD,Bed Purchasing - LD S28A- Over 65- South,Residential Homes,Milestones Trust,1041.24, 16-Apr-2013
1473,Revenue,CCHD,Bed Purchasing - LD S28A- Over 65- South,Residential Homes,Milestones Trust,3570.84, 16-Apr-2013
1474,Revenue,CCHD,Bed Purchasing - LD S28A- Over 65- South,Residential Homes,Milestones Trust,1180.11, 16-Apr-2013
1475,Revenue,CCHD,Bed Purchasing - LD S28A- Over 65- South,Residential Homes,Milestones Trust,4242.6, 16-Apr-2013
1476,Revenue,CCHD,Bed Purchasing - LD S28A- Over 65- South,Residential Homes,Milestones Trust,1401.9, 16-Apr-2013
1477,Revenue,CCHD,Bed purchasing - S28A Under 65 - South,Residential Homes,Milestones Trust,5750.04, 16-Apr-2013
1478,Revenue,CCHD,Bed purchasing - S28A Under 65 - South,Residential Homes,Milestones Trust,1899.98, 16-Apr-2013
1479,Revenue,CCHD,Bed Purchasing - LD S28A- Over 65- South,Residential Homes,Milestones Trust,3708.57, 16-Apr-2013
1480,Revenue,CCHD,Bed Purchasing - LD S28A- Over 65- South,Residential Homes,Milestones Trust,1225.58, 16-Apr-2013
1481,Revenue,CCHD,Bed purchasing -S28A  Under 65 - North,Residential Homes,Milestones Trust,3591.63, 16-Apr-2013
1482,Revenue,CCHD,Bed purchasing -S28A  Under 65 - North,Residential Homes,Milestones Trust,1185.98, 16-Apr-2013
1483,Revenue,CCHD,Section 117 Placements MH Younger,Nursing Homes,Milestones Trust,1341, 16-Apr-2013
1484,Revenue,CCHD,Bed Purchasing - S28A - Over 65- North,Residential Homes,Milestones Trust,3695.76, 16-Apr-2013
1485,Revenue,CCHD,Bed Purchasing - S28A - Over 65- North,Residential Homes,Milestones Trust,1221.35, 16-Apr-2013
1486,Revenue,CCHD,Bed Purchasing - S28A - Over 65- North,Residential Homes,Milestones Trust,4141.17, 16-Apr-2013
1487,Revenue,CCHD,Bed Purchasing - S28A - Over 65- North,Residential Homes,Milestones Trust,1368.41, 16-Apr-2013
1488,Revenue,CCHD,Bed purchasing - S28A Under 65 - South,Residential Homes,Milestones Trust,3491.16, 16-Apr-2013
1489,Revenue,CCHD,Bed purchasing - S28A Under 65 - South,Residential Homes,Milestones Trust,1152.86, 16-Apr-2013
1490,Revenue,CCHD,Bed Purchasing - S28A - Over 65- North,Residential Homes,Milestones Trust,3695.76, 16-Apr-2013
1491,Revenue,CCHD,Bed Purchasing - S28A - Over 65- North,Residential Homes,Milestones Trust,1221.35, 16-Apr-2013
1492,Revenue,CCHD,Bed purchasing - S28A Under 65 - South,Residential Homes,Milestones Trust,3456.18, 16-Apr-2013
1493,Revenue,CCHD,Bed purchasing - S28A Under 65 - South,Residential Homes,Milestones Trust,1142.25, 16-Apr-2013
1494,Revenue,CCHD,Bed purchasing -S28A  Under 65 - North,Residential Homes,Milestones Trust,4637.97, 16-Apr-2013
1495,Revenue,CCHD,Bed purchasing -S28A  Under 65 - North,Residential Homes,Milestones Trust,1531.49, 16-Apr-2013
1496,Revenue,CCHD,Bed Purchasing - S28A - Over 65- North,Residential Homes,Milestones Trust,4253.28, 16-Apr-2013
1497,Revenue,CCHD,Bed Purchasing - S28A - Over 65- North,Residential Homes,Milestones Trust,1405.42, 16-Apr-2013
1498,Revenue,CCHD,Bed purchasing -S28A  Under 65 - North,Residential Homes,Milestones Trust,2625.99, 16-Apr-2013
1499,Revenue,CCHD,Bed purchasing -S28A  Under 65 - North,Residential Homes,Milestones Trust,867.21, 16-Apr-2013
1500,Revenue,CCHD,Bed Purchasing - S28A - Over 65- North,Residential Homes,Milestones Trust,2476.47, 16-Apr-2013
1501,Revenue,CCHD,Bed Purchasing - S28A - Over 65- North,Residential Homes,Milestones Trust,818.79, 16-Apr-2013
1502,Revenue,CCHD,Bed Purchasing - S28A - Over 65- North,Residential Homes,Milestones Trust,3434, 16-Apr-2013
1503,Revenue,CCHD,Bed Purchasing - LD S28A- Over 65- South,Residential Homes,Milestones Trust,2422.74, 16-Apr-2013
1504,Revenue,CCHD,Bed Purchasing - LD S28A- Over 65- South,Residential Homes,Milestones Trust,801.05, 16-Apr-2013
1505,Revenue,CCHD,Bed Purchasing - Elderly - South,Nursing Homes,Milestones Trust,1101.39, 16-Apr-2013
1506,Revenue,CCHD,Bed purchasing - Under 65s PWLD - North,Residential Homes,Milestones Trust,4637.97, 16-Apr-2013
1507,Revenue,CCHD,Bed purchasing - Under 65s PWLD - North,Residential Homes,Milestones Trust,1531.49, 16-Apr-2013
1508,Revenue,CCHD,MH Purchasing - Younger,Nursing Homes,Milestones Trust,693, 16-Apr-2013
1509,Revenue,CCHD,MH Purchasing - Younger,Nursing Homes,Milestones Trust,706.5, 16-Apr-2013
1510,Revenue,CCHD,MH Purchasing - Younger,Residential Homes,Milestones Trust,765.6, 16-Apr-2013
1511,Revenue,CCHD,Bed purchasing - Elderly PWLD - South,Residential Homes,Milestones Trust,2570.82, 16-Apr-2013
1512,Revenue,CCHD,Bed purchasing - Elderly PWLD - South,Residential Homes,Milestones Trust,849.94, 16-Apr-2013
1513,Revenue,CCHD,Bed purchasing - S28A Under 65 - South,Residential Homes,Milestones Trust,5427.15, 16-Apr-2013
1514,Revenue,CCHD,Bed purchasing - S28A Under 65 - South,Residential Homes,Milestones Trust,1792.05, 16-Apr-2013
1515,Revenue,CCHD,Bed purchasing - S28A Under 65 - South,Residential Homes,Milestones Trust,3681.6, 16-Apr-2013
1516,Revenue,CCHD,Bed purchasing - S28A Under 65 - South,Residential Homes,Milestones Trust,1216.68, 16-Apr-2013
1517,Revenue,CCHD,Bed Purchasing - LD S28A- Over 65- South,Residential Homes,Milestones Trust,3501.36, 16-Apr-2013
1518,Revenue,CCHD,Bed Purchasing - LD S28A- Over 65- South,Residential Homes,Milestones Trust,1157.17, 16-Apr-2013
1519,Revenue,CCHD,Bed Purchasing - Under 65s PWLD - South,Residential Homes,Milestones Trust,3159.24, 16-Apr-2013
1520,Revenue,CCHD,Bed Purchasing - Under 65s PWLD - South,Residential Homes,Milestones Trust,1043.27, 16-Apr-2013
1521,Revenue,CCHD,Bed Purchasing - LD S28A- Over 65- South,Nursing Homes,Milestones Trust,3174.12, 16-Apr-2013
1522,Revenue,CCHD,Bed Purchasing - LD S28A- Over 65- South,Nursing Homes,Milestones Trust,1049.1, 16-Apr-2013
1523,Revenue,CCHD,Bed Purchasing - LD S28A- Over 65- South,Residential Homes,Milestones Trust,4462.62, 16-Apr-2013
1524,Revenue,CCHD,Bed Purchasing - LD S28A- Over 65- South,Residential Homes,Milestones Trust,1474.54, 16-Apr-2013
1525,Revenue,CCHD,Bed Purchasing - LD S28A- Over 65- South,Residential Homes,Milestones Trust,3004.95, 16-Apr-2013
1526,Revenue,CCHD,Bed Purchasing - LD S28A- Over 65- South,Residential Homes,Milestones Trust,993.27, 16-Apr-2013
1527,Revenue,CCHD,Bed Purchasing - LD S28A- Over 65- South,Residential Homes,Milestones Trust,3333.36, 16-Apr-2013
1528,Revenue,CCHD,Bed Purchasing - LD S28A- Over 65- South,Residential Homes,Milestones Trust,1101.7, 16-Apr-2013
1529,Revenue,CCHD,Bed Purchasing - LD S28A- Over 65- South,Residential Homes,Milestones Trust,3900.57, 16-Apr-2013
1530,Revenue,CCHD,Bed Purchasing - LD S28A- Over 65- South,Residential Homes,Milestones Trust,1288.97, 16-Apr-2013
1531,Revenue,CCHD,Bed Purchasing - Elderly MH - South,Residential Homes,Milestones Trust,909.06, 16-Apr-2013
1532,Revenue,CCHD,Bed Purchasing - Elderly S117- North,Nursing Homes,Milestones Trust,1959, 16-Apr-2013
1533,Revenue,CCHD,Bed purchasing - Under 65s PWLD - North,Residential Homes,Milestones Trust,8903.92, 16-Apr-2013
1534,Revenue,CCHD,Bed Purchasing - Elderly S117- North,Residential Homes,Milestones Trust,1333, 16-Apr-2013
1535,Revenue,CCHD,Bed Purchasing - LD S28A- Over 65- South,Nursing Homes,Milestones Trust,2265.48, 16-Apr-2013
1536,Revenue,CCHD,Bed Purchasing - LD S28A- Over 65- South,Nursing Homes,Milestones Trust,749.13, 16-Apr-2013
1537,Revenue,CCHD,Bed Purchasing - LD S28A- Over 65- South,Nursing Homes,Milestones Trust,1930.29, 16-Apr-2013
1538,Revenue,CCHD,Bed Purchasing - LD S28A- Over 65- South,Nursing Homes,Milestones Trust,638.46, 16-Apr-2013
1539,Revenue,CCHD,Bed Purchasing - LD S28A- Over 65- South,Nursing Homes,Milestones Trust,2474.04, 16-Apr-2013
1540,Revenue,CCHD,Bed Purchasing - LD S28A- Over 65- South,Nursing Homes,Milestones Trust,817.98, 16-Apr-2013
1541,Revenue,CCHD,Bed Purchasing - S28A - Over 65- North,Nursing Homes,Milestones Trust,2736.99, 16-Apr-2013
1542,Revenue,CCHD,Bed Purchasing - S28A - Over 65- North,Nursing Homes,Milestones Trust,904.8, 16-Apr-2013
1543,Revenue,CCHD,Bed Purchasing - S28A - Over 65- North,Nursing Homes,Milestones Trust,2736.99, 16-Apr-2013
1544,Revenue,CCHD,Bed Purchasing - S28A - Over 65- North,Nursing Homes,Milestones Trust,904.8, 16-Apr-2013
1545,Revenue,CCHD,Bed Purchasing - PWLD S 117 Placements,Residential Homes,Milestones Trust,5757.68, 16-Apr-2013
1546,Revenue,CCHD,Bed purchasing - Elderly S117 - South,Residential Homes,Mostyn Lodge Residential Home,1895, 16-Apr-2013
1547,Revenue,CCHD,Frenchay Hospital Purchasing,Residential Homes,Mostyn Lodge Residential Home,618.55, 16-Apr-2013
1548,Revenue,CCHD,Older People's Commissioned Se,Grants to Voluntary Bodies,Mothers for Mothers,2155.25, 03-Apr-2013
1549,Revenue,CCHD,Social Lettings Agency,Other Supplies & Services,Individual,565, 22-Apr-2013
1550,Revenue,CCHD,Social Lettings Agency,Other Supplies & Services,Individual,850, 12-Apr-2013
1551,Revenue,CCHD,Tenancy Start Up Scheme,Other Supplies & Services,Individual,1200, 16-Apr-2013
1552,Revenue,CCHD,Tenancy Start Up Scheme,Other Supplies & Services,Individual,1300, 24-Apr-2013
1553,Revenue,CCHD,Bed Purchasing - Under 65s PWLD - South,Residential Homes,Mr J Davis & Mrs S Davis,1918.21, 23-Apr-2013
1554,Revenue,CCHD,Social Lettings Agency,Other Supplies & Services,Individual,565, 08-Apr-2013
1555,Revenue,CCHD,Tenancy Start Up Scheme,Other Supplies & Services,Individual,625, 26-Apr-2013
1556,Revenue,CCHD,Social Lettings Agency,Other Supplies & Services,Individual,632.81, 19-Apr-2013
1557,Revenue,CCHD,Social Lettings Agency,Other Supplies & Services,Individual,551.44, 08-Apr-2013
1558,Revenue,CCHD,Social Lettings Agency,Other Supplies & Services,Individual,572.8, 16-Apr-2013
1559,Revenue,CCHD,Social Lettings Agency,Other Supplies & Services,Individual,632.81, 12-Apr-2013
1560,Revenue,CCHD,Purchase of Non-Res Care - PS,Private & Voluntary Day Care,Mrs B Kimber,1008.18, 19-Apr-2013
1561,Revenue,CCHD,Supported Living - KD,Private & Voluntary Home Care,Mrs B Kimber,1127.96, 03-Apr-2013
1562,Revenue,CCHD,Supported Living - PS,Private & Voluntary Home Care,Mrs B Kimber,1240.36, 15-Apr-2013
1563,Revenue,CCHD,Elderly MH Day Care South,Private & Voluntary Day Care,Mrs B Kimber,517.16, 02-Apr-2013
1564,Revenue,CCHD,Supported Living - PS,Private & Voluntary Home Care,Mrs B Kimber,8680.76, 15-Apr-2013
1565,Revenue,CCHD,Supported Living - PS,Private & Voluntary Home Care,Mrs B Kimber,10832.69, 15-Apr-2013
1566,Revenue,CCHD,Day Care - North,Private & Voluntary Day Care,Mrs B Kimber,543.24, 15-Apr-2013
1567,Revenue,CCHD,Purchase of Non-Res Care - KD,Private & Voluntary Day Care,Mrs B Kimber,787.98, 30-Apr-2013
1568,Revenue,CCHD,Supported Living - KD,Private & Voluntary Home Care,Mrs B Kimber,1165.88, 30-Apr-2013
1569,Revenue,CCHD,Supported Living - PS,Private & Voluntary Home Care,Mrs B Kimber,1252.43, 15-Apr-2013
1570,Revenue,CCHD,Purchase of Non-Res Care - PS,Private & Voluntary Day Care,Mrs B Kimber,1341.57, 16-Apr-2013
1571,Revenue,CCHD,Elderly MH Day Care South,Private & Voluntary Day Care,Mrs B Kimber,517.16, 17-Apr-2013
1572,Revenue,CCHD,Home Care - Elderly - South,Other Small Contracts,Mrs B Kimber - Stepping Stones,5782.42, 04-Apr-2013
1573,Revenue,CCHD,Home Care - Elderly - North,Other Small Contracts,Mrs B Kimber - Stepping Stones,4030.05, 04-Apr-2013
1574,Revenue,CCHD,Day Care - South,Private & Voluntary Day Care,Mrs B Kimber - Stepping Stones,585.46, 04-Apr-2013
1575,Revenue,CCHD,Day Care - North,Private & Voluntary Day Care,Mrs B Kimber - Stepping Stones,32.08, 04-Apr-2013
1576,Revenue,CCHD,Elderly MH Day Care North,Private & Voluntary Day Care,Mrs B Kimber - Stepping Stones,96.24, 04-Apr-2013
1577,Revenue,CCHD,Home care - Elderly MH - South,Other Small Contracts,Mrs B Kimber - Stepping Stones,220.55, 04-Apr-2013
1578,Revenue,CCHD,Supported Living - KD,Private & Voluntary Home Care,Mrs B Kimber - Stepping Stones,781.95, 04-Apr-2013
1579,Revenue,CCHD,PWLD Home Care - Under 65 - KH,Private & Voluntary Home Care,Mrs B Kimber - Stepping Stones,88.22, 04-Apr-2013
1580,Revenue,CCHD,Home Care - Elderly LD - North,Private & Voluntary Home Care,Mrs B Kimber - Stepping Stones,954.38, 04-Apr-2013
1581,Revenue,CCHD,Home Care - Elderly - South,Other Small Contracts,Mrs B Kimber - Stepping Stones,6355.85, 16-Apr-2013
1582,Revenue,CCHD,Home Care - Elderly - North,Other Small Contracts,Mrs B Kimber - Stepping Stones,3821.53, 16-Apr-2013
1583,Revenue,CCHD,Day Care - South,Private & Voluntary Day Care,Mrs B Kimber - Stepping Stones,553.38, 16-Apr-2013
1584,Revenue,CCHD,Day Care - North,Private & Voluntary Day Care,Mrs B Kimber - Stepping Stones,100.25, 16-Apr-2013
1585,Revenue,CCHD,Elderly MH Day Care North,Private & Voluntary Day Care,Mrs B Kimber - Stepping Stones,96.24, 16-Apr-2013
1586,Revenue,CCHD,Home care - Elderly MH - South,Other Small Contracts,Mrs B Kimber - Stepping Stones,216.54, 16-Apr-2013
1587,Revenue,CCHD,Supported Living - KD,Private & Voluntary Home Care,Mrs B Kimber - Stepping Stones,781.95, 16-Apr-2013
1588,Revenue,CCHD,PWLD Home Care - Under 65 - KH,Private & Voluntary Home Care,Mrs B Kimber - Stepping Stones,64.16, 16-Apr-2013
1589,Revenue,CCHD,Home Care - Elderly LD - North,Private & Voluntary Home Care,Mrs B Kimber - Stepping Stones,954.38, 16-Apr-2013
1590,Revenue,CCHD,Home Care - Elderly - South,Other Small Contracts,Mrs B Kimber - Stepping Stones,6059.11, 16-Apr-2013
1591,Revenue,CCHD,Home Care - Elderly - North,Other Small Contracts,Mrs B Kimber - Stepping Stones,4146.34, 16-Apr-2013
1592,Revenue,CCHD,Day Care - South,Private & Voluntary Day Care,Mrs B Kimber - Stepping Stones,501.25, 16-Apr-2013
1593,Revenue,CCHD,Day Care - North,Private & Voluntary Day Care,Mrs B Kimber - Stepping Stones,36.09, 16-Apr-2013
1594,Revenue,CCHD,Elderly MH Day Care North,Private & Voluntary Day Care,Mrs B Kimber - Stepping Stones,96.24, 16-Apr-2013
1595,Revenue,CCHD,Home care - Elderly MH - South,Other Small Contracts,Mrs B Kimber - Stepping Stones,184.46, 16-Apr-2013
1596,Revenue,CCHD,Supported Living - KD,Private & Voluntary Home Care,Mrs B Kimber - Stepping Stones,773.93, 16-Apr-2013
1597,Revenue,CCHD,PWLD Home Care - Under 65 - KH,Private & Voluntary Home Care,Mrs B Kimber - Stepping Stones,88.22, 16-Apr-2013
1598,Revenue,CCHD,Home Care - Elderly LD - North,Private & Voluntary Home Care,Mrs B Kimber - Stepping Stones,962.4, 16-Apr-2013
1599,Revenue,CCHD,Home Care - Elderly - South,Other Small Contracts,Mrs B Kimber - Stepping Stones,5874.65, 30-Apr-2013
1600,Revenue,CCHD,Home Care - Elderly - North,Other Small Contracts,Mrs B Kimber - Stepping Stones,4240.86, 30-Apr-2013
1601,Revenue,CCHD,Day Care - South,Private & Voluntary Day Care,Mrs B Kimber - Stepping Stones,517.29, 30-Apr-2013
1602,Revenue,CCHD,Day Care - North,Private & Voluntary Day Care,Mrs B Kimber - Stepping Stones,104.26, 30-Apr-2013
1603,Revenue,CCHD,Elderly MH Day Care North,Private & Voluntary Day Care,Mrs B Kimber - Stepping Stones,92.23, 30-Apr-2013
1604,Revenue,CCHD,Home care - Elderly MH - South,Other Small Contracts,Mrs B Kimber - Stepping Stones,192.48, 30-Apr-2013
1605,Revenue,CCHD,Supported Living - KD,Private & Voluntary Home Care,Mrs B Kimber - Stepping Stones,806.01, 30-Apr-2013
1606,Revenue,CCHD,PWLD Home Care - Under 65 - KH,Private & Voluntary Home Care,Mrs B Kimber - Stepping Stones,64.16, 30-Apr-2013
1607,Revenue,CCHD,Home Care - Elderly LD - North,Private & Voluntary Home Care,Mrs B Kimber - Stepping Stones,942.35, 30-Apr-2013
1608,Revenue,CCHD,Home Care - Elderly - South,Other Small Contracts,Mrs B Kimber - Stepping Stones,6156, 30-Apr-2013
1609,Revenue,CCHD,Home Care - Elderly - North,Other Small Contracts,Mrs B Kimber - Stepping Stones,4546.56, 30-Apr-2013
1610,Revenue,CCHD,Day Care - South,Private & Voluntary Day Care,Mrs B Kimber - Stepping Stones,518.4, 30-Apr-2013
1611,Revenue,CCHD,Day Care - North,Private & Voluntary Day Care,Mrs B Kimber - Stepping Stones,32.4, 30-Apr-2013
1612,Revenue,CCHD,Elderly MH Day Care North,Private & Voluntary Day Care,Mrs B Kimber - Stepping Stones,97.2, 30-Apr-2013
1613,Revenue,CCHD,Home care - Elderly MH - South,Other Small Contracts,Mrs B Kimber - Stepping Stones,198.45, 30-Apr-2013
1614,Revenue,CCHD,Supported Living - KD,Private & Voluntary Home Care,Mrs B Kimber - Stepping Stones,886.95, 30-Apr-2013
1615,Revenue,CCHD,PWLD Home Care - Under 65 - KH,Private & Voluntary Home Care,Mrs B Kimber - Stepping Stones,89.1, 30-Apr-2013
1616,Revenue,CCHD,Home Care - Elderly LD - North,Private & Voluntary Home Care,Mrs B Kimber - Stepping Stones,862.65, 30-Apr-2013
1617,Revenue,CCHD,Social Lettings Agency,Other Supplies & Services,Individual,565, 17-Apr-2013
1618,Revenue,CCHD,Homelessness Grant,Other Supplies & Services,Mrs D Parsons,700.01, 11-Apr-2013
1619,Revenue,CCHD,Social Lettings Agency,Other Supplies & Services,Individual,565, 24-Apr-2013
1620,Revenue,CCHD,Supported Living - KD,Residential Homes,Mrs I M Bowerman,2004.24, 16-Apr-2013
1621,Revenue,CCHD,Social Lettings Agency,Other Supplies & Services,Individual,565, 12-Apr-2013
1622,Revenue,CCHD,Tenancy Start Up Scheme,Fees & Charges Income - General,Individual,625, 23-Apr-2013
1623,Revenue,CCHD,Social Lettings Agency,Other Supplies & Services,Individual,655.41, 16-Apr-2013
1624,Revenue,CCHD,Purchase of Non-Res Care - KD,Private & Voluntary Day Care,Mrs W Thompson,1484.4, 04-Apr-2013
1625,Revenue,CCHD,Purchase of Non-Res Care - KD,Private & Voluntary Day Care,Mrs W Thompson,563.28, 04-Apr-2013
1626,Revenue,CCHD,Social Lettings Agency,Other Supplies & Services,Individual,858.8, 11-Apr-2013
1627,Revenue,CCHD,Tenancy Start Up Scheme,Other Supplies & Services,Individual,1300, 29-Apr-2013
1628,Revenue,CCHD,Younger MH non-res purchasing,Private & Voluntary Day Care,NAS Services Limited,658.95, 19-Apr-2013
1629,Revenue,CCHD,Younger MH non-res purchasing,Private & Voluntary Day Care,NAS Services Limited,549.13, 19-Apr-2013
1630,Revenue,CCHD,Younger MH non-res purchasing,Private & Voluntary Day Care,NAS Services Limited,537.05, 19-Apr-2013
1631,Revenue,CCHD,SLA Grants - Support Serv,Grants to Voluntary Bodies,NAS Services Limited,4179, 10-Apr-2013
1632,Revenue,CCHD,Bed Purchasing - Under 65s PWLD - South,Residential Homes,National Star College,4580.45, 16-Apr-2013
1633,Revenue,CCHD,Younger MH non-res purchasing,Private & Voluntary Day Care,Natureworks Training Community Interest,1800, 26-Apr-2013
1634,Revenue,CCHD,Purchase of Non-Res Care - KD,Private & Voluntary Day Care,Natureworks Training Community Interest,2255.68, 26-Apr-2013
1635,Revenue,CCHD,Home Care - Elderly - South,Other Small Contracts,Network Health & Social Care,1151.15, 09-Apr-2013
1636,Revenue,CCHD,Home Care - Elderly - North,Other Small Contracts,Network Health & Social Care,3711.4, 09-Apr-2013
1637,Revenue,CCHD,Day Care - North,Private & Voluntary Day Care,Network Health & Social Care,19.25, 09-Apr-2013
1638,Revenue,CCHD,Home Care - Elderly - South,Other Small Contracts,Network Health & Social Care,1181.95, 09-Apr-2013
1639,Revenue,CCHD,Home Care - Elderly - North,Other Small Contracts,Network Health & Social Care,3076.15, 09-Apr-2013
1640,Revenue,CCHD,Day Care - North,Private & Voluntary Day Care,Network Health & Social Care,30.8, 09-Apr-2013
1641,Revenue,CCHD,Home Care - Elderly - South,Other Small Contracts,Network Health & Social Care,1151.15, 09-Apr-2013
1642,Revenue,CCHD,Home Care - Elderly - North,Other Small Contracts,Network Health & Social Care,2995.3, 09-Apr-2013
1643,Revenue,CCHD,Day Care - North,Private & Voluntary Day Care,Network Health & Social Care,26.95, 09-Apr-2013
1644,Revenue,CCHD,Home Care - Elderly - South,Other Small Contracts,Network Health & Social Care,1139.6, 26-Apr-2013
1645,Revenue,CCHD,Home Care - Elderly - North,Other Small Contracts,Network Health & Social Care,2837.45, 26-Apr-2013
1646,Revenue,CCHD,Day Care - North,Private & Voluntary Day Care,Network Health & Social Care,30.8, 26-Apr-2013
1647,Revenue,CCHD,Social Lettings Agency,Other Supplies & Services,Individual,565, 04-Apr-2013
1648,Revenue,CCHD,Access Team,"Holidays, Outings & Visits",Neville Williams,720, 15-Apr-2013
1649,Revenue,CCHD,Bed Purchasing - Under 65s PWLD - South,Residential Homes,Nightingale Nursing Home,3098.18, 16-Apr-2013
1650,Revenue,CCHD,SLA Grants - Support Serv,Grants to Voluntary Bodies,North Bristol NHS Trust,4350, 03-Apr-2013
1651,Revenue,CCHD,Information Systems - Software,Software Support & Maintenance,Northgate Information Solutions UK Limited,2600, 25-Apr-2013
1652,Revenue,CCHD,Bed Purchasing - Under 65s PWLD - South,Residential Homes,Norwood   Broadway House,4887.99, 16-Apr-2013
1653,Revenue,CCHD,Bed Purchasing - Elderly MH - South,Residential Homes,Notaro Homes Ltd  Queensmead Court,1392.99, 16-Apr-2013
1654,Revenue,CCHD,Southmead Hospital Purchasing,Residential Homes,Notaro Homes Ltd  Queensmead Court,1028.49, 16-Apr-2013
1655,Revenue,CCHD,Bed purchasing - Elderly MH - North,Residential Homes,Notaro Homes Ltd  Queensmead Court,3021.6, 16-Apr-2013
1656,Revenue,CCHD,Home Care - Elderly - South,Other Small Contracts,Nursing Solutions Limited,1273.8, 10-Apr-2013
1657,Revenue,CCHD,Home Care - Elderly - South,Other Small Contracts,Nursing Solutions Limited,1065.36, 04-Apr-2013
1658,Revenue,CCHD,Home Care - Elderly - South,Other Small Contracts,Nursing Solutions Limited,1019.04, 04-Apr-2013
1659,Revenue,CCHD,Section 117 Placements MH Younger,Nursing Homes,Oaklands,3428.57, 16-Apr-2013
1660,Revenue,CCHD,Home Care - Elderly - South,Other Small Contracts,On the Up,653.22, 09-Apr-2013
1661,Revenue,CCHD,Home Care - Elderly - North,Other Small Contracts,On the Up,164.26, 09-Apr-2013
1662,Revenue,CCHD,Day Care - South,Private & Voluntary Day Care,On the Up,579.36, 09-Apr-2013
1663,Revenue,CCHD,Day Care - North,Private & Voluntary Day Care,On the Up,387.6, 09-Apr-2013
1664,Revenue,CCHD,Younger MH non-res purchasing,Private & Voluntary Day Care,On the Up,36.48, 09-Apr-2013
1665,Revenue,CCHD,Elderly MH Day Care North,Private & Voluntary Day Care,On the Up,122.24, 09-Apr-2013
1666,Revenue,CCHD,Home Care - Elderly - South,Other Small Contracts,On the Up,685.88, 04-Apr-2013
1667,Revenue,CCHD,Home Care - Elderly - North,Other Small Contracts,On the Up,137.52, 04-Apr-2013
1668,Revenue,CCHD,Day Care - South,Private & Voluntary Day Care,On the Up,547.44, 04-Apr-2013
1669,Revenue,CCHD,Day Care - North,Private & Voluntary Day Care,On the Up,396.72, 04-Apr-2013
1670,Revenue,CCHD,Younger MH non-res purchasing,Private & Voluntary Day Care,On the Up,36.48, 04-Apr-2013
1671,Revenue,CCHD,Elderly MH Day Care North,Private & Voluntary Day Care,On the Up,61.12, 04-Apr-2013
1672,Revenue,CCHD,Housing Advice,Grants to Voluntary Bodies,Orchard & Shipman PLC,13333.25, 30-Apr-2013
1673,Revenue,CCHD,Bed purchasing -S28A  Under 65 - North,Residential Homes,Orchard End Limited,7634.13, 16-Apr-2013
1674,Revenue,CCHD,Turnberries,"Provisions (Food, etc)",Origin Cafe,635.8, 29-Apr-2013
1675,Revenue,CCHD,Bed Purchasing - Elderly S117- North,Residential Homes,Osbourne Court,1425, 16-Apr-2013
1676,Revenue,CCHD,Bed Purchasing - Elderly - North,Residential Homes,Osbourne Court,1979.52, 16-Apr-2013
1677,Revenue,CCHD,Bed Purchasing - Elderly - North,Residential Homes,Osbourne Court,654.8, 16-Apr-2013
1678,Revenue,CCHD,Bed Purchasing - Elderly - North,Residential Homes,Osbourne Court,1810.08, 16-Apr-2013
1679,Revenue,CCHD,Bed Purchasing - Elderly - North,Residential Homes,Osbourne Court,598.8, 16-Apr-2013
1680,Revenue,CCHD,Bed Purchasing - Elderly S117- North,Residential Homes,Osbourne Court,1299.36, 16-Apr-2013
1681,Revenue,CCHD,Bed Purchasing - Elderly - North,Residential Homes,Osbourne Court,1060.5, 16-Apr-2013
1682,Revenue,CCHD,Bed Purchasing - Elderly - North,Residential Homes,Osbourne Court,765, 16-Apr-2013
1683,Revenue,CCHD,Bed Purchasing - Elderly S117- North,Residential Homes,Osbourne Court,1060.5, 16-Apr-2013
1684,Revenue,CCHD,Southmead Hospital Purchasing,Residential Homes,Osbourne Court,644.55, 16-Apr-2013
1685,Revenue,CCHD,Bed Purchasing - Under 65s PWLD - South,Residential Homes,Osprey Court,5727.57, 16-Apr-2013
1686,Revenue,CCHD,Bed Purchasing - Under 65s PWLD - South,Residential Homes,Osprey Court,1891.24, 16-Apr-2013
1687,Revenue,CCHD,Bed purchasing - S28A Under 65 - South,Residential Homes,Osprey Court,3194.52, 16-Apr-2013
1688,Revenue,CCHD,Bed purchasing - S28A Under 65 - South,Residential Homes,Osprey Court,1054.92, 16-Apr-2013
1689,Revenue,CCHD,Bed purchasing - S28A Under 65 - South,Residential Homes,Osprey Court,6291.48, 16-Apr-2013
1690,Revenue,CCHD,Southmead Hospital Purchasing,Nursing Homes,Palm Court Nursing Home,1172.92, 16-Apr-2013
1691,Revenue,CCHD,Bed Purchasing - Elderly MH - South,Residential Homes,Park Farm House,1000.08, 16-Apr-2013
1692,Revenue,CCHD,Bed Purchasing - Elderly - South,Residential Homes,Park Farm House,1335.72, 16-Apr-2013
1693,Revenue,CCHD,Bed Purchasing - Elderly - South,Residential Homes,Park Farm House,1425, 16-Apr-2013
1694,Revenue,CCHD,Bed Purchasing - Elderly MH - South,Residential Homes,Park Farm House,1194.9, 16-Apr-2013
1695,Revenue,CCHD,Bed Purchasing - Under 65s PWLD - South,Residential Homes,Park Hall,5539, 16-Apr-2013
1696,Revenue,CCHD,Bed purchasing - Under 65s PWLD - North,Residential Homes,Park Hall,5119.04, 16-Apr-2013
1697,Revenue,CCHD,Bed Purchasing - Under 65s PWLD - South,Residential Homes,Park Hall,4929.3, 16-Apr-2013
1698,Revenue,CCHD,Bed purchasing - Elderly PWLD - South,Residential Homes,Park Hall,1890.72, 16-Apr-2013
1699,Revenue,CCHD,Bed purchasing - Elderly PWLD - South,Residential Homes,Park Hall,625.39, 16-Apr-2013
1700,Revenue,CCHD,Bed Purchasing - Under 65s PWLD - South,Residential Homes,Park Hall,2868.12, 16-Apr-2013
1701,Revenue,CCHD,Bed Purchasing - Under 65s PWLD - South,Residential Homes,Park Hall,947.15, 16-Apr-2013
1702,Revenue,CCHD,Bed purchasing - Elderly PWLD - North,Residential Homes,Park Hall,3673.35, 16-Apr-2013
1703,Revenue,CCHD,Bed purchasing - Elderly PWLD - North,Residential Homes,Park Hall,1213.95, 16-Apr-2013
1704,Revenue,CCHD,Bed purchasing - S28A Under 65 - South,Residential Homes,Park Hall,3460.62, 16-Apr-2013
1705,Revenue,CCHD,Bed purchasing - S28A Under 65 - South,Residential Homes,Park Hall,1142.77, 16-Apr-2013
1706,Revenue,CCHD,Bed Purchasing - Under 65s PWLD - South,Residential Homes,Park Hall,3687.87, 16-Apr-2013
1707,Revenue,CCHD,Bed Purchasing - Under 65s PWLD - South,Residential Homes,Park Hall,1217.8, 16-Apr-2013
1708,Revenue,CCHD,Bed purchasing - Under 65s PWLD - North,Residential Homes,Park Hall,3181.53, 16-Apr-2013
1709,Revenue,CCHD,Bed purchasing - Under 65s PWLD - North,Residential Homes,Park Hall,1068.63, 16-Apr-2013
1710,Revenue,CCHD,Bed Purchasing - S28A - Over 65- North,Residential Homes,Park Hall,3965.1, 16-Apr-2013
1711,Revenue,CCHD,Bed Purchasing - S28A - Over 65- North,Residential Homes,Park Hall,1310.21, 16-Apr-2013
1712,Revenue,CCHD,Bed Purchasing - Under 65s PWLD - South,Residential Homes,Park Hall,10585.7, 16-Apr-2013
1713,Revenue,CCHD,Bed purchasing -S28A  Under 65 - North,Residential Homes,Park Hall,5830.47, 16-Apr-2013
1714,Revenue,CCHD,Bed purchasing - S28A Under 65 - South,Residential Homes,Park Hall,5556.65, 16-Apr-2013
1715,Revenue,CCHD,Bed Purchasing - Elderly - North,Residential Homes,Park House Residential Home,4828.26, 16-Apr-2013
1716,Revenue,CCHD,Social Lettings Agency,Other Supplies & Services,Individual,565, 26-Apr-2013
1717,Revenue,CCHD,Social Lettings Agency,Other Supplies & Services,Individual,565, 09-Apr-2013
1718,Revenue,CCHD,Bed Purchasing - Under 65s PWLD - South,Residential Homes,Penleigh House Care Home,3370.14, 16-Apr-2013
1719,Revenue,CCHD,Bed Purchasing - Under 65s PWLD - South,Residential Homes,Penleigh House Care Home,1112.9, 16-Apr-2013
1720,Revenue,CCHD,Bed Purchasing - Under 65s PWLD - South,Residential Homes,Penleigh House Care Home,3918.3, 16-Apr-2013
1721,Revenue,CCHD,Bed Purchasing - Under 65s PWLD - South,Residential Homes,Penleigh House Care Home,1293.88, 16-Apr-2013
1722,Revenue,CCHD,Bed purchasing - Elderly PWLD - South,Residential Homes,Penleigh House Care Home,3193.86, 16-Apr-2013
1723,Revenue,CCHD,Bed purchasing - Elderly PWLD - South,Residential Homes,Penleigh House Care Home,1055.64, 16-Apr-2013
1724,Revenue,CCHD,Bed purchasing - S28A Under 65 - South,Residential Homes,Penleigh House Care Home,4062.78, 16-Apr-2013
1725,Revenue,CCHD,Bed purchasing - S28A Under 65 - South,Residential Homes,Penleigh House Care Home,1341.58, 16-Apr-2013
1726,Revenue,CCHD,Bed Purchasing - Under 65s PWLD - South,Residential Homes,Penleigh House Care Home,3669.96, 16-Apr-2013
1727,Revenue,CCHD,Bed Purchasing - Under 65s PWLD - South,Residential Homes,Penleigh House Care Home,1211.89, 16-Apr-2013
1728,Revenue,CCHD,Supporting People Programme,Grants to Voluntary Bodies,Places for People,1117.67, 05-Apr-2013
1729,Revenue,CCHD,Bed and Breakfast,Bed & Breakfast,Pleasant Bed & Breakfast Limited,532, 05-Apr-2013
1730,Revenue,CCHD,Home Care - Elderly - South,Other Small Contracts,Premier Homecare Limited,775.72, 09-Apr-2013
1731,Revenue,CCHD,Home Care - Elderly - North,Other Small Contracts,Premier Homecare Limited,5908.1, 09-Apr-2013
1732,Revenue,CCHD,Younger MH non-res purchasing,Private & Voluntary Day Care,Premier Homecare Limited,27.06, 09-Apr-2013
1733,Revenue,CCHD,Home care - Elderly MH - North,Other Small Contracts,Premier Homecare Limited,162.36, 09-Apr-2013
1734,Revenue,CCHD,Elderly MH Day Care North,Private & Voluntary Day Care,Premier Homecare Limited,207.46, 09-Apr-2013
1735,Revenue,CCHD,Home Care - Elderly - South,Other Small Contracts,Premier Homecare Limited,762.19, 09-Apr-2013
1736,Revenue,CCHD,Home Care - Elderly - North,Other Small Contracts,Premier Homecare Limited,5655.54, 09-Apr-2013
1737,Revenue,CCHD,Younger MH non-res purchasing,Private & Voluntary Day Care,Premier Homecare Limited,27.06, 09-Apr-2013
1738,Revenue,CCHD,Home care - Elderly MH - North,Other Small Contracts,Premier Homecare Limited,162.36, 09-Apr-2013
1739,Revenue,CCHD,Elderly MH Day Care North,Private & Voluntary Day Care,Premier Homecare Limited,207.46, 09-Apr-2013
1740,Revenue,CCHD,Home Care - Elderly - South,Other Small Contracts,Premier Homecare Limited,766.7, 17-Apr-2013
1741,Revenue,CCHD,Home Care - Elderly - North,Other Small Contracts,Premier Homecare Limited,6726.89, 17-Apr-2013
1742,Revenue,CCHD,Younger MH non-res purchasing,Private & Voluntary Day Care,Premier Homecare Limited,27.06, 17-Apr-2013
1743,Revenue,CCHD,Home care - Elderly MH - North,Other Small Contracts,Premier Homecare Limited,162.36, 17-Apr-2013
1744,Revenue,CCHD,Elderly MH Day Care North,Private & Voluntary Day Care,Premier Homecare Limited,207.46, 17-Apr-2013
1745,Revenue,CCHD,Home Care - Elderly - South,Other Small Contracts,Premier Homecare Limited,793.44, 30-Apr-2013
1746,Revenue,CCHD,Home Care - Elderly - North,Other Small Contracts,Premier Homecare Limited,6999.6, 30-Apr-2013
1747,Revenue,CCHD,Younger MH non-res purchasing,Private & Voluntary Day Care,Premier Homecare Limited,27.36, 30-Apr-2013
1748,Revenue,CCHD,Home care - Elderly MH - North,Other Small Contracts,Premier Homecare Limited,159.6, 30-Apr-2013
1749,Revenue,CCHD,Elderly MH Day Care North,Private & Voluntary Day Care,Premier Homecare Limited,214.32, 30-Apr-2013
1750,Revenue,CCHD,Home Care - Elderly - South,Other Small Contracts,Prestige Nursing,678.93, 04-Apr-2013
1751,Revenue,CCHD,Home Care - Elderly - North,Other Small Contracts,Prestige Nursing,1118.74, 04-Apr-2013
1752,Revenue,CCHD,Day Care - South,Private & Voluntary Day Care,Prestige Nursing,320.25, 04-Apr-2013
1753,Revenue,CCHD,Day Care - North,Private & Voluntary Day Care,Prestige Nursing,674.66, 04-Apr-2013
1754,Revenue,CCHD,Home care - Elderly MH - North,Other Small Contracts,Prestige Nursing,209.23, 04-Apr-2013
1755,Revenue,CCHD,Elderly MH Day Care North,Private & Voluntary Day Care,Prestige Nursing,187.88, 04-Apr-2013
1756,Revenue,CCHD,Home Care - Elderly - South,Other Small Contracts,Prestige Nursing,896.7, 04-Apr-2013
1757,Revenue,CCHD,Home Care - Elderly - North,Other Small Contracts,Prestige Nursing,1263.92, 04-Apr-2013
1758,Revenue,CCHD,Day Care - South,Private & Voluntary Day Care,Prestige Nursing,196.42, 04-Apr-2013
1759,Revenue,CCHD,Day Care - North,Private & Voluntary Day Care,Prestige Nursing,678.93, 04-Apr-2013
1760,Revenue,CCHD,Elderly MH Day Care North,Private & Voluntary Day Care,Prestige Nursing,187.88, 04-Apr-2013
1761,Revenue,CCHD,Home Care - Elderly - South,Other Small Contracts,Prestige Nursing,879.62, 04-Apr-2013
1762,Revenue,CCHD,Home Care - Elderly - North,Other Small Contracts,Prestige Nursing,1050.42, 04-Apr-2013
1763,Revenue,CCHD,Day Care - South,Private & Voluntary Day Care,Prestige Nursing,162.26, 04-Apr-2013
1764,Revenue,CCHD,Day Care - North,Private & Voluntary Day Care,Prestige Nursing,627.69, 04-Apr-2013
1765,Revenue,CCHD,Elderly MH Day Care North,Private & Voluntary Day Care,Prestige Nursing,187.88, 04-Apr-2013
1766,Revenue,CCHD,Home Care - Elderly - South,Other Small Contracts,Prestige Nursing,849.73, 22-Apr-2013
1767,Revenue,CCHD,Home Care - Elderly - North,Other Small Contracts,Prestige Nursing,1276.73, 22-Apr-2013
1768,Revenue,CCHD,Day Care - South,Private & Voluntary Day Care,Prestige Nursing,170.8, 22-Apr-2013
1769,Revenue,CCHD,Day Care - North,Private & Voluntary Day Care,Prestige Nursing,559.37, 22-Apr-2013
1770,Revenue,CCHD,Elderly MH Day Care North,Private & Voluntary Day Care,Prestige Nursing,136.64, 22-Apr-2013
1771,Revenue,CCHD,Home Care - Elderly - South,Other Small Contracts,Prestige Nursing,922.32, 22-Apr-2013
1772,Revenue,CCHD,Home Care - Elderly - North,Other Small Contracts,Prestige Nursing,1140.09, 22-Apr-2013
1773,Revenue,CCHD,Day Care - South,Private & Voluntary Day Care,Prestige Nursing,204.96, 22-Apr-2013
1774,Revenue,CCHD,Day Care - North,Private & Voluntary Day Care,Prestige Nursing,627.69, 22-Apr-2013
1775,Revenue,CCHD,Elderly MH Day Care North,Private & Voluntary Day Care,Prestige Nursing,187.88, 22-Apr-2013
1776,Revenue,CCHD,Older People's Commissioned Se,Grants to Voluntary Bodies,Princess Royal Trust Carers Centre,40415.25, 03-Apr-2013
1777,Revenue,CCHD,Older People's Commissioned Se,Grants to Voluntary Bodies,Princess Royal Trust Carers Centre,1930.75, 03-Apr-2013
1778,Revenue,CCHD,Alexandra Way,Equipment Maintenance,Professional Hygiene Ltd,508.75, 12-Apr-2013
1779,Revenue,CCHD,Enabling Activities,Other Supplies & Services,Quattro Design Architects Limited,1350, 26-Apr-2013
1780,Revenue,CCHD,Bed purchasing - Elderly MH - North,Nursing Homes,Ravenswood,952.11, 16-Apr-2013
1781,Revenue,CCHD,Bed Purchasing - Elderly - South,Residential Homes,Ravenswood,2852.52, 16-Apr-2013
1782,Revenue,CCHD,Bed Purchasing - Elderly - South,Residential Homes,Ravenswood,945.42, 16-Apr-2013
1783,Revenue,CCHD,Bed Purchasing - Elderly - North,Nursing Homes,Ravenswood,1152.39, 16-Apr-2013
1784,Revenue,CCHD,Bed Purchasing - PWLD S 117 Placements,Residential Homes,Real Life Options,7960.95, 16-Apr-2013
1785,Revenue,CCHD,Bed Purchasing - Elderly S117- North,Nursing Homes,Redholme Memory Care Limited,1958.13, 16-Apr-2013
1786,Revenue,CCHD,Supporting People Programme,Grants to Voluntary Bodies,Redland Housing Association Ltd,726.92, 05-Apr-2013
1787,Revenue,CCHD,Bed Purchasing - Elderly - South,Nursing Homes,Regent House,1668.72, 16-Apr-2013
1788,Revenue,CCHD,Bed Purchasing - Elderly - South,Nursing Homes,Regent House,552.1, 16-Apr-2013
1789,Revenue,CCHD,Bed Purchasing - Elderly - South,Nursing Homes,Regent House,1563.42, 16-Apr-2013
1790,Revenue,CCHD,Bed Purchasing - Elderly - South,Nursing Homes,Regent House,517.15, 16-Apr-2013
1791,Revenue,CCHD,Bed Purchasing - Elderly - South,Nursing Homes,Regent House,1236.81, 16-Apr-2013
1792,Revenue,CCHD,Bed Purchasing - Elderly - South,Nursing Homes,Regent House,1873.45, 16-Apr-2013
1793,Revenue,CCHD,Bed Purchasing - Elderly - South,Nursing Homes,Regent House,1463.31, 16-Apr-2013
1794,Revenue,CCHD,Bed Purchasing - Elderly MH - South,Nursing Homes,Regent House,1496.91, 16-Apr-2013
1795,Revenue,CCHD,Bed Purchasing - Elderly - South,Nursing Homes,Regent House,1274.76, 16-Apr-2013
1796,Revenue,CCHD,Bed Purchasing - Elderly - South,Nursing Homes,Regent House,1533.51, 16-Apr-2013
1797,Revenue,CCHD,Bed Purchasing - Elderly - South,Nursing Homes,Regent House,507.45, 16-Apr-2013
1798,Revenue,CCHD,Bed Purchasing - Elderly MH - South,Nursing Homes,Regent House,2839.37, 16-Apr-2013
1799,Revenue,CCHD,Bed Purchasing - Elderly - South,Nursing Homes,Regent House,1482.81, 16-Apr-2013
1800,Revenue,CCHD,Bed Purchasing - Elderly - South,Nursing Homes,Regent House,1352.55, 16-Apr-2013
1801,Revenue,CCHD,Bed Purchasing - Elderly - South,Nursing Homes,Regent House,1236.81, 16-Apr-2013
1802,Revenue,CCHD,Bed Purchasing - Elderly - South,Nursing Homes,Regent House,1539.21, 16-Apr-2013
1803,Revenue,CCHD,Bed Purchasing - Elderly - South,Nursing Homes,Regent House,508.87, 16-Apr-2013
1804,Revenue,CCHD,Southmead Hospital Purchasing,Nursing Homes,Regent House,1041.39, 16-Apr-2013
1805,Revenue,CCHD,Bed Purchasing - Elderly - South,Nursing Homes,Regent House,1234.77, 16-Apr-2013
1806,Revenue,CCHD,Bed Purchasing - Elderly MH - South,Nursing Homes,Regent House,894.48, 16-Apr-2013
1807,Revenue,CCHD,Bed purchasing - Elderly MH - North,Nursing Homes,Regent House,957.93, 16-Apr-2013
1808,Revenue,CCHD,Bed Purchasing - Elderly - South,Nursing Homes,Regent House,1954.47, 16-Apr-2013
1809,Revenue,CCHD,Bed Purchasing - Elderly - South,Nursing Homes,Regent House,645.3, 16-Apr-2013
